{"text_format":"3","workbook":"xlsx","n_sheets":5,"sheets":["COMMENCER","DÉPENSES PRÉVUES","DÉPENSES RÉELLES","ÉCARTS DE DÉPENSES","ANALYSE DES DÉPENSES"],"not_rendered":{"charts":3,"images":2,"defined_names":1},"read":"whole","date_system":"1900"}

{"sheet":"COMMENCER","index":0,"n_rows":8,"n_cols":2,"rows_kept":8}
[null,"À PROPOS DE CE MODÈLE"]
[null,"Utilisez ce classeur Budget de dépenses de l’entreprise pour assurer le suivi des dépenses prévues, des dépenses réelles et des écarts de dépenses."]
[null,"Entrez le nom de la société et ajoutez un logo."]
[null,"Entrez les détails dans les tables des feuilles de calcul Dépenses prévues et Dépenses réelles."]
[null,"Les tables sont automatiquement mises à jour dans les feuilles de calcul Écarts de dépenses et Analyse des dépenses."]
[null,"Remarque : "]
[null,"Des instructions supplémentaires sont disponibles dans la colonne A de chaque feuille de calcul. Ce texte a été intentionnellement masqué. Pour supprimer le texte, sélectionnez la colonne A et choisissez SUPPRIMER. Pour afficher le texte, sélectionnez la colonne A et changez la couleur de la police."]
[null,"Pour en savoir plus sur les tables, appuyez sur MAJ, puis sur F10 au sein d’une table, et sélectionnez les options TABLE et TEXTE DE REMPLACEMENT."]

{"sheet":"DÉPENSES PRÉVUES","index":1,"n_rows":37,"n_cols":18,"rows_kept":37,"merged":[[1,1,2,3],[1,10,1,12],[1,13,2,14],[2,10,2,12],[3,17,12,19],[8,1,8,2],[19,1,19,2],[28,1,28,2],[33,1,33,2]]}
["Entrez les dépenses prévues dans les tables Coûts employés, Coûts bureau, Coûts marketing et Coûts formation/déplacements de cette feuille de calcul. Les totaux sont calculés automatiquement. Des instructions utiles sur l’utilisation de cette feuille de calcul sont disponibles dans les cellules dans cette colonne. Appuyez sur la flèche Bas pour commencer.",{"$nulls":14}," "]
["Entrez le nom de la société dans la cellule de droite et le logo dans la cellule N2. Le titre de cette feuille de calcul figure dans la cellule K2.","Nom de la société",{"$nulls":8},"Détail des dépenses prévues",null,null,"L’espace réservé au logo figure dans cette cellule."]
["Un conseil apparaît dans la cellule K3.",{"$nulls":9},"Les cellules ombrées correspondent aux calculs."]
["L’étiquette Dépenses prévues se trouve dans la cellule de droite, les mois dans les cellules C4 à N4, l’étiquette Année dans la cellule O4 et les instructions d’utilisation de ce modèle dans la cellule R4.","DÉPENSES PRÉVUES","JAN","FÉV","MAR","AVR","MAI","JUIN","JUIL","AOÛ","SEPT","OCT","NOV","DÉC","ANNÉE",null,null,"Conseil : COMMENT UTILISER CE MODÈLE\nEntrez des données dans les cellules blanches des feuilles de calcul DÉPENSES PRÉVUES et DÉPENSES RÉELLES. Les ÉCARTS DE DÉPENSES et l’ANALYSE DES DÉPENSES seront alors calculés pour vous. Si vous ajoutez une ligne sur une feuille, elle doit aussi l’être sur les autres feuilles."]
["Entrez les coûts employés dans la table Prévisions employés en commençant par la cellule de droite. L’instruction suivante figure dans la cellule A10.","Coûts employés","Jan","Fév","Mar","Avr","Mai","Juin","Juil","Août","Sept","Oct","Nov","Déc","ANNÉE"]
[null,"Salaires",{"v":85000,"d":"85,000.00 €"},{"v":85000,"d":"85,000.00 €"},{"v":85000,"d":"85,000.00 €"},{"v":87500,"d":"87,500.00 €"},{"v":87500,"d":"87,500.00 €"},{"v":87500,"d":"87,500.00 €"},{"v":87500,"d":"87,500.00 €"},{"v":92400,"d":"92,400.00 €"},{"v":92400,"d":"92,400.00 €"},{"v":92400,"d":"92,400.00 €"},{"v":92400,"d":"92,400.00 €"},{"v":92400,"d":"92,400.00 €"},{"$f":"SUM(C6:N6)","v":{"v":1067000,"d":"1,067,000.00 €"}}]
[null,"Bénéfices",{"$f":"C6*0.27","v":{"v":22950,"d":"22,950.00 €"}},{"v":22950,"d":"22,950.00 €"},{"v":22950,"d":"22,950.00 €"},{"v":23625,"d":"23,625.00 €"},{"v":23625,"d":"23,625.00 €"},{"v":23625,"d":"23,625.00 €"},{"v":23625,"d":"23,625.00 €"},{"v":24948,"d":"24,948.00 €"},{"v":24948,"d":"24,948.00 €"},{"v":24948,"d":"24,948.00 €"},{"v":24948,"d":"24,948.00 €"},{"v":24948,"d":"24,948.00 €"},{"$f":"SUM(C7:N7)","v":{"v":288090,"d":"288,090.00 €"}}]
[null,"Sous-total",{"$f":"SUBTOTAL(109,PrévisionsEmployés[Jan])","v":{"v":107950,"d":"107,950.00 €"}},{"$f":"SUBTOTAL(109,PrévisionsEmployés[Fév])","v":{"v":107950,"d":"107,950.00 €"}},{"$f":"SUBTOTAL(109,PrévisionsEmployés[Mar])","v":{"v":107950,"d":"107,950.00 €"}},{"$f":"SUBTOTAL(109,PrévisionsEmployés[Avr])","v":{"v":111125,"d":"111,125.00 €"}},{"$f":"SUBTOTAL(109,PrévisionsEmployés[Mai])","v":{"v":111125,"d":"111,125.00 €"}},{"$f":"SUBTOTAL(109,PrévisionsEmployés[Juin])","v":{"v":111125,"d":"111,125.00 €"}},{"$f":"SUBTOTAL(109,PrévisionsEmployés[Juil])","v":{"v":111125,"d":"111,125.00 €"}},{"$f":"SUBTOTAL(109,PrévisionsEmployés[Août])","v":{"v":117348,"d":"117,348.00 €"}},{"$f":"SUBTOTAL(109,PrévisionsEmployés[Sept])","v":{"v":117348,"d":"117,348.00 €"}},{"$f":"SUBTOTAL(109,PrévisionsEmployés[Oct])","v":{"v":117348,"d":"117,348.00 €"}},{"$f":"SUBTOTAL(109,PrévisionsEmployés[Nov])","v":{"v":117348,"d":"117,348.00 €"}},{"$f":"SUBTOTAL(109,PrévisionsEmployés[Déc])","v":{"v":117348,"d":"117,348.00 €"}},{"$f":"SUBTOTAL(109,PrévisionsEmployés[ANNÉE])","v":{"v":1355090,"d":"1,355,090.00 €"}}]
[]
["Entrez des coûts bureau dans la table Prévisions bureau en commençant par la cellule de droite. L’instruction suivante figure dans la cellule A21.","Coûts bureau","Jan","Fév","Mar","Avr","Mai","Juin","Juil","Août","Sept","Oct","Nov","Déc","ANNÉE"]
[null,"Location des bureaux",{"v":9800,"d":"9,800.00 €"},{"v":9800,"d":"9,800.00 €"},{"v":9800,"d":"9,800.00 €"},{"v":9800,"d":"9,800.00 €"},{"v":9800,"d":"9,800.00 €"},{"v":9800,"d":"9,800.00 €"},{"v":9800,"d":"9,800.00 €"},{"v":9800,"d":"9,800.00 €"},{"v":9800,"d":"9,800.00 €"},{"v":9800,"d":"9,800.00 €"},{"v":9800,"d":"9,800.00 €"},{"v":9800,"d":"9,800.00 €"},{"$f":"SUM(C11:N11)","v":{"v":117600,"d":"117,600.00 €"}}]
[null,"Gaz",null,{"v":400,"d":"400.00 €"},{"v":400,"d":"400.00 €"},{"v":100,"d":"100.00 €"},{"v":100,"d":"100.00 €"},{"v":100,"d":"100.00 €"},{"v":100,"d":"100.00 €"},{"v":100,"d":"100.00 €"},{"v":100,"d":"100.00 €"},{"v":100,"d":"100.00 €"},{"v":400,"d":"400.00 €"},{"v":400,"d":"400.00 €"},{"v":2300,"d":"2,300.00 €"}]
[null,"Électricité",{"v":300,"d":"300.00 €"},{"v":300,"d":"300.00 €"},{"v":300,"d":"300.00 €"},{"v":300,"d":"300.00 €"},{"v":300,"d":"300.00 €"},{"v":300,"d":"300.00 €"},{"v":300,"d":"300.00 €"},{"v":300,"d":"300.00 €"},{"v":300,"d":"300.00 €"},{"v":300,"d":"300.00 €"},{"v":300,"d":"300.00 €"},{"v":300,"d":"300.00 €"},{"v":3600,"d":"3,600.00 €"}]
[null,"Eau",{"v":40,"d":"40.00 €"},{"v":40,"d":"40.00 €"},{"v":40,"d":"40.00 €"},{"v":40,"d":"40.00 €"},{"v":40,"d":"40.00 €"},{"v":40,"d":"40.00 €"},{"v":40,"d":"40.00 €"},{"v":40,"d":"40.00 €"},{"v":40,"d":"40.00 €"},{"v":40,"d":"40.00 €"},{"v":40,"d":"40.00 €"},{"v":40,"d":"40.00 €"},{"v":480,"d":"480.00 €"}]
[null,"Téléphone",{"v":250,"d":"250.00 €"},{"v":250,"d":"250.00 €"},{"v":250,"d":"250.00 €"},{"v":250,"d":"250.00 €"},{"v":250,"d":"250.00 €"},{"v":250,"d":"250.00 €"},{"v":250,"d":"250.00 €"},{"v":250,"d":"250.00 €"},{"v":250,"d":"250.00 €"},{"v":250,"d":"250.00 €"},{"v":250,"d":"250.00 €"},{"v":250,"d":"250.00 €"},{"v":3000,"d":"3,000.00 €"}]
[null,"Accès à Internet",{"v":180,"d":"180.00 €"},{"v":180,"d":"180.00 €"},{"v":180,"d":"180.00 €"},{"v":180,"d":"180.00 €"},{"v":180,"d":"180.00 €"},{"v":180,"d":"180.00 €"},{"v":180,"d":"180.00 €"},{"v":180,"d":"180.00 €"},{"v":180,"d":"180.00 €"},{"v":180,"d":"180.00 €"},{"v":180,"d":"180.00 €"},{"v":180,"d":"180.00 €"},{"v":2160,"d":"2,160.00 €"}]
[null,"Fournitures de bureau",{"v":200,"d":"200.00 €"},{"v":200,"d":"200.00 €"},{"v":200,"d":"200.00 €"},{"v":200,"d":"200.00 €"},{"v":200,"d":"200.00 €"},{"v":200,"d":"200.00 €"},{"v":200,"d":"200.00 €"},{"v":200,"d":"200.00 €"},{"v":200,"d":"200.00 €"},{"v":200,"d":"200.00 €"},{"v":200,"d":"200.00 €"},{"v":200,"d":"200.00 €"},{"v":2400,"d":"2,400.00 €"}]
[null,"Sécurité",{"v":600,"d":"600.00 €"},{"v":600,"d":"600.00 €"},{"v":600,"d":"600.00 €"},{"v":600,"d":"600.00 €"},{"v":600,"d":"600.00 €"},{"v":600,"d":"600.00 €"},{"v":600,"d":"600.00 €"},{"v":600,"d":"600.00 €"},{"v":600,"d":"600.00 €"},{"v":600,"d":"600.00 €"},{"v":600,"d":"600.00 €"},{"v":600,"d":"600.00 €"},{"v":7200,"d":"7,200.00 €"}]
[null,"Sous-total",{"$f":"SUBTOTAL(109,PrévisionsBureau[Jan])","v":{"v":11370,"d":"11,370.00 €"}},{"$f":"SUBTOTAL(109,PrévisionsBureau[Fév])","v":{"v":11770,"d":"11,770.00 €"}},{"$f":"SUBTOTAL(109,PrévisionsBureau[Mar])","v":{"v":11770,"d":"11,770.00 €"}},{"$f":"SUBTOTAL(109,PrévisionsBureau[Avr])","v":{"v":11470,"d":"11,470.00 €"}},{"$f":"SUBTOTAL(109,PrévisionsBureau[Mai])","v":{"v":11470,"d":"11,470.00 €"}},{"$f":"SUBTOTAL(109,PrévisionsBureau[Juin])","v":{"v":11470,"d":"11,470.00 €"}},{"$f":"SUBTOTAL(109,PrévisionsBureau[Juil])","v":{"v":11470,"d":"11,470.00 €"}},{"$f":"SUBTOTAL(109,PrévisionsBureau[Août])","v":{"v":11470,"d":"11,470.00 €"}},{"$f":"SUBTOTAL(109,PrévisionsBureau[Sept])","v":{"v":11470,"d":"11,470.00 €"}},{"$f":"SUBTOTAL(109,PrévisionsBureau[Oct])","v":{"v":11470,"d":"11,470.00 €"}},{"$f":"SUBTOTAL(109,PrévisionsBureau[Nov])","v":{"v":11770,"d":"11,770.00 €"}},{"$f":"SUBTOTAL(109,PrévisionsBureau[Déc])","v":{"v":11770,"d":"11,770.00 €"}},{"$f":"SUBTOTAL(109,PrévisionsBureau[ANNÉE])","v":{"v":138740,"d":"138,740.00 €"}}]
[]
["Entrez les coûts marketing dans la table Prévisions marketing en commençant par la cellule de droite. L’instruction suivante figure dans la cellule A30.","Coûts marketing","Jan","Fév","Mar","Avr","Mai","Juin","Juil","Août","Sept","Oct","Nov","Déc","ANNÉE"]
[null,"Hébergement du site web",{"v":500,"d":"500.00 €"},{"v":500,"d":"500.00 €"},{"v":500,"d":"500.00 €"},{"v":500,"d":"500.00 €"},{"v":500,"d":"500.00 €"},{"v":500,"d":"500.00 €"},{"v":500,"d":"500.00 €"},{"v":500,"d":"500.00 €"},{"v":500,"d":"500.00 €"},{"v":500,"d":"500.00 €"},{"v":500,"d":"500.00 €"},{"v":500,"d":"500.00 €"},{"$f":"SUM(C22:N22)","v":{"v":6000,"d":"6,000.00 €"}}]
[null,"Mises à jour du site web",{"v":200,"d":"200.00 €"},{"v":200,"d":"200.00 €"},{"v":200,"d":"200.00 €"},{"v":200,"d":"200.00 €"},{"v":200,"d":"200.00 €"},{"v":1000,"d":"1,000.00 €"},{"v":200,"d":"200.00 €"},{"v":200,"d":"200.00 €"},{"v":200,"d":"200.00 €"},{"v":200,"d":"200.00 €"},{"v":200,"d":"200.00 €"},{"v":1000,"d":"1,000.00 €"},{"v":4000,"d":"4,000.00 €"}]
[null,"Préparation contrat de garantie",{"v":5000,"d":"5,000.00 €"},{"v":0,"d":"0.00 €"},{"v":0,"d":"0.00 €"},{"v":5000,"d":"5,000.00 €"},{"v":0,"d":"0.00 €"},{"v":0,"d":"0.00 €"},{"v":5000,"d":"5,000.00 €"},{"v":0,"d":"0.00 €"},{"v":0,"d":"0.00 €"},{"v":5000,"d":"5,000.00 €"},{"v":0,"d":"0.00 €"},{"v":0,"d":"0.00 €"},{"v":20000,"d":"20,000.00 €"}]
[null,"Impression contrat de garantie",{"v":200,"d":"200.00 €"},{"v":200,"d":"200.00 €"},{"v":200,"d":"200.00 €"},{"v":200,"d":"200.00 €"},{"v":200,"d":"200.00 €"},{"v":200,"d":"200.00 €"},{"v":200,"d":"200.00 €"},{"v":200,"d":"200.00 €"},{"v":200,"d":"200.00 €"},{"v":200,"d":"200.00 €"},{"v":200,"d":"200.00 €"},{"v":200,"d":"200.00 €"},{"v":2400,"d":"2,400.00 €"}]
[null,"Événements marketing",{"v":2000,"d":"2,000.00 €"},{"v":2000,"d":"2,000.00 €"},{"v":2000,"d":"2,000.00 €"},{"v":5000,"d":"5,000.00 €"},{"v":2000,"d":"2,000.00 €"},{"v":2000,"d":"2,000.00 €"},{"v":2000,"d":"2,000.00 €"},{"v":5000,"d":"5,000.00 €"},{"v":2000,"d":"2,000.00 €"},{"v":2000,"d":"2,000.00 €"},{"v":2000,"d":"2,000.00 €"},{"v":5000,"d":"5,000.00 €"},{"v":33000,"d":"33,000.00 €"}]
[null,"Dépenses diverses",{"v":200,"d":"200.00 €"},{"v":200,"d":"200.00 €"},{"v":200,"d":"200.00 €"},{"v":200,"d":"200.00 €"},{"v":200,"d":"200.00 €"},{"v":200,"d":"200.00 €"},{"v":200,"d":"200.00 €"},{"v":200,"d":"200.00 €"},{"v":200,"d":"200.00 €"},{"v":200,"d":"200.00 €"},{"v":200,"d":"200.00 €"},{"v":200,"d":"200.00 €"},{"v":2400,"d":"2,400.00 €"}]
[null,"Sous-total",{"$f":"SUBTOTAL(109,PrévisionsMarketing[Jan])","v":{"v":8100,"d":"8,100.00 €"}},{"$f":"SUBTOTAL(109,PrévisionsMarketing[Fév])","v":{"v":3100,"d":"3,100.00 €"}},{"$f":"SUBTOTAL(109,PrévisionsMarketing[Mar])","v":{"v":3100,"d":"3,100.00 €"}},{"$f":"SUBTOTAL(109,PrévisionsMarketing[Avr])","v":{"v":11100,"d":"11,100.00 €"}},{"$f":"SUBTOTAL(109,PrévisionsMarketing[Mai])","v":{"v":3100,"d":"3,100.00 €"}},{"$f":"SUBTOTAL(109,PrévisionsMarketing[Juin])","v":{"v":3900,"d":"3,900.00 €"}},{"$f":"SUBTOTAL(109,PrévisionsMarketing[Juil])","v":{"v":8100,"d":"8,100.00 €"}},{"$f":"SUBTOTAL(109,PrévisionsMarketing[Août])","v":{"v":6100,"d":"6,100.00 €"}},{"$f":"SUBTOTAL(109,PrévisionsMarketing[Sept])","v":{"v":3100,"d":"3,100.00 €"}},{"$f":"SUBTOTAL(109,PrévisionsMarketing[Oct])","v":{"v":8100,"d":"8,100.00 €"}},{"$f":"SUBTOTAL(109,PrévisionsMarketing[Nov])","v":{"v":3100,"d":"3,100.00 €"}},{"$f":"SUBTOTAL(109,PrévisionsMarketing[Déc])","v":{"v":6900,"d":"6,900.00 €"}},{"$f":"SUBTOTAL(109,PrévisionsMarketing[ANNÉE])","v":{"v":67800,"d":"67,800.00 €"}}]
[]
["Entrez les coûts relatifs à la formation et aux déplacements dans la table Prévisions formation et déplacements en commençant par la cellule de droite. L’instruction suivante figure dans la cellule A35.","Formation/Déplacements","Jan","Fév","Mar","Avr","Mai","Juin","Juil","Août","Sept","Oct","Nov","Déc","ANNÉE"]
[null,"Sessions de formation",{"v":2000,"d":"2,000.00 €"},{"v":2000,"d":"2,000.00 €"},{"v":2000,"d":"2,000.00 €"},{"v":2000,"d":"2,000.00 €"},{"v":2000,"d":"2,000.00 €"},{"v":2000,"d":"2,000.00 €"},{"v":2000,"d":"2,000.00 €"},{"v":2000,"d":"2,000.00 €"},{"v":2000,"d":"2,000.00 €"},{"v":2000,"d":"2,000.00 €"},{"v":2000,"d":"2,000.00 €"},{"v":2000,"d":"2,000.00 €"},{"$f":"SUM(C31:N31)","v":{"v":24000,"d":"24,000.00 €"}}]
[null,"Frais de déplacement liés aux formations",{"v":2000,"d":"2,000.00 €"},{"v":2000,"d":"2,000.00 €"},{"v":2000,"d":"2,000.00 €"},{"v":2000,"d":"2,000.00 €"},{"v":2000,"d":"2,000.00 €"},{"v":2000,"d":"2,000.00 €"},{"v":2000,"d":"2,000.00 €"},{"v":2000,"d":"2,000.00 €"},{"v":2000,"d":"2,000.00 €"},{"v":2000,"d":"2,000.00 €"},{"v":2000,"d":"2,000.00 €"},{"v":2000,"d":"2,000.00 €"},{"$f":"SUM(C32:N32)","v":{"v":24000,"d":"24,000.00 €"}}]
[null,"Sous-total",{"$f":"SUBTOTAL(109,PrévisionsFormationEtDéplacements[Jan])","v":{"v":4000,"d":"4,000.00 €"}},{"$f":"SUBTOTAL(109,PrévisionsFormationEtDéplacements[Fév])","v":{"v":4000,"d":"4,000.00 €"}},{"$f":"SUBTOTAL(109,PrévisionsFormationEtDéplacements[Mar])","v":{"v":4000,"d":"4,000.00 €"}},{"$f":"SUBTOTAL(109,PrévisionsFormationEtDéplacements[Avr])","v":{"v":4000,"d":"4,000.00 €"}},{"$f":"SUBTOTAL(109,PrévisionsFormationEtDéplacements[Mai])","v":{"v":4000,"d":"4,000.00 €"}},{"$f":"SUBTOTAL(109,PrévisionsFormationEtDéplacements[Juin])","v":{"v":4000,"d":"4,000.00 €"}},{"$f":"SUBTOTAL(109,PrévisionsFormationEtDéplacements[Juil])","v":{"v":4000,"d":"4,000.00 €"}},{"$f":"SUBTOTAL(109,PrévisionsFormationEtDéplacements[Août])","v":{"v":4000,"d":"4,000.00 €"}},{"$f":"SUBTOTAL(109,PrévisionsFormationEtDéplacements[Sept])","v":{"v":4000,"d":"4,000.00 €"}},{"$f":"SUBTOTAL(109,PrévisionsFormationEtDéplacements[Oct])","v":{"v":4000,"d":"4,000.00 €"}},{"$f":"SUBTOTAL(109,PrévisionsFormationEtDéplacements[Nov])","v":{"v":4000,"d":"4,000.00 €"}},{"$f":"SUBTOTAL(109,PrévisionsFormationEtDéplacements[Déc])","v":{"v":4000,"d":"4,000.00 €"}},{"$f":"SUBTOTAL(109,PrévisionsFormationEtDéplacements[ANNÉE])","v":{"v":48000,"d":"48,000.00 €"}}]
[]
["Les totaux sont automatiquement calculés dans la table Total dépenses prévues en commençant par la cellule de droite.","TOTAUX","Jan","Fév","Mar","Avr","Mai","Juin","Juil","Août","Sept","Oct","Nov","Déc","Année"]
[null,"Dépenses mensuelles prévues",{"$f":"PrévisionsFormationEtDéplacements[[#Totals],[Jan]]+PrévisionsMarketing[[#Totals],[Jan]]+PrévisionsBureau[[#Totals],[Jan]]+PrévisionsEmployés[[#Totals],[Jan]]","v":{"v":131420,"d":"131,420.00 €"}},{"$f":"PrévisionsFormationEtDéplacements[[#Totals],[Fév]]+PrévisionsMarketing[[#Totals],[Fév]]+PrévisionsBureau[[#Totals],[Fév]]+PrévisionsEmployés[[#Totals],[Fév]]","v":{"v":126820,"d":"126,820.00 €"}},{"$f":"PrévisionsFormationEtDéplacements[[#Totals],[Mar]]+PrévisionsMarketing[[#Totals],[Mar]]+PrévisionsBureau[[#Totals],[Mar]]+PrévisionsEmployés[[#Totals],[Mar]]","v":{"v":126820,"d":"126,820.00 €"}},{"$f":"PrévisionsFormationEtDéplacements[[#Totals],[Avr]]+PrévisionsMarketing[[#Totals],[Avr]]+PrévisionsBureau[[#Totals],[Avr]]+PrévisionsEmployés[[#Totals],[Avr]]","v":{"v":137695,"d":"137,695.00 €"}},{"$f":"PrévisionsFormationEtDéplacements[[#Totals],[Mai]]+PrévisionsMarketing[[#Totals],[Mai]]+PrévisionsBureau[[#Totals],[Mai]]+PrévisionsEmployés[[#Totals],[Mai]]","v":{"v":129695,"d":"129,695.00 €"}},{"$f":"PrévisionsFormationEtDéplacements[[#Totals],[Juin]]+PrévisionsMarketing[[#Totals],[Juin]]+PrévisionsBureau[[#Totals],[Juin]]+PrévisionsEmployés[[#Totals],[Juin]]","v":{"v":130495,"d":"130,495.00 €"}},{"$f":"PrévisionsFormationEtDéplacements[[#Totals],[Juil]]+PrévisionsMarketing[[#Totals],[Juil]]+PrévisionsBureau[[#Totals],[Juil]]+PrévisionsEmployés[[#Totals],[Juil]]","v":{"v":134695,"d":"134,695.00 €"}},{"$f":"PrévisionsFormationEtDéplacements[[#Totals],[Août]]+PrévisionsMarketing[[#Totals],[Août]]+PrévisionsBureau[[#Totals],[Août]]+PrévisionsEmployés[[#Totals],[Août]]","v":{"v":138918,"d":"138,918.00 €"}},{"$f":"PrévisionsFormationEtDéplacements[[#Totals],[Sept]]+PrévisionsMarketing[[#Totals],[Sept]]+PrévisionsBureau[[#Totals],[Sept]]+PrévisionsEmployés[[#Totals],[Sept]]","v":{"v":135918,"d":"135,918.00 €"}},{"$f":"PrévisionsFormationEtDéplacements[[#Totals],[Oct]]+PrévisionsMarketing[[#Totals],[Oct]]+PrévisionsBureau[[#Totals],[Oct]]+PrévisionsEmployés[[#Totals],[Oct]]","v":{"v":140918,"d":"140,918.00 €"}},{"$f":"PrévisionsFormationEtDéplacements[[#Totals],[Nov]]+PrévisionsMarketing[[#Totals],[Nov]]+PrévisionsBureau[[#Totals],[Nov]]+PrévisionsEmployés[[#Totals],[Nov]]","v":{"v":136218,"d":"136,218.00 €"}},{"$f":"PrévisionsFormationEtDéplacements[[#Totals],[Déc]]+PrévisionsMarketing[[#Totals],[Déc]]+PrévisionsBureau[[#Totals],[Déc]]+PrévisionsEmployés[[#Totals],[Déc]]","v":{"v":140018,"d":"140,018.00 €"}},{"$f":"PrévisionsFormationEtDéplacements[[#Totals],[ANNÉE]]+PrévisionsMarketing[[#Totals],[ANNÉE]]+PrévisionsBureau[[#Totals],[ANNÉE]]+PrévisionsEmployés[[#Totals],[ANNÉE]]","v":{"v":1609630,"d":"1,609,630.00 €"}}]
[null,"TOTAL des dépenses prévues",{"$f":"SUM($C$36:C36)","v":{"v":131420,"d":"131,420.00 €"}},{"$f":"SUM($C$36:D36)","v":{"v":258240,"d":"258,240.00 €"}},{"$f":"SUM($C$36:E36)","v":{"v":385060,"d":"385,060.00 €"}},{"$f":"SUM($C$36:F36)","v":{"v":522755,"d":"522,755.00 €"}},{"$f":"SUM($C$36:G36)","v":{"v":652450,"d":"652,450.00 €"}},{"$f":"SUM($C$36:H36)","v":{"v":782945,"d":"782,945.00 €"}},{"$f":"SUM($C$36:I36)","v":{"v":917640,"d":"917,640.00 €"}},{"$f":"SUM($C$36:J36)","v":{"v":1056558,"d":"1,056,558.00 €"}},{"$f":"SUM($C$36:K36)","v":{"v":1192476,"d":"1,192,476.00 €"}},{"$f":"SUM($C$36:L36)","v":{"v":1333394,"d":"1,333,394.00 €"}},{"$f":"SUM($C$36:M36)","v":{"v":1469612,"d":"1,469,612.00 €"}},{"$f":"SUM($C$36:N36)","v":{"v":1609630,"d":"1,609,630.00 €"}}]

{"sheet":"DÉPENSES RÉELLES","index":2,"n_rows":37,"n_cols":16,"rows_kept":37,"merged":[[1,1,2,3],[1,10,1,12],[1,13,2,14],[2,10,2,12],[8,1,8,2],[19,1,19,2],[28,1,28,2],[33,1,33,2]]}
["Entrez les dépenses réelles dans les tables Coûts employés, Coûts bureau, Coûts marketing et Coûts formation/déplacements de cette feuille de calcul. Les totaux sont calculés automatiquement. Des instructions utiles sur l’utilisation de cette feuille de calcul sont disponibles dans les cellules dans cette colonne. Appuyez sur la flèche Bas pour commencer.",{"$nulls":14}," "]
["Le nom de la société est automatiquement mis à jour dans la cellule de droite. Le titre de cette feuille de calcul figure dans la cellule K2. Entrez le logo dans la cellule N2.",{"$f":"'DÉPENSES PRÉVUES'!B2:D3","v":"Nom de la société"},{"$nulls":8},{"$f":"titre_feuille_de_calcul","v":"Détail des dépenses prévues"},null,null,"L’espace réservé au logo figure dans cette cellule."]
["Un conseil apparaît dans la cellule K3.",{"$nulls":9},"Les cellules ombrées correspondent aux calculs."]
["L’étiquette Dépenses réelles se trouve dans la cellule de droite, les mois dans les cellules C4 à N4 et l’étiquette Année dans la cellule O4.","DÉPENSES RÉELLES","JAN","FÉV","MAR","AVR","MAI","JUIN","JUIL","AOÛ","SEPT","OCT","NOV","DÉC","ANNÉE"]
["Entrez les coûts employés dans la table Dépenses réelles employés en commençant par la cellule de droite. L’instruction suivante figure dans la cellule A10.","Coûts employés","Jan","Fév","Mar","Avr","Mai","Juin","Juil","Août","Sept","Oct","Nov","Déc","ANNÉE"]
[null,"Salaires",{"v":85000,"d":"85,000.00 €"},{"v":85000,"d":"85,000.00 €"},{"v":85000,"d":"85,000.00 €"},{"v":88000,"d":"88,000.00 €"},{"v":88000,"d":"88,000.00 €"},{"v":88000,"d":"88,000.00 €"},{"$nulls":6},{"$f":"SUM(C6:N6)","v":{"v":519000,"d":"519,000.00 €"}}]
[null,"Bénéfices",{"$f":"C6*0.27","v":{"v":22950,"d":"22,950.00 €"}},{"v":22950,"d":"22,950.00 €"},{"v":22950,"d":"22,950.00 €"},{"v":23760,"d":"23,760.00 €"},{"v":23760,"d":"23,760.00 €"},{"v":23760,"d":"23,760.00 €"},{"v":0,"d":"0.00 €"},{"v":0,"d":"0.00 €"},{"v":0,"d":"0.00 €"},{"v":0,"d":"0.00 €"},{"v":0,"d":"0.00 €"},{"v":0,"d":"0.00 €"},{"$f":"SUM(C7:N7)","v":{"v":140130,"d":"140,130.00 €"}}]
[null,"Sous-total",{"$f":"SUBTOTAL(109,DépensesRéellesEmployés[Jan])","v":{"v":107950,"d":"107,950.00 €"}},{"$f":"SUBTOTAL(109,DépensesRéellesEmployés[Fév])","v":{"v":107950,"d":"107,950.00 €"}},{"$f":"SUBTOTAL(109,DépensesRéellesEmployés[Mar])","v":{"v":107950,"d":"107,950.00 €"}},{"$f":"SUBTOTAL(109,DépensesRéellesEmployés[Avr])","v":{"v":111760,"d":"111,760.00 €"}},{"$f":"SUBTOTAL(109,DépensesRéellesEmployés[Mai])","v":{"v":111760,"d":"111,760.00 €"}},{"$f":"SUBTOTAL(109,DépensesRéellesEmployés[Juin])","v":{"v":111760,"d":"111,760.00 €"}},{"$f":"SUBTOTAL(109,DépensesRéellesEmployés[Juil])","v":{"v":0,"d":"0.00 €"}},{"$f":"SUBTOTAL(109,DépensesRéellesEmployés[Août])","v":{"v":0,"d":"0.00 €"}},{"$f":"SUBTOTAL(109,DépensesRéellesEmployés[Sept])","v":{"v":0,"d":"0.00 €"}},{"$f":"SUBTOTAL(109,DépensesRéellesEmployés[Oct])","v":{"v":0,"d":"0.00 €"}},{"$f":"SUBTOTAL(109,DépensesRéellesEmployés[Nov])","v":{"v":0,"d":"0.00 €"}},{"$f":"SUBTOTAL(109,DépensesRéellesEmployés[Déc])","v":{"v":0,"d":"0.00 €"}},{"$f":"SUBTOTAL(109,DépensesRéellesEmployés[ANNÉE])","v":{"v":659130,"d":"659,130.00 €"}}]
[]
["Entrez des coûts bureau dans la table Dépenses réelles bureau en commençant par la cellule de droite. L’instruction suivante figure dans la cellule A21.","Coûts bureau","Jan","Fév","Mar","Avr","Mai","Juin","Juil","Août","Sept","Oct","Nov","Déc","ANNÉE"]
[null,"Location des bureaux",{"v":9800,"d":"9,800.00 €"},{"v":9800,"d":"9,800.00 €"},{"v":9800,"d":"9,800.00 €"},{"v":9800,"d":"9,800.00 €"},{"v":9800,"d":"9,800.00 €"},{"v":9800,"d":"9,800.00 €"},{"$nulls":6},{"$f":"SUM(C11:N11)","v":{"v":58800,"d":"58,800.00 €"}}]
[null,"Gaz",{"v":4,"d":"4.00 €"},{"v":430,"d":"430.00 €"},{"v":385,"d":"385.00 €"},{"v":230,"d":"230.00 €"},{"v":87,"d":"87.00 €"},{"v":88,"d":"88.00 €"},{"$nulls":6},{"v":1224,"d":"1,224.00 €"}]
[null,"Électricité",{"v":288,"d":"288.00 €"},{"v":278,"d":"278.00 €"},{"v":268,"d":"268.00 €"},{"v":299,"d":"299.00 €"},{"v":306,"d":"306.00 €"},{"v":290,"d":"290.00 €"},{"$nulls":6},{"v":1729,"d":"1,729.00 €"}]
[null,"Eau",{"v":35,"d":"35.00 €"},{"v":33,"d":"33.00 €"},{"v":34,"d":"34.00 €"},{"v":36,"d":"36.00 €"},{"v":34,"d":"34.00 €"},{"v":36,"d":"36.00 €"},{"$nulls":6},{"v":208,"d":"208.00 €"}]
[null,"Téléphone",{"v":224,"d":"224.00 €"},{"v":235,"d":"235.00 €"},{"v":265,"d":"265.00 €"},{"v":245,"d":"245.00 €"},{"v":245,"d":"245.00 €"},{"v":220,"d":"220.00 €"},{"$nulls":6},{"v":1434,"d":"1,434.00 €"}]
[null,"Accès à Internet",{"v":180,"d":"180.00 €"},{"v":180,"d":"180.00 €"},{"v":180,"d":"180.00 €"},{"v":180,"d":"180.00 €"},{"v":180,"d":"180.00 €"},{"v":180,"d":"180.00 €"},{"$nulls":6},{"v":1080,"d":"1,080.00 €"}]
[null,"Fournitures de bureau",{"v":256,"d":"256.00 €"},{"v":142,"d":"142.00 €"},{"v":160,"d":"160.00 €"},{"v":221,"d":"221.00 €"},{"v":256,"d":"256.00 €"},{"v":240,"d":"240.00 €"},{"$nulls":6},{"v":1275,"d":"1,275.00 €"}]
[null,"Sécurité",{"v":600,"d":"600.00 €"},{"v":600,"d":"600.00 €"},{"v":600,"d":"600.00 €"},{"v":600,"d":"600.00 €"},{"v":600,"d":"600.00 €"},{"v":600,"d":"600.00 €"},{"$nulls":6},{"v":3600,"d":"3,600.00 €"}]
[null,"Sous-total",{"$f":"SUBTOTAL(109,DépensesRéellesBureau[Jan])","v":{"v":11387,"d":"11,387.00 €"}},{"$f":"SUBTOTAL(109,DépensesRéellesBureau[Fév])","v":{"v":11698,"d":"11,698.00 €"}},{"$f":"SUBTOTAL(109,DépensesRéellesBureau[Mar])","v":{"v":11692,"d":"11,692.00 €"}},{"$f":"SUBTOTAL(109,DépensesRéellesBureau[Avr])","v":{"v":11611,"d":"11,611.00 €"}},{"$f":"SUBTOTAL(109,DépensesRéellesBureau[Mai])","v":{"v":11508,"d":"11,508.00 €"}},{"$f":"SUBTOTAL(109,DépensesRéellesBureau[Juin])","v":{"v":11454,"d":"11,454.00 €"}},{"$f":"SUBTOTAL(109,DépensesRéellesBureau[Juil])","v":{"v":0,"d":"0.00 €"}},{"$f":"SUBTOTAL(109,DépensesRéellesBureau[Août])","v":{"v":0,"d":"0.00 €"}},{"$f":"SUBTOTAL(109,DépensesRéellesBureau[Sept])","v":{"v":0,"d":"0.00 €"}},{"$f":"SUBTOTAL(109,DépensesRéellesBureau[Oct])","v":{"v":0,"d":"0.00 €"}},{"$f":"SUBTOTAL(109,DépensesRéellesBureau[Nov])","v":{"v":0,"d":"0.00 €"}},{"$f":"SUBTOTAL(109,DépensesRéellesBureau[Déc])","v":{"v":0,"d":"0.00 €"}},{"$f":"SUBTOTAL(109,DépensesRéellesBureau[ANNÉE])","v":{"v":69350,"d":"69,350.00 €"}}]
[]
["Entrez les coûts marketing dans la table Dépenses réelles marketing en commençant par la cellule de droite. L’instruction suivante figure dans la cellule A30.","Coûts marketing","Jan","Fév","Mar","Avr","Mai","Juin","Juil","Août","Sept","Oct","Nov","Déc","ANNÉE"]
[null,"Hébergement du site web",{"v":500,"d":"500.00 €"},{"v":500,"d":"500.00 €"},{"v":500,"d":"500.00 €"},{"v":500,"d":"500.00 €"},{"v":500,"d":"500.00 €"},{"v":500,"d":"500.00 €"},{"$nulls":6},{"$f":"SUM(C22:N22)","v":{"v":3000,"d":"3,000.00 €"}}]
[null,"Mises à jour du site web",{"v":200,"d":"200.00 €"},{"v":200,"d":"200.00 €"},{"v":200,"d":"200.00 €"},{"v":200,"d":"200.00 €"},{"v":200,"d":"200.00 €"},{"v":1500,"d":"1,500.00 €"},{"$nulls":6},{"v":2500,"d":"2,500.00 €"}]
[null,"Préparation contrat de garantie",{"v":4800,"d":"4,800.00 €"},{"v":0,"d":"0.00 €"},{"v":0,"d":"0.00 €"},{"v":5500,"d":"5,500.00 €"},{"v":0,"d":"0.00 €"},{"v":0,"d":"0.00 €"},{"$nulls":6},{"v":10300,"d":"10,300.00 €"}]
[null,"Impression contrat de garantie",{"v":100,"d":"100.00 €"},{"v":500,"d":"500.00 €"},{"v":100,"d":"100.00 €"},{"v":100,"d":"100.00 €"},{"v":600,"d":"600.00 €"},{"v":180,"d":"180.00 €"},{"$nulls":6},{"v":1580,"d":"1,580.00 €"}]
[null,"Événements marketing",{"v":1800,"d":"1,800.00 €"},{"v":2200,"d":"2,200.00 €"},{"v":2200,"d":"2,200.00 €"},{"v":4700,"d":"4,700.00 €"},{"v":1500,"d":"1,500.00 €"},{"v":2300,"d":"2,300.00 €"},{"$nulls":6},{"v":14700,"d":"14,700.00 €"}]
[null,"Dépenses diverses",{"v":145,"d":"145.00 €"},{"v":156,"d":"156.00 €"},{"v":123,"d":"123.00 €"},{"v":223,"d":"223.00 €"},{"v":187,"d":"187.00 €"},{"v":245,"d":"245.00 €"},{"$nulls":6},{"v":1079,"d":"1,079.00 €"}]
[null,"Sous-total",{"$f":"SUBTOTAL(109,DépensesRéellesMarketing[Jan])","v":{"v":7545,"d":"7,545.00 €"}},{"$f":"SUBTOTAL(109,DépensesRéellesMarketing[Fév])","v":{"v":3556,"d":"3,556.00 €"}},{"$f":"SUBTOTAL(109,DépensesRéellesMarketing[Mar])","v":{"v":3123,"d":"3,123.00 €"}},{"$f":"SUBTOTAL(109,DépensesRéellesMarketing[Avr])","v":{"v":11223,"d":"11,223.00 €"}},{"$f":"SUBTOTAL(109,DépensesRéellesMarketing[Mai])","v":{"v":2987,"d":"2,987.00 €"}},{"$f":"SUBTOTAL(109,DépensesRéellesMarketing[Juin])","v":{"v":4725,"d":"4,725.00 €"}},{"$f":"SUBTOTAL(109,DépensesRéellesMarketing[Juil])","v":{"v":0,"d":"0.00 €"}},{"$f":"SUBTOTAL(109,DépensesRéellesMarketing[Août])","v":{"v":0,"d":"0.00 €"}},{"$f":"SUBTOTAL(109,DépensesRéellesMarketing[Sept])","v":{"v":0,"d":"0.00 €"}},{"$f":"SUBTOTAL(109,DépensesRéellesMarketing[Oct])","v":{"v":0,"d":"0.00 €"}},{"$f":"SUBTOTAL(109,DépensesRéellesMarketing[Nov])","v":{"v":0,"d":"0.00 €"}},{"$f":"SUBTOTAL(109,DépensesRéellesMarketing[Déc])","v":{"v":0,"d":"0.00 €"}},{"$f":"SUBTOTAL(109,DépensesRéellesMarketing[ANNÉE])","v":{"v":33159,"d":"33,159.00 €"}}]
[]
["Entrez les coûts relatifs à la formation ou aux déplacements dans la table Dépenses réelles formation et déplacements en commençant par la cellule de droite. L’instruction suivante figure dans la cellule A35.","Formation/Déplacements","Jan","Fév","Mar","Avr","Mai","Juin","Juil","Août","Sept","Oct","Nov","Déc","ANNÉE"]
[null,"Sessions de formation",{"v":1600,"d":"1,600.00 €"},{"v":2400,"d":"2,400.00 €"},{"v":1400,"d":"1,400.00 €"},{"v":1600,"d":"1,600.00 €"},{"v":1200,"d":"1,200.00 €"},{"v":2800,"d":"2,800.00 €"},{"$nulls":6},{"$f":"SUM(C31:N31)","v":{"v":11000,"d":"11,000.00 €"}}]
[null,"Frais de déplacement liés aux formations",{"v":1200,"d":"1,200.00 €"},{"v":2200,"d":"2,200.00 €"},{"v":1400,"d":"1,400.00 €"},{"v":1200,"d":"1,200.00 €"},{"v":800,"d":"800.00 €"},{"v":3500,"d":"3,500.00 €"},{"$nulls":6},{"$f":"SUM(C32:N32)","v":{"v":10300,"d":"10,300.00 €"}}]
[null,"Sous-total",{"$f":"SUBTOTAL(109,DépensesRéellesFormationEtDéplacements[Jan])","v":{"v":2800,"d":"2,800.00 €"}},{"$f":"SUBTOTAL(109,DépensesRéellesFormationEtDéplacements[Fév])","v":{"v":4600,"d":"4,600.00 €"}},{"$f":"SUBTOTAL(109,DépensesRéellesFormationEtDéplacements[Mar])","v":{"v":2800,"d":"2,800.00 €"}},{"$f":"SUBTOTAL(109,DépensesRéellesFormationEtDéplacements[Avr])","v":{"v":2800,"d":"2,800.00 €"}},{"$f":"SUBTOTAL(109,DépensesRéellesFormationEtDéplacements[Mai])","v":{"v":2000,"d":"2,000.00 €"}},{"$f":"SUBTOTAL(109,DépensesRéellesFormationEtDéplacements[Juin])","v":{"v":6300,"d":"6,300.00 €"}},{"$f":"SUBTOTAL(109,DépensesRéellesFormationEtDéplacements[Juil])","v":{"v":0,"d":"0.00 €"}},{"$f":"SUBTOTAL(109,DépensesRéellesFormationEtDéplacements[Août])","v":{"v":0,"d":"0.00 €"}},{"$f":"SUBTOTAL(109,DépensesRéellesFormationEtDéplacements[Sept])","v":{"v":0,"d":"0.00 €"}},{"$f":"SUBTOTAL(109,DépensesRéellesFormationEtDéplacements[Oct])","v":{"v":0,"d":"0.00 €"}},{"$f":"SUBTOTAL(109,DépensesRéellesFormationEtDéplacements[Nov])","v":{"v":0,"d":"0.00 €"}},{"$f":"SUBTOTAL(109,DépensesRéellesFormationEtDéplacements[Déc])","v":{"v":0,"d":"0.00 €"}},{"$f":"SUBTOTAL(109,DépensesRéellesFormationEtDéplacements[ANNÉE])","v":{"v":21300,"d":"21,300.00 €"}}]
[]
["Le total des dépenses réelles est calculé dans la table Total dépenses réelles en commençant par la cellule de droite.","TOTAL des dépenses prévues","Jan","Fév","Mar","Avr","Mai","Juin","Juil","Août","Sept","Oct","Nov","Déc","Année"]
[null,"Dépenses réelles mensuelles",{"$f":"DépensesRéellesFormationEtDéplacements[[#Totals],[Jan]]+DépensesRéellesMarketing[[#Totals],[Jan]]+DépensesRéellesBureau[[#Totals],[Jan]]+DépensesRéellesEmployés[[#Totals],[Jan]]","v":{"v":129682,"d":"129,682.00 €"}},{"$f":"DépensesRéellesFormationEtDéplacements[[#Totals],[Fév]]+DépensesRéellesMarketing[[#Totals],[Fév]]+DépensesRéellesBureau[[#Totals],[Fév]]+DépensesRéellesEmployés[[#Totals],[Fév]]","v":{"v":127804,"d":"127,804.00 €"}},{"$f":"DépensesRéellesFormationEtDéplacements[[#Totals],[Mar]]+DépensesRéellesMarketing[[#Totals],[Mar]]+DépensesRéellesBureau[[#Totals],[Mar]]+DépensesRéellesEmployés[[#Totals],[Mar]]","v":{"v":125565,"d":"125,565.00 €"}},{"$f":"DépensesRéellesFormationEtDéplacements[[#Totals],[Avr]]+DépensesRéellesMarketing[[#Totals],[Avr]]+DépensesRéellesBureau[[#Totals],[Avr]]+DépensesRéellesEmployés[[#Totals],[Avr]]","v":{"v":137394,"d":"137,394.00 €"}},{"$f":"DépensesRéellesFormationEtDéplacements[[#Totals],[Mai]]+DépensesRéellesMarketing[[#Totals],[Mai]]+DépensesRéellesBureau[[#Totals],[Mai]]+DépensesRéellesEmployés[[#Totals],[Mai]]","v":{"v":128255,"d":"128,255.00 €"}},{"$f":"DépensesRéellesFormationEtDéplacements[[#Totals],[Juin]]+DépensesRéellesMarketing[[#Totals],[Juin]]+DépensesRéellesBureau[[#Totals],[Juin]]+DépensesRéellesEmployés[[#Totals],[Juin]]","v":{"v":134239,"d":"134,239.00 €"}},{"$f":"DépensesRéellesFormationEtDéplacements[[#Totals],[Juil]]+DépensesRéellesMarketing[[#Totals],[Juil]]+DépensesRéellesBureau[[#Totals],[Juil]]+DépensesRéellesEmployés[[#Totals],[Juil]]","v":{"v":0,"d":"0.00 €"}},{"$f":"DépensesRéellesFormationEtDéplacements[[#Totals],[Août]]+DépensesRéellesMarketing[[#Totals],[Août]]+DépensesRéellesBureau[[#Totals],[Août]]+DépensesRéellesEmployés[[#Totals],[Août]]","v":{"v":0,"d":"0.00 €"}},{"$f":"DépensesRéellesFormationEtDéplacements[[#Totals],[Sept]]+DépensesRéellesMarketing[[#Totals],[Sept]]+DépensesRéellesBureau[[#Totals],[Sept]]+DépensesRéellesEmployés[[#Totals],[Sept]]","v":{"v":0,"d":"0.00 €"}},{"$f":"DépensesRéellesFormationEtDéplacements[[#Totals],[Oct]]+DépensesRéellesMarketing[[#Totals],[Oct]]+DépensesRéellesBureau[[#Totals],[Oct]]+DépensesRéellesEmployés[[#Totals],[Oct]]","v":{"v":0,"d":"0.00 €"}},{"$f":"DépensesRéellesFormationEtDéplacements[[#Totals],[Nov]]+DépensesRéellesMarketing[[#Totals],[Nov]]+DépensesRéellesBureau[[#Totals],[Nov]]+DépensesRéellesEmployés[[#Totals],[Nov]]","v":{"v":0,"d":"0.00 €"}},{"$f":"DépensesRéellesFormationEtDéplacements[[#Totals],[Déc]]+DépensesRéellesMarketing[[#Totals],[Déc]]+DépensesRéellesBureau[[#Totals],[Déc]]+DépensesRéellesEmployés[[#Totals],[Déc]]","v":{"v":0,"d":"0.00 €"}},{"$f":"DépensesRéellesFormationEtDéplacements[[#Totals],[ANNÉE]]+DépensesRéellesMarketing[[#Totals],[ANNÉE]]+DépensesRéellesBureau[[#Totals],[ANNÉE]]+DépensesRéellesEmployés[[#Totals],[ANNÉE]]","v":{"v":782939,"d":"782,939.00 €"}}]
[null,"TOTAL des dépenses réelles",{"$f":"SUM($C$36:C36)","v":{"v":129682,"d":"129,682.00 €"}},{"$f":"SUM($C$36:D36)","v":{"v":257486,"d":"257,486.00 €"}},{"$f":"SUM($C$36:E36)","v":{"v":383051,"d":"383,051.00 €"}},{"$f":"SUM($C$36:F36)","v":{"v":520445,"d":"520,445.00 €"}},{"$f":"SUM($C$36:G36)","v":{"v":648700,"d":"648,700.00 €"}},{"$f":"SUM($C$36:H36)","v":{"v":782939,"d":"782,939.00 €"}},{"$f":"SUM($C$36:I36)","v":{"v":782939,"d":"782,939.00 €"}},{"$f":"SUM($C$36:J36)","v":{"v":782939,"d":"782,939.00 €"}},{"$f":"SUM($C$36:K36)","v":{"v":782939,"d":"782,939.00 €"}},{"$f":"SUM($C$36:L36)","v":{"v":782939,"d":"782,939.00 €"}},{"$f":"SUM($C$36:M36)","v":{"v":782939,"d":"782,939.00 €"}},{"$f":"SUM($C$36:N36)","v":{"v":782939,"d":"782,939.00 €"}}]

{"sheet":"ÉCARTS DE DÉPENSES","index":3,"n_rows":37,"n_cols":16,"rows_kept":37,"merged":[[1,1,2,3],[1,10,1,12],[1,13,2,14],[2,10,2,12],[8,1,8,2],[19,1,19,2],[28,1,28,2],[33,1,33,2]]}
["Les écarts de dépenses sont automatiquement calculés dans les tables les Coûts employés, Coûts bureau, Coûts marketing et Coûts formation/déplacements de cette feuille de calcul. Des instructions utiles sur l’utilisation de cette feuille de calcul sont disponibles dans les cellules dans cette colonne. Appuyez sur la flèche Bas pour commencer.",{"$nulls":14}," "]
["Le nom de la société est automatiquement mis à jour dans la cellule de droite. Le titre de cette feuille de calcul figure dans la cellule K2. Entrez le logo dans la cellule N2.",{"$f":"'DÉPENSES PRÉVUES'!B2:D3","v":"Nom de la société"},{"$nulls":8},{"$f":"titre_feuille_de_calcul","v":"Détail des dépenses prévues"},null,null,"L’espace réservé au logo figure dans cette cellule."]
["Un conseil apparaît dans la cellule K3.",{"$nulls":9},"Les cellules ombrées correspondent aux calculs."]
["L’étiquette Écarts de dépenses se trouve dans la cellule de droite, les mois dans les cellules C4 à N4 et l’étiquette Année dans la cellule O4.","ÉCARTS DE DÉPENSES","JAN","FÉV","MAR","AVR","MAI","JUIN","JUIL","AOÛ","SEPT","OCT","NOV","DÉC","ANNÉE"]
["L’écart relatif aux coûts employés est automatiquement calculé dans la table Écarts employés en commençant par la cellule de droite. L’instruction suivante figure dans la cellule A10.","Coûts employés","Jan","Fév","Mar","Avr","Mai","Juin","Juil","Août","Sept","Oct","Nov","Déc","ANNÉE"]
[null,"Salaires",{"$f":"INDEX(PrévisionsEmployés[],MATCH(INDEX(ÉcartsEmployés[],ROW()-ROW(ÉcartsEmployés[[#Headers],[Jan]]),1),INDEX(PrévisionsEmployés[],,1),0),MATCH(ÉcartsEmployés[[#Headers],[Jan]],PrévisionsEmployés[#Headers],0))-INDEX(DépensesRéellesEmployés[],MATCH(INDEX(ÉcartsEmployés[],ROW()-ROW(ÉcartsEmployés[[#Headers],[Jan]]),1),INDEX(PrévisionsEmployés[],,1),0),MATCH(ÉcartsEmployés[[#Headers],[Jan]],DépensesRéellesEmployés[#Headers],0))","v":{"v":0,"d":"0.00 €"}},{"$f":"INDEX(PrévisionsEmployés[],MATCH(INDEX(ÉcartsEmployés[],ROW()-ROW(ÉcartsEmployés[[#Headers],[Fév]]),1),INDEX(PrévisionsEmployés[],,1),0),MATCH(ÉcartsEmployés[[#Headers],[Fév]],PrévisionsEmployés[#Headers],0))-INDEX(DépensesRéellesEmployés[],MATCH(INDEX(ÉcartsEmployés[],ROW()-ROW(ÉcartsEmployés[[#Headers],[Fév]]),1),INDEX(PrévisionsEmployés[],,1),0),MATCH(ÉcartsEmployés[[#Headers],[Fév]],DépensesRéellesEmployés[#Headers],0))","v":{"v":0,"d":"0.00 €"}},{"$f":"INDEX(PrévisionsEmployés[],MATCH(INDEX(ÉcartsEmployés[],ROW()-ROW(ÉcartsEmployés[[#Headers],[Mar]]),1),INDEX(PrévisionsEmployés[],,1),0),MATCH(ÉcartsEmployés[[#Headers],[Mar]],PrévisionsEmployés[#Headers],0))-INDEX(DépensesRéellesEmployés[],MATCH(INDEX(ÉcartsEmployés[],ROW()-ROW(ÉcartsEmployés[[#Headers],[Mar]]),1),INDEX(PrévisionsEmployés[],,1),0),MATCH(ÉcartsEmployés[[#Headers],[Mar]],DépensesRéellesEmployés[#Headers],0))","v":{"v":0,"d":"0.00 €"}},{"$f":"INDEX(PrévisionsEmployés[],MATCH(INDEX(ÉcartsEmployés[],ROW()-ROW(ÉcartsEmployés[[#Headers],[Avr]]),1),INDEX(PrévisionsEmployés[],,1),0),MATCH(ÉcartsEmployés[[#Headers],[Avr]],PrévisionsEmployés[#Headers],0))-INDEX(DépensesRéellesEmployés[],MATCH(INDEX(ÉcartsEmployés[],ROW()-ROW(ÉcartsEmployés[[#Headers],[Avr]]),1),INDEX(PrévisionsEmployés[],,1),0),MATCH(ÉcartsEmployés[[#Headers],[Avr]],DépensesRéellesEmployés[#Headers],0))","v":{"v":-500,"d":"-500.00 €"}},{"$f":"INDEX(PrévisionsEmployés[],MATCH(INDEX(ÉcartsEmployés[],ROW()-ROW(ÉcartsEmployés[[#Headers],[Mai]]),1),INDEX(PrévisionsEmployés[],,1),0),MATCH(ÉcartsEmployés[[#Headers],[Mai]],PrévisionsEmployés[#Headers],0))-INDEX(DépensesRéellesEmployés[],MATCH(INDEX(ÉcartsEmployés[],ROW()-ROW(ÉcartsEmployés[[#Headers],[Mai]]),1),INDEX(PrévisionsEmployés[],,1),0),MATCH(ÉcartsEmployés[[#Headers],[Mai]],DépensesRéellesEmployés[#Headers],0))","v":{"v":-500,"d":"-500.00 €"}},{"$f":"INDEX(PrévisionsEmployés[],MATCH(INDEX(ÉcartsEmployés[],ROW()-ROW(ÉcartsEmployés[[#Headers],[Juin]]),1),INDEX(PrévisionsEmployés[],,1),0),MATCH(ÉcartsEmployés[[#Headers],[Juin]],PrévisionsEmployés[#Headers],0))-INDEX(DépensesRéellesEmployés[],MATCH(INDEX(ÉcartsEmployés[],ROW()-ROW(ÉcartsEmployés[[#Headers],[Juin]]),1),INDEX(PrévisionsEmployés[],,1),0),MATCH(ÉcartsEmployés[[#Headers],[Juin]],DépensesRéellesEmployés[#Headers],0))","v":{"v":-500,"d":"-500.00 €"}},{"$f":"INDEX(PrévisionsEmployés[],MATCH(INDEX(ÉcartsEmployés[],ROW()-ROW(ÉcartsEmployés[[#Headers],[Juil]]),1),INDEX(PrévisionsEmployés[],,1),0),MATCH(ÉcartsEmployés[[#Headers],[Juil]],PrévisionsEmployés[#Headers],0))-INDEX(DépensesRéellesEmployés[],MATCH(INDEX(ÉcartsEmployés[],ROW()-ROW(ÉcartsEmployés[[#Headers],[Juil]]),1),INDEX(PrévisionsEmployés[],,1),0),MATCH(ÉcartsEmployés[[#Headers],[Juil]],DépensesRéellesEmployés[#Headers],0))","v":{"v":87500,"d":"87,500.00 €"}},{"$f":"INDEX(PrévisionsEmployés[],MATCH(INDEX(ÉcartsEmployés[],ROW()-ROW(ÉcartsEmployés[[#Headers],[Août]]),1),INDEX(PrévisionsEmployés[],,1),0),MATCH(ÉcartsEmployés[[#Headers],[Août]],PrévisionsEmployés[#Headers],0))-INDEX(DépensesRéellesEmployés[],MATCH(INDEX(ÉcartsEmployés[],ROW()-ROW(ÉcartsEmployés[[#Headers],[Août]]),1),INDEX(PrévisionsEmployés[],,1),0),MATCH(ÉcartsEmployés[[#Headers],[Août]],DépensesRéellesEmployés[#Headers],0))","v":{"v":92400,"d":"92,400.00 €"}},{"$f":"INDEX(PrévisionsEmployés[],MATCH(INDEX(ÉcartsEmployés[],ROW()-ROW(ÉcartsEmployés[[#Headers],[Sept]]),1),INDEX(PrévisionsEmployés[],,1),0),MATCH(ÉcartsEmployés[[#Headers],[Sept]],PrévisionsEmployés[#Headers],0))-INDEX(DépensesRéellesEmployés[],MATCH(INDEX(ÉcartsEmployés[],ROW()-ROW(ÉcartsEmployés[[#Headers],[Sept]]),1),INDEX(PrévisionsEmployés[],,1),0),MATCH(ÉcartsEmployés[[#Headers],[Sept]],DépensesRéellesEmployés[#Headers],0))","v":{"v":92400,"d":"92,400.00 €"}},{"$f":"INDEX(PrévisionsEmployés[],MATCH(INDEX(ÉcartsEmployés[],ROW()-ROW(ÉcartsEmployés[[#Headers],[Oct]]),1),INDEX(PrévisionsEmployés[],,1),0),MATCH(ÉcartsEmployés[[#Headers],[Oct]],PrévisionsEmployés[#Headers],0))-INDEX(DépensesRéellesEmployés[],MATCH(INDEX(ÉcartsEmployés[],ROW()-ROW(ÉcartsEmployés[[#Headers],[Oct]]),1),INDEX(PrévisionsEmployés[],,1),0),MATCH(ÉcartsEmployés[[#Headers],[Oct]],DépensesRéellesEmployés[#Headers],0))","v":{"v":92400,"d":"92,400.00 €"}},{"$f":"INDEX(PrévisionsEmployés[],MATCH(INDEX(ÉcartsEmployés[],ROW()-ROW(ÉcartsEmployés[[#Headers],[Nov]]),1),INDEX(PrévisionsEmployés[],,1),0),MATCH(ÉcartsEmployés[[#Headers],[Nov]],PrévisionsEmployés[#Headers],0))-INDEX(DépensesRéellesEmployés[],MATCH(INDEX(ÉcartsEmployés[],ROW()-ROW(ÉcartsEmployés[[#Headers],[Nov]]),1),INDEX(PrévisionsEmployés[],,1),0),MATCH(ÉcartsEmployés[[#Headers],[Nov]],DépensesRéellesEmployés[#Headers],0))","v":{"v":92400,"d":"92,400.00 €"}},{"$f":"INDEX(PrévisionsEmployés[],MATCH(INDEX(ÉcartsEmployés[],ROW()-ROW(ÉcartsEmployés[[#Headers],[Déc]]),1),INDEX(PrévisionsEmployés[],,1),0),MATCH(ÉcartsEmployés[[#Headers],[Déc]],PrévisionsEmployés[#Headers],0))-INDEX(DépensesRéellesEmployés[],MATCH(INDEX(ÉcartsEmployés[],ROW()-ROW(ÉcartsEmployés[[#Headers],[Déc]]),1),INDEX(PrévisionsEmployés[],,1),0),MATCH(ÉcartsEmployés[[#Headers],[Déc]],DépensesRéellesEmployés[#Headers],0))","v":{"v":92400,"d":"92,400.00 €"}},{"$f":"SUM(ÉcartsEmployés[[#This Row],[Jan]:[Déc]])","v":{"v":548000,"d":"548,000.00 €"}}]
[null,"Bénéfices",{"$f":"INDEX(PrévisionsEmployés[],MATCH(INDEX(ÉcartsEmployés[],ROW()-ROW(ÉcartsEmployés[[#Headers],[Jan]]),1),INDEX(PrévisionsEmployés[],,1),0),MATCH(ÉcartsEmployés[[#Headers],[Jan]],PrévisionsEmployés[#Headers],0))-INDEX(DépensesRéellesEmployés[],MATCH(INDEX(ÉcartsEmployés[],ROW()-ROW(ÉcartsEmployés[[#Headers],[Jan]]),1),INDEX(PrévisionsEmployés[],,1),0),MATCH(ÉcartsEmployés[[#Headers],[Jan]],DépensesRéellesEmployés[#Headers],0))","v":{"v":0,"d":"0.00 €"}},{"$f":"INDEX(PrévisionsEmployés[],MATCH(INDEX(ÉcartsEmployés[],ROW()-ROW(ÉcartsEmployés[[#Headers],[Fév]]),1),INDEX(PrévisionsEmployés[],,1),0),MATCH(ÉcartsEmployés[[#Headers],[Fév]],PrévisionsEmployés[#Headers],0))-INDEX(DépensesRéellesEmployés[],MATCH(INDEX(ÉcartsEmployés[],ROW()-ROW(ÉcartsEmployés[[#Headers],[Fév]]),1),INDEX(PrévisionsEmployés[],,1),0),MATCH(ÉcartsEmployés[[#Headers],[Fév]],DépensesRéellesEmployés[#Headers],0))","v":{"v":0,"d":"0.00 €"}},{"$f":"INDEX(PrévisionsEmployés[],MATCH(INDEX(ÉcartsEmployés[],ROW()-ROW(ÉcartsEmployés[[#Headers],[Mar]]),1),INDEX(PrévisionsEmployés[],,1),0),MATCH(ÉcartsEmployés[[#Headers],[Mar]],PrévisionsEmployés[#Headers],0))-INDEX(DépensesRéellesEmployés[],MATCH(INDEX(ÉcartsEmployés[],ROW()-ROW(ÉcartsEmployés[[#Headers],[Mar]]),1),INDEX(PrévisionsEmployés[],,1),0),MATCH(ÉcartsEmployés[[#Headers],[Mar]],DépensesRéellesEmployés[#Headers],0))","v":{"v":0,"d":"0.00 €"}},{"$f":"INDEX(PrévisionsEmployés[],MATCH(INDEX(ÉcartsEmployés[],ROW()-ROW(ÉcartsEmployés[[#Headers],[Avr]]),1),INDEX(PrévisionsEmployés[],,1),0),MATCH(ÉcartsEmployés[[#Headers],[Avr]],PrévisionsEmployés[#Headers],0))-INDEX(DépensesRéellesEmployés[],MATCH(INDEX(ÉcartsEmployés[],ROW()-ROW(ÉcartsEmployés[[#Headers],[Avr]]),1),INDEX(PrévisionsEmployés[],,1),0),MATCH(ÉcartsEmployés[[#Headers],[Avr]],DépensesRéellesEmployés[#Headers],0))","v":{"v":-135,"d":"-135.00 €"}},{"$f":"INDEX(PrévisionsEmployés[],MATCH(INDEX(ÉcartsEmployés[],ROW()-ROW(ÉcartsEmployés[[#Headers],[Mai]]),1),INDEX(PrévisionsEmployés[],,1),0),MATCH(ÉcartsEmployés[[#Headers],[Mai]],PrévisionsEmployés[#Headers],0))-INDEX(DépensesRéellesEmployés[],MATCH(INDEX(ÉcartsEmployés[],ROW()-ROW(ÉcartsEmployés[[#Headers],[Mai]]),1),INDEX(PrévisionsEmployés[],,1),0),MATCH(ÉcartsEmployés[[#Headers],[Mai]],DépensesRéellesEmployés[#Headers],0))","v":{"v":-135,"d":"-135.00 €"}},{"$f":"INDEX(PrévisionsEmployés[],MATCH(INDEX(ÉcartsEmployés[],ROW()-ROW(ÉcartsEmployés[[#Headers],[Juin]]),1),INDEX(PrévisionsEmployés[],,1),0),MATCH(ÉcartsEmployés[[#Headers],[Juin]],PrévisionsEmployés[#Headers],0))-INDEX(DépensesRéellesEmployés[],MATCH(INDEX(ÉcartsEmployés[],ROW()-ROW(ÉcartsEmployés[[#Headers],[Juin]]),1),INDEX(PrévisionsEmployés[],,1),0),MATCH(ÉcartsEmployés[[#Headers],[Juin]],DépensesRéellesEmployés[#Headers],0))","v":{"v":-135,"d":"-135.00 €"}},{"$f":"INDEX(PrévisionsEmployés[],MATCH(INDEX(ÉcartsEmployés[],ROW()-ROW(ÉcartsEmployés[[#Headers],[Juil]]),1),INDEX(PrévisionsEmployés[],,1),0),MATCH(ÉcartsEmployés[[#Headers],[Juil]],PrévisionsEmployés[#Headers],0))-INDEX(DépensesRéellesEmployés[],MATCH(INDEX(ÉcartsEmployés[],ROW()-ROW(ÉcartsEmployés[[#Headers],[Juil]]),1),INDEX(PrévisionsEmployés[],,1),0),MATCH(ÉcartsEmployés[[#Headers],[Juil]],DépensesRéellesEmployés[#Headers],0))","v":{"v":23625,"d":"23,625.00 €"}},{"$f":"INDEX(PrévisionsEmployés[],MATCH(INDEX(ÉcartsEmployés[],ROW()-ROW(ÉcartsEmployés[[#Headers],[Août]]),1),INDEX(PrévisionsEmployés[],,1),0),MATCH(ÉcartsEmployés[[#Headers],[Août]],PrévisionsEmployés[#Headers],0))-INDEX(DépensesRéellesEmployés[],MATCH(INDEX(ÉcartsEmployés[],ROW()-ROW(ÉcartsEmployés[[#Headers],[Août]]),1),INDEX(PrévisionsEmployés[],,1),0),MATCH(ÉcartsEmployés[[#Headers],[Août]],DépensesRéellesEmployés[#Headers],0))","v":{"v":24948,"d":"24,948.00 €"}},{"$f":"INDEX(PrévisionsEmployés[],MATCH(INDEX(ÉcartsEmployés[],ROW()-ROW(ÉcartsEmployés[[#Headers],[Sept]]),1),INDEX(PrévisionsEmployés[],,1),0),MATCH(ÉcartsEmployés[[#Headers],[Sept]],PrévisionsEmployés[#Headers],0))-INDEX(DépensesRéellesEmployés[],MATCH(INDEX(ÉcartsEmployés[],ROW()-ROW(ÉcartsEmployés[[#Headers],[Sept]]),1),INDEX(PrévisionsEmployés[],,1),0),MATCH(ÉcartsEmployés[[#Headers],[Sept]],DépensesRéellesEmployés[#Headers],0))","v":{"v":24948,"d":"24,948.00 €"}},{"$f":"INDEX(PrévisionsEmployés[],MATCH(INDEX(ÉcartsEmployés[],ROW()-ROW(ÉcartsEmployés[[#Headers],[Oct]]),1),INDEX(PrévisionsEmployés[],,1),0),MATCH(ÉcartsEmployés[[#Headers],[Oct]],PrévisionsEmployés[#Headers],0))-INDEX(DépensesRéellesEmployés[],MATCH(INDEX(ÉcartsEmployés[],ROW()-ROW(ÉcartsEmployés[[#Headers],[Oct]]),1),INDEX(PrévisionsEmployés[],,1),0),MATCH(ÉcartsEmployés[[#Headers],[Oct]],DépensesRéellesEmployés[#Headers],0))","v":{"v":24948,"d":"24,948.00 €"}},{"$f":"INDEX(PrévisionsEmployés[],MATCH(INDEX(ÉcartsEmployés[],ROW()-ROW(ÉcartsEmployés[[#Headers],[Nov]]),1),INDEX(PrévisionsEmployés[],,1),0),MATCH(ÉcartsEmployés[[#Headers],[Nov]],PrévisionsEmployés[#Headers],0))-INDEX(DépensesRéellesEmployés[],MATCH(INDEX(ÉcartsEmployés[],ROW()-ROW(ÉcartsEmployés[[#Headers],[Nov]]),1),INDEX(PrévisionsEmployés[],,1),0),MATCH(ÉcartsEmployés[[#Headers],[Nov]],DépensesRéellesEmployés[#Headers],0))","v":{"v":24948,"d":"24,948.00 €"}},{"$f":"INDEX(PrévisionsEmployés[],MATCH(INDEX(ÉcartsEmployés[],ROW()-ROW(ÉcartsEmployés[[#Headers],[Déc]]),1),INDEX(PrévisionsEmployés[],,1),0),MATCH(ÉcartsEmployés[[#Headers],[Déc]],PrévisionsEmployés[#Headers],0))-INDEX(DépensesRéellesEmployés[],MATCH(INDEX(ÉcartsEmployés[],ROW()-ROW(ÉcartsEmployés[[#Headers],[Déc]]),1),INDEX(PrévisionsEmployés[],,1),0),MATCH(ÉcartsEmployés[[#Headers],[Déc]],DépensesRéellesEmployés[#Headers],0))","v":{"v":24948,"d":"24,948.00 €"}},{"$f":"SUM(ÉcartsEmployés[[#This Row],[Jan]:[Déc]])","v":{"v":147960,"d":"147,960.00 €"}}]
[null,"Sous-total",{"$f":"SUBTOTAL(109,ÉcartsEmployés[Jan])","v":{"v":0,"d":"0.00 €"}},{"$f":"SUBTOTAL(109,ÉcartsEmployés[Fév])","v":{"v":0,"d":"0.00 €"}},{"$f":"SUBTOTAL(109,ÉcartsEmployés[Mar])","v":{"v":0,"d":"0.00 €"}},{"$f":"SUBTOTAL(109,ÉcartsEmployés[Avr])","v":{"v":-635,"d":"-635.00 €"}},{"$f":"SUBTOTAL(109,ÉcartsEmployés[Mai])","v":{"v":-635,"d":"-635.00 €"}},{"$f":"SUBTOTAL(109,ÉcartsEmployés[Juin])","v":{"v":-635,"d":"-635.00 €"}},{"$f":"SUBTOTAL(109,ÉcartsEmployés[Juil])","v":{"v":111125,"d":"111,125.00 €"}},{"$f":"SUBTOTAL(109,ÉcartsEmployés[Août])","v":{"v":117348,"d":"117,348.00 €"}},{"$f":"SUBTOTAL(109,ÉcartsEmployés[Sept])","v":{"v":117348,"d":"117,348.00 €"}},{"$f":"SUBTOTAL(109,ÉcartsEmployés[Oct])","v":{"v":117348,"d":"117,348.00 €"}},{"$f":"SUBTOTAL(109,ÉcartsEmployés[Nov])","v":{"v":117348,"d":"117,348.00 €"}},{"$f":"SUBTOTAL(109,ÉcartsEmployés[Déc])","v":{"v":117348,"d":"117,348.00 €"}},{"$f":"SUBTOTAL(109,ÉcartsEmployés[ANNÉE])","v":{"v":695960,"d":"695,960.00 €"}}]
[]
["L’écart relatif aux coûts bureau est automatiquement calculé dans la table Écarts bureau en commençant par la cellule de droite. L’instruction suivante figure dans la cellule A21.","Coûts bureau","Jan","Fév","Mar","Avr","Mai","Juin","Juil","Août","Sept","Oct","Nov","Déc","ANNÉE"]
[null,"Location des bureaux",{"$f":"INDEX(PrévisionsBureau[],MATCH(INDEX(ÉcartsBureau[],ROW()-ROW(ÉcartsBureau[[#Headers],[Jan]]),1),INDEX(PrévisionsBureau[],,1),0),MATCH(ÉcartsBureau[[#Headers],[Jan]],PrévisionsBureau[#Headers],0))-INDEX(DépensesRéellesBureau[],MATCH(INDEX(ÉcartsBureau[],ROW()-ROW(ÉcartsBureau[[#Headers],[Jan]]),1),INDEX(PrévisionsBureau[],,1),0),MATCH(ÉcartsBureau[[#Headers],[Jan]],DépensesRéellesBureau[#Headers],0))","v":{"v":0,"d":"0.00 €"}},{"$f":"INDEX(PrévisionsBureau[],MATCH(INDEX(ÉcartsBureau[],ROW()-ROW(ÉcartsBureau[[#Headers],[Fév]]),1),INDEX(PrévisionsBureau[],,1),0),MATCH(ÉcartsBureau[[#Headers],[Fév]],PrévisionsBureau[#Headers],0))-INDEX(DépensesRéellesBureau[],MATCH(INDEX(ÉcartsBureau[],ROW()-ROW(ÉcartsBureau[[#Headers],[Fév]]),1),INDEX(PrévisionsBureau[],,1),0),MATCH(ÉcartsBureau[[#Headers],[Fév]],DépensesRéellesBureau[#Headers],0))","v":{"v":0,"d":"0.00 €"}},{"$f":"INDEX(PrévisionsBureau[],MATCH(INDEX(ÉcartsBureau[],ROW()-ROW(ÉcartsBureau[[#Headers],[Mar]]),1),INDEX(PrévisionsBureau[],,1),0),MATCH(ÉcartsBureau[[#Headers],[Mar]],PrévisionsBureau[#Headers],0))-INDEX(DépensesRéellesBureau[],MATCH(INDEX(ÉcartsBureau[],ROW()-ROW(ÉcartsBureau[[#Headers],[Mar]]),1),INDEX(PrévisionsBureau[],,1),0),MATCH(ÉcartsBureau[[#Headers],[Mar]],DépensesRéellesBureau[#Headers],0))","v":{"v":0,"d":"0.00 €"}},{"$f":"INDEX(PrévisionsBureau[],MATCH(INDEX(ÉcartsBureau[],ROW()-ROW(ÉcartsBureau[[#Headers],[Avr]]),1),INDEX(PrévisionsBureau[],,1),0),MATCH(ÉcartsBureau[[#Headers],[Avr]],PrévisionsBureau[#Headers],0))-INDEX(DépensesRéellesBureau[],MATCH(INDEX(ÉcartsBureau[],ROW()-ROW(ÉcartsBureau[[#Headers],[Avr]]),1),INDEX(PrévisionsBureau[],,1),0),MATCH(ÉcartsBureau[[#Headers],[Avr]],DépensesRéellesBureau[#Headers],0))","v":{"v":0,"d":"0.00 €"}},{"$f":"INDEX(PrévisionsBureau[],MATCH(INDEX(ÉcartsBureau[],ROW()-ROW(ÉcartsBureau[[#Headers],[Mai]]),1),INDEX(PrévisionsBureau[],,1),0),MATCH(ÉcartsBureau[[#Headers],[Mai]],PrévisionsBureau[#Headers],0))-INDEX(DépensesRéellesBureau[],MATCH(INDEX(ÉcartsBureau[],ROW()-ROW(ÉcartsBureau[[#Headers],[Mai]]),1),INDEX(PrévisionsBureau[],,1),0),MATCH(ÉcartsBureau[[#Headers],[Mai]],DépensesRéellesBureau[#Headers],0))","v":{"v":0,"d":"0.00 €"}},{"$f":"INDEX(PrévisionsBureau[],MATCH(INDEX(ÉcartsBureau[],ROW()-ROW(ÉcartsBureau[[#Headers],[Juin]]),1),INDEX(PrévisionsBureau[],,1),0),MATCH(ÉcartsBureau[[#Headers],[Juin]],PrévisionsBureau[#Headers],0))-INDEX(DépensesRéellesBureau[],MATCH(INDEX(ÉcartsBureau[],ROW()-ROW(ÉcartsBureau[[#Headers],[Juin]]),1),INDEX(PrévisionsBureau[],,1),0),MATCH(ÉcartsBureau[[#Headers],[Juin]],DépensesRéellesBureau[#Headers],0))","v":{"v":0,"d":"0.00 €"}},{"$f":"INDEX(PrévisionsBureau[],MATCH(INDEX(ÉcartsBureau[],ROW()-ROW(ÉcartsBureau[[#Headers],[Juil]]),1),INDEX(PrévisionsBureau[],,1),0),MATCH(ÉcartsBureau[[#Headers],[Juil]],PrévisionsBureau[#Headers],0))-INDEX(DépensesRéellesBureau[],MATCH(INDEX(ÉcartsBureau[],ROW()-ROW(ÉcartsBureau[[#Headers],[Juil]]),1),INDEX(PrévisionsBureau[],,1),0),MATCH(ÉcartsBureau[[#Headers],[Juil]],DépensesRéellesBureau[#Headers],0))","v":{"v":9800,"d":"9,800.00 €"}},{"$f":"INDEX(PrévisionsBureau[],MATCH(INDEX(ÉcartsBureau[],ROW()-ROW(ÉcartsBureau[[#Headers],[Août]]),1),INDEX(PrévisionsBureau[],,1),0),MATCH(ÉcartsBureau[[#Headers],[Août]],PrévisionsBureau[#Headers],0))-INDEX(DépensesRéellesBureau[],MATCH(INDEX(ÉcartsBureau[],ROW()-ROW(ÉcartsBureau[[#Headers],[Août]]),1),INDEX(PrévisionsBureau[],,1),0),MATCH(ÉcartsBureau[[#Headers],[Août]],DépensesRéellesBureau[#Headers],0))","v":{"v":9800,"d":"9,800.00 €"}},{"$f":"INDEX(PrévisionsBureau[],MATCH(INDEX(ÉcartsBureau[],ROW()-ROW(ÉcartsBureau[[#Headers],[Sept]]),1),INDEX(PrévisionsBureau[],,1),0),MATCH(ÉcartsBureau[[#Headers],[Sept]],PrévisionsBureau[#Headers],0))-INDEX(DépensesRéellesBureau[],MATCH(INDEX(ÉcartsBureau[],ROW()-ROW(ÉcartsBureau[[#Headers],[Sept]]),1),INDEX(PrévisionsBureau[],,1),0),MATCH(ÉcartsBureau[[#Headers],[Sept]],DépensesRéellesBureau[#Headers],0))","v":{"v":9800,"d":"9,800.00 €"}},{"$f":"INDEX(PrévisionsBureau[],MATCH(INDEX(ÉcartsBureau[],ROW()-ROW(ÉcartsBureau[[#Headers],[Oct]]),1),INDEX(PrévisionsBureau[],,1),0),MATCH(ÉcartsBureau[[#Headers],[Oct]],PrévisionsBureau[#Headers],0))-INDEX(DépensesRéellesBureau[],MATCH(INDEX(ÉcartsBureau[],ROW()-ROW(ÉcartsBureau[[#Headers],[Oct]]),1),INDEX(PrévisionsBureau[],,1),0),MATCH(ÉcartsBureau[[#Headers],[Oct]],DépensesRéellesBureau[#Headers],0))","v":{"v":9800,"d":"9,800.00 €"}},{"$f":"INDEX(PrévisionsBureau[],MATCH(INDEX(ÉcartsBureau[],ROW()-ROW(ÉcartsBureau[[#Headers],[Nov]]),1),INDEX(PrévisionsBureau[],,1),0),MATCH(ÉcartsBureau[[#Headers],[Nov]],PrévisionsBureau[#Headers],0))-INDEX(DépensesRéellesBureau[],MATCH(INDEX(ÉcartsBureau[],ROW()-ROW(ÉcartsBureau[[#Headers],[Nov]]),1),INDEX(PrévisionsBureau[],,1),0),MATCH(ÉcartsBureau[[#Headers],[Nov]],DépensesRéellesBureau[#Headers],0))","v":{"v":9800,"d":"9,800.00 €"}},{"$f":"INDEX(PrévisionsBureau[],MATCH(INDEX(ÉcartsBureau[],ROW()-ROW(ÉcartsBureau[[#Headers],[Déc]]),1),INDEX(PrévisionsBureau[],,1),0),MATCH(ÉcartsBureau[[#Headers],[Déc]],PrévisionsBureau[#Headers],0))-INDEX(DépensesRéellesBureau[],MATCH(INDEX(ÉcartsBureau[],ROW()-ROW(ÉcartsBureau[[#Headers],[Déc]]),1),INDEX(PrévisionsBureau[],,1),0),MATCH(ÉcartsBureau[[#Headers],[Déc]],DépensesRéellesBureau[#Headers],0))","v":{"v":9800,"d":"9,800.00 €"}},{"$f":"SUM(ÉcartsBureau[[#This Row],[Jan]:[Déc]])","v":{"v":58800,"d":"58,800.00 €"}}]
[null,"Gaz",{"$f":"INDEX(PrévisionsBureau[],MATCH(INDEX(ÉcartsBureau[],ROW()-ROW(ÉcartsBureau[[#Headers],[Jan]]),1),INDEX(PrévisionsBureau[],,1),0),MATCH(ÉcartsBureau[[#Headers],[Jan]],PrévisionsBureau[#Headers],0))-INDEX(DépensesRéellesBureau[],MATCH(INDEX(ÉcartsBureau[],ROW()-ROW(ÉcartsBureau[[#Headers],[Jan]]),1),INDEX(PrévisionsBureau[],,1),0),MATCH(ÉcartsBureau[[#Headers],[Jan]],DépensesRéellesBureau[#Headers],0))","v":{"v":-4,"d":"-4.00 €"}},{"$f":"INDEX(PrévisionsBureau[],MATCH(INDEX(ÉcartsBureau[],ROW()-ROW(ÉcartsBureau[[#Headers],[Fév]]),1),INDEX(PrévisionsBureau[],,1),0),MATCH(ÉcartsBureau[[#Headers],[Fév]],PrévisionsBureau[#Headers],0))-INDEX(DépensesRéellesBureau[],MATCH(INDEX(ÉcartsBureau[],ROW()-ROW(ÉcartsBureau[[#Headers],[Fév]]),1),INDEX(PrévisionsBureau[],,1),0),MATCH(ÉcartsBureau[[#Headers],[Fév]],DépensesRéellesBureau[#Headers],0))","v":{"v":-30,"d":"-30.00 €"}},{"$f":"INDEX(PrévisionsBureau[],MATCH(INDEX(ÉcartsBureau[],ROW()-ROW(ÉcartsBureau[[#Headers],[Mar]]),1),INDEX(PrévisionsBureau[],,1),0),MATCH(ÉcartsBureau[[#Headers],[Mar]],PrévisionsBureau[#Headers],0))-INDEX(DépensesRéellesBureau[],MATCH(INDEX(ÉcartsBureau[],ROW()-ROW(ÉcartsBureau[[#Headers],[Mar]]),1),INDEX(PrévisionsBureau[],,1),0),MATCH(ÉcartsBureau[[#Headers],[Mar]],DépensesRéellesBureau[#Headers],0))","v":{"v":15,"d":"15.00 €"}},{"$f":"INDEX(PrévisionsBureau[],MATCH(INDEX(ÉcartsBureau[],ROW()-ROW(ÉcartsBureau[[#Headers],[Avr]]),1),INDEX(PrévisionsBureau[],,1),0),MATCH(ÉcartsBureau[[#Headers],[Avr]],PrévisionsBureau[#Headers],0))-INDEX(DépensesRéellesBureau[],MATCH(INDEX(ÉcartsBureau[],ROW()-ROW(ÉcartsBureau[[#Headers],[Avr]]),1),INDEX(PrévisionsBureau[],,1),0),MATCH(ÉcartsBureau[[#Headers],[Avr]],DépensesRéellesBureau[#Headers],0))","v":{"v":-130,"d":"-130.00 €"}},{"$f":"INDEX(PrévisionsBureau[],MATCH(INDEX(ÉcartsBureau[],ROW()-ROW(ÉcartsBureau[[#Headers],[Mai]]),1),INDEX(PrévisionsBureau[],,1),0),MATCH(ÉcartsBureau[[#Headers],[Mai]],PrévisionsBureau[#Headers],0))-INDEX(DépensesRéellesBureau[],MATCH(INDEX(ÉcartsBureau[],ROW()-ROW(ÉcartsBureau[[#Headers],[Mai]]),1),INDEX(PrévisionsBureau[],,1),0),MATCH(ÉcartsBureau[[#Headers],[Mai]],DépensesRéellesBureau[#Headers],0))","v":{"v":13,"d":"13.00 €"}},{"$f":"INDEX(PrévisionsBureau[],MATCH(INDEX(ÉcartsBureau[],ROW()-ROW(ÉcartsBureau[[#Headers],[Juin]]),1),INDEX(PrévisionsBureau[],,1),0),MATCH(ÉcartsBureau[[#Headers],[Juin]],PrévisionsBureau[#Headers],0))-INDEX(DépensesRéellesBureau[],MATCH(INDEX(ÉcartsBureau[],ROW()-ROW(ÉcartsBureau[[#Headers],[Juin]]),1),INDEX(PrévisionsBureau[],,1),0),MATCH(ÉcartsBureau[[#Headers],[Juin]],DépensesRéellesBureau[#Headers],0))","v":{"v":12,"d":"12.00 €"}},{"$f":"INDEX(PrévisionsBureau[],MATCH(INDEX(ÉcartsBureau[],ROW()-ROW(ÉcartsBureau[[#Headers],[Juil]]),1),INDEX(PrévisionsBureau[],,1),0),MATCH(ÉcartsBureau[[#Headers],[Juil]],PrévisionsBureau[#Headers],0))-INDEX(DépensesRéellesBureau[],MATCH(INDEX(ÉcartsBureau[],ROW()-ROW(ÉcartsBureau[[#Headers],[Juil]]),1),INDEX(PrévisionsBureau[],,1),0),MATCH(ÉcartsBureau[[#Headers],[Juil]],DépensesRéellesBureau[#Headers],0))","v":{"v":100,"d":"100.00 €"}},{"$f":"INDEX(PrévisionsBureau[],MATCH(INDEX(ÉcartsBureau[],ROW()-ROW(ÉcartsBureau[[#Headers],[Août]]),1),INDEX(PrévisionsBureau[],,1),0),MATCH(ÉcartsBureau[[#Headers],[Août]],PrévisionsBureau[#Headers],0))-INDEX(DépensesRéellesBureau[],MATCH(INDEX(ÉcartsBureau[],ROW()-ROW(ÉcartsBureau[[#Headers],[Août]]),1),INDEX(PrévisionsBureau[],,1),0),MATCH(ÉcartsBureau[[#Headers],[Août]],DépensesRéellesBureau[#Headers],0))","v":{"v":100,"d":"100.00 €"}},{"$f":"INDEX(PrévisionsBureau[],MATCH(INDEX(ÉcartsBureau[],ROW()-ROW(ÉcartsBureau[[#Headers],[Sept]]),1),INDEX(PrévisionsBureau[],,1),0),MATCH(ÉcartsBureau[[#Headers],[Sept]],PrévisionsBureau[#Headers],0))-INDEX(DépensesRéellesBureau[],MATCH(INDEX(ÉcartsBureau[],ROW()-ROW(ÉcartsBureau[[#Headers],[Sept]]),1),INDEX(PrévisionsBureau[],,1),0),MATCH(ÉcartsBureau[[#Headers],[Sept]],DépensesRéellesBureau[#Headers],0))","v":{"v":100,"d":"100.00 €"}},{"$f":"INDEX(PrévisionsBureau[],MATCH(INDEX(ÉcartsBureau[],ROW()-ROW(ÉcartsBureau[[#Headers],[Oct]]),1),INDEX(PrévisionsBureau[],,1),0),MATCH(ÉcartsBureau[[#Headers],[Oct]],PrévisionsBureau[#Headers],0))-INDEX(DépensesRéellesBureau[],MATCH(INDEX(ÉcartsBureau[],ROW()-ROW(ÉcartsBureau[[#Headers],[Oct]]),1),INDEX(PrévisionsBureau[],,1),0),MATCH(ÉcartsBureau[[#Headers],[Oct]],DépensesRéellesBureau[#Headers],0))","v":{"v":100,"d":"100.00 €"}},{"$f":"INDEX(PrévisionsBureau[],MATCH(INDEX(ÉcartsBureau[],ROW()-ROW(ÉcartsBureau[[#Headers],[Nov]]),1),INDEX(PrévisionsBureau[],,1),0),MATCH(ÉcartsBureau[[#Headers],[Nov]],PrévisionsBureau[#Headers],0))-INDEX(DépensesRéellesBureau[],MATCH(INDEX(ÉcartsBureau[],ROW()-ROW(ÉcartsBureau[[#Headers],[Nov]]),1),INDEX(PrévisionsBureau[],,1),0),MATCH(ÉcartsBureau[[#Headers],[Nov]],DépensesRéellesBureau[#Headers],0))","v":{"v":400,"d":"400.00 €"}},{"$f":"INDEX(PrévisionsBureau[],MATCH(INDEX(ÉcartsBureau[],ROW()-ROW(ÉcartsBureau[[#Headers],[Déc]]),1),INDEX(PrévisionsBureau[],,1),0),MATCH(ÉcartsBureau[[#Headers],[Déc]],PrévisionsBureau[#Headers],0))-INDEX(DépensesRéellesBureau[],MATCH(INDEX(ÉcartsBureau[],ROW()-ROW(ÉcartsBureau[[#Headers],[Déc]]),1),INDEX(PrévisionsBureau[],,1),0),MATCH(ÉcartsBureau[[#Headers],[Déc]],DépensesRéellesBureau[#Headers],0))","v":{"v":400,"d":"400.00 €"}},{"$f":"SUM(ÉcartsBureau[[#This Row],[Jan]:[Déc]])","v":{"v":1076,"d":"1,076.00 €"}}]
[null,"Électricité",{"$f":"INDEX(PrévisionsBureau[],MATCH(INDEX(ÉcartsBureau[],ROW()-ROW(ÉcartsBureau[[#Headers],[Jan]]),1),INDEX(PrévisionsBureau[],,1),0),MATCH(ÉcartsBureau[[#Headers],[Jan]],PrévisionsBureau[#Headers],0))-INDEX(DépensesRéellesBureau[],MATCH(INDEX(ÉcartsBureau[],ROW()-ROW(ÉcartsBureau[[#Headers],[Jan]]),1),INDEX(PrévisionsBureau[],,1),0),MATCH(ÉcartsBureau[[#Headers],[Jan]],DépensesRéellesBureau[#Headers],0))","v":{"v":12,"d":"12.00 €"}},{"$f":"INDEX(PrévisionsBureau[],MATCH(INDEX(ÉcartsBureau[],ROW()-ROW(ÉcartsBureau[[#Headers],[Fév]]),1),INDEX(PrévisionsBureau[],,1),0),MATCH(ÉcartsBureau[[#Headers],[Fév]],PrévisionsBureau[#Headers],0))-INDEX(DépensesRéellesBureau[],MATCH(INDEX(ÉcartsBureau[],ROW()-ROW(ÉcartsBureau[[#Headers],[Fév]]),1),INDEX(PrévisionsBureau[],,1),0),MATCH(ÉcartsBureau[[#Headers],[Fév]],DépensesRéellesBureau[#Headers],0))","v":{"v":22,"d":"22.00 €"}},{"$f":"INDEX(PrévisionsBureau[],MATCH(INDEX(ÉcartsBureau[],ROW()-ROW(ÉcartsBureau[[#Headers],[Mar]]),1),INDEX(PrévisionsBureau[],,1),0),MATCH(ÉcartsBureau[[#Headers],[Mar]],PrévisionsBureau[#Headers],0))-INDEX(DépensesRéellesBureau[],MATCH(INDEX(ÉcartsBureau[],ROW()-ROW(ÉcartsBureau[[#Headers],[Mar]]),1),INDEX(PrévisionsBureau[],,1),0),MATCH(ÉcartsBureau[[#Headers],[Mar]],DépensesRéellesBureau[#Headers],0))","v":{"v":32,"d":"32.00 €"}},{"$f":"INDEX(PrévisionsBureau[],MATCH(INDEX(ÉcartsBureau[],ROW()-ROW(ÉcartsBureau[[#Headers],[Avr]]),1),INDEX(PrévisionsBureau[],,1),0),MATCH(ÉcartsBureau[[#Headers],[Avr]],PrévisionsBureau[#Headers],0))-INDEX(DépensesRéellesBureau[],MATCH(INDEX(ÉcartsBureau[],ROW()-ROW(ÉcartsBureau[[#Headers],[Avr]]),1),INDEX(PrévisionsBureau[],,1),0),MATCH(ÉcartsBureau[[#Headers],[Avr]],DépensesRéellesBureau[#Headers],0))","v":{"v":1,"d":"1.00 €"}},{"$f":"INDEX(PrévisionsBureau[],MATCH(INDEX(ÉcartsBureau[],ROW()-ROW(ÉcartsBureau[[#Headers],[Mai]]),1),INDEX(PrévisionsBureau[],,1),0),MATCH(ÉcartsBureau[[#Headers],[Mai]],PrévisionsBureau[#Headers],0))-INDEX(DépensesRéellesBureau[],MATCH(INDEX(ÉcartsBureau[],ROW()-ROW(ÉcartsBureau[[#Headers],[Mai]]),1),INDEX(PrévisionsBureau[],,1),0),MATCH(ÉcartsBureau[[#Headers],[Mai]],DépensesRéellesBureau[#Headers],0))","v":{"v":-6,"d":"-6.00 €"}},{"$f":"INDEX(PrévisionsBureau[],MATCH(INDEX(ÉcartsBureau[],ROW()-ROW(ÉcartsBureau[[#Headers],[Juin]]),1),INDEX(PrévisionsBureau[],,1),0),MATCH(ÉcartsBureau[[#Headers],[Juin]],PrévisionsBureau[#Headers],0))-INDEX(DépensesRéellesBureau[],MATCH(INDEX(ÉcartsBureau[],ROW()-ROW(ÉcartsBureau[[#Headers],[Juin]]),1),INDEX(PrévisionsBureau[],,1),0),MATCH(ÉcartsBureau[[#Headers],[Juin]],DépensesRéellesBureau[#Headers],0))","v":{"v":10,"d":"10.00 €"}},{"$f":"INDEX(PrévisionsBureau[],MATCH(INDEX(ÉcartsBureau[],ROW()-ROW(ÉcartsBureau[[#Headers],[Juil]]),1),INDEX(PrévisionsBureau[],,1),0),MATCH(ÉcartsBureau[[#Headers],[Juil]],PrévisionsBureau[#Headers],0))-INDEX(DépensesRéellesBureau[],MATCH(INDEX(ÉcartsBureau[],ROW()-ROW(ÉcartsBureau[[#Headers],[Juil]]),1),INDEX(PrévisionsBureau[],,1),0),MATCH(ÉcartsBureau[[#Headers],[Juil]],DépensesRéellesBureau[#Headers],0))","v":{"v":300,"d":"300.00 €"}},{"$f":"INDEX(PrévisionsBureau[],MATCH(INDEX(ÉcartsBureau[],ROW()-ROW(ÉcartsBureau[[#Headers],[Août]]),1),INDEX(PrévisionsBureau[],,1),0),MATCH(ÉcartsBureau[[#Headers],[Août]],PrévisionsBureau[#Headers],0))-INDEX(DépensesRéellesBureau[],MATCH(INDEX(ÉcartsBureau[],ROW()-ROW(ÉcartsBureau[[#Headers],[Août]]),1),INDEX(PrévisionsBureau[],,1),0),MATCH(ÉcartsBureau[[#Headers],[Août]],DépensesRéellesBureau[#Headers],0))","v":{"v":300,"d":"300.00 €"}},{"$f":"INDEX(PrévisionsBureau[],MATCH(INDEX(ÉcartsBureau[],ROW()-ROW(ÉcartsBureau[[#Headers],[Sept]]),1),INDEX(PrévisionsBureau[],,1),0),MATCH(ÉcartsBureau[[#Headers],[Sept]],PrévisionsBureau[#Headers],0))-INDEX(DépensesRéellesBureau[],MATCH(INDEX(ÉcartsBureau[],ROW()-ROW(ÉcartsBureau[[#Headers],[Sept]]),1),INDEX(PrévisionsBureau[],,1),0),MATCH(ÉcartsBureau[[#Headers],[Sept]],DépensesRéellesBureau[#Headers],0))","v":{"v":300,"d":"300.00 €"}},{"$f":"INDEX(PrévisionsBureau[],MATCH(INDEX(ÉcartsBureau[],ROW()-ROW(ÉcartsBureau[[#Headers],[Oct]]),1),INDEX(PrévisionsBureau[],,1),0),MATCH(ÉcartsBureau[[#Headers],[Oct]],PrévisionsBureau[#Headers],0))-INDEX(DépensesRéellesBureau[],MATCH(INDEX(ÉcartsBureau[],ROW()-ROW(ÉcartsBureau[[#Headers],[Oct]]),1),INDEX(PrévisionsBureau[],,1),0),MATCH(ÉcartsBureau[[#Headers],[Oct]],DépensesRéellesBureau[#Headers],0))","v":{"v":300,"d":"300.00 €"}},{"$f":"INDEX(PrévisionsBureau[],MATCH(INDEX(ÉcartsBureau[],ROW()-ROW(ÉcartsBureau[[#Headers],[Nov]]),1),INDEX(PrévisionsBureau[],,1),0),MATCH(ÉcartsBureau[[#Headers],[Nov]],PrévisionsBureau[#Headers],0))-INDEX(DépensesRéellesBureau[],MATCH(INDEX(ÉcartsBureau[],ROW()-ROW(ÉcartsBureau[[#Headers],[Nov]]),1),INDEX(PrévisionsBureau[],,1),0),MATCH(ÉcartsBureau[[#Headers],[Nov]],DépensesRéellesBureau[#Headers],0))","v":{"v":300,"d":"300.00 €"}},{"$f":"INDEX(PrévisionsBureau[],MATCH(INDEX(ÉcartsBureau[],ROW()-ROW(ÉcartsBureau[[#Headers],[Déc]]),1),INDEX(PrévisionsBureau[],,1),0),MATCH(ÉcartsBureau[[#Headers],[Déc]],PrévisionsBureau[#Headers],0))-INDEX(DépensesRéellesBureau[],MATCH(INDEX(ÉcartsBureau[],ROW()-ROW(ÉcartsBureau[[#Headers],[Déc]]),1),INDEX(PrévisionsBureau[],,1),0),MATCH(ÉcartsBureau[[#Headers],[Déc]],DépensesRéellesBureau[#Headers],0))","v":{"v":300,"d":"300.00 €"}},{"$f":"SUM(ÉcartsBureau[[#This Row],[Jan]:[Déc]])","v":{"v":1871,"d":"1,871.00 €"}}]
[null,"Eau",{"$f":"INDEX(PrévisionsBureau[],MATCH(INDEX(ÉcartsBureau[],ROW()-ROW(ÉcartsBureau[[#Headers],[Jan]]),1),INDEX(PrévisionsBureau[],,1),0),MATCH(ÉcartsBureau[[#Headers],[Jan]],PrévisionsBureau[#Headers],0))-INDEX(DépensesRéellesBureau[],MATCH(INDEX(ÉcartsBureau[],ROW()-ROW(ÉcartsBureau[[#Headers],[Jan]]),1),INDEX(PrévisionsBureau[],,1),0),MATCH(ÉcartsBureau[[#Headers],[Jan]],DépensesRéellesBureau[#Headers],0))","v":{"v":5,"d":"5.00 €"}},{"$f":"INDEX(PrévisionsBureau[],MATCH(INDEX(ÉcartsBureau[],ROW()-ROW(ÉcartsBureau[[#Headers],[Fév]]),1),INDEX(PrévisionsBureau[],,1),0),MATCH(ÉcartsBureau[[#Headers],[Fév]],PrévisionsBureau[#Headers],0))-INDEX(DépensesRéellesBureau[],MATCH(INDEX(ÉcartsBureau[],ROW()-ROW(ÉcartsBureau[[#Headers],[Fév]]),1),INDEX(PrévisionsBureau[],,1),0),MATCH(ÉcartsBureau[[#Headers],[Fév]],DépensesRéellesBureau[#Headers],0))","v":{"v":7,"d":"7.00 €"}},{"$f":"INDEX(PrévisionsBureau[],MATCH(INDEX(ÉcartsBureau[],ROW()-ROW(ÉcartsBureau[[#Headers],[Mar]]),1),INDEX(PrévisionsBureau[],,1),0),MATCH(ÉcartsBureau[[#Headers],[Mar]],PrévisionsBureau[#Headers],0))-INDEX(DépensesRéellesBureau[],MATCH(INDEX(ÉcartsBureau[],ROW()-ROW(ÉcartsBureau[[#Headers],[Mar]]),1),INDEX(PrévisionsBureau[],,1),0),MATCH(ÉcartsBureau[[#Headers],[Mar]],DépensesRéellesBureau[#Headers],0))","v":{"v":6,"d":"6.00 €"}},{"$f":"INDEX(PrévisionsBureau[],MATCH(INDEX(ÉcartsBureau[],ROW()-ROW(ÉcartsBureau[[#Headers],[Avr]]),1),INDEX(PrévisionsBureau[],,1),0),MATCH(ÉcartsBureau[[#Headers],[Avr]],PrévisionsBureau[#Headers],0))-INDEX(DépensesRéellesBureau[],MATCH(INDEX(ÉcartsBureau[],ROW()-ROW(ÉcartsBureau[[#Headers],[Avr]]),1),INDEX(PrévisionsBureau[],,1),0),MATCH(ÉcartsBureau[[#Headers],[Avr]],DépensesRéellesBureau[#Headers],0))","v":{"v":4,"d":"4.00 €"}},{"$f":"INDEX(PrévisionsBureau[],MATCH(INDEX(ÉcartsBureau[],ROW()-ROW(ÉcartsBureau[[#Headers],[Mai]]),1),INDEX(PrévisionsBureau[],,1),0),MATCH(ÉcartsBureau[[#Headers],[Mai]],PrévisionsBureau[#Headers],0))-INDEX(DépensesRéellesBureau[],MATCH(INDEX(ÉcartsBureau[],ROW()-ROW(ÉcartsBureau[[#Headers],[Mai]]),1),INDEX(PrévisionsBureau[],,1),0),MATCH(ÉcartsBureau[[#Headers],[Mai]],DépensesRéellesBureau[#Headers],0))","v":{"v":6,"d":"6.00 €"}},{"$f":"INDEX(PrévisionsBureau[],MATCH(INDEX(ÉcartsBureau[],ROW()-ROW(ÉcartsBureau[[#Headers],[Juin]]),1),INDEX(PrévisionsBureau[],,1),0),MATCH(ÉcartsBureau[[#Headers],[Juin]],PrévisionsBureau[#Headers],0))-INDEX(DépensesRéellesBureau[],MATCH(INDEX(ÉcartsBureau[],ROW()-ROW(ÉcartsBureau[[#Headers],[Juin]]),1),INDEX(PrévisionsBureau[],,1),0),MATCH(ÉcartsBureau[[#Headers],[Juin]],DépensesRéellesBureau[#Headers],0))","v":{"v":4,"d":"4.00 €"}},{"$f":"INDEX(PrévisionsBureau[],MATCH(INDEX(ÉcartsBureau[],ROW()-ROW(ÉcartsBureau[[#Headers],[Juil]]),1),INDEX(PrévisionsBureau[],,1),0),MATCH(ÉcartsBureau[[#Headers],[Juil]],PrévisionsBureau[#Headers],0))-INDEX(DépensesRéellesBureau[],MATCH(INDEX(ÉcartsBureau[],ROW()-ROW(ÉcartsBureau[[#Headers],[Juil]]),1),INDEX(PrévisionsBureau[],,1),0),MATCH(ÉcartsBureau[[#Headers],[Juil]],DépensesRéellesBureau[#Headers],0))","v":{"v":40,"d":"40.00 €"}},{"$f":"INDEX(PrévisionsBureau[],MATCH(INDEX(ÉcartsBureau[],ROW()-ROW(ÉcartsBureau[[#Headers],[Août]]),1),INDEX(PrévisionsBureau[],,1),0),MATCH(ÉcartsBureau[[#Headers],[Août]],PrévisionsBureau[#Headers],0))-INDEX(DépensesRéellesBureau[],MATCH(INDEX(ÉcartsBureau[],ROW()-ROW(ÉcartsBureau[[#Headers],[Août]]),1),INDEX(PrévisionsBureau[],,1),0),MATCH(ÉcartsBureau[[#Headers],[Août]],DépensesRéellesBureau[#Headers],0))","v":{"v":40,"d":"40.00 €"}},{"$f":"INDEX(PrévisionsBureau[],MATCH(INDEX(ÉcartsBureau[],ROW()-ROW(ÉcartsBureau[[#Headers],[Sept]]),1),INDEX(PrévisionsBureau[],,1),0),MATCH(ÉcartsBureau[[#Headers],[Sept]],PrévisionsBureau[#Headers],0))-INDEX(DépensesRéellesBureau[],MATCH(INDEX(ÉcartsBureau[],ROW()-ROW(ÉcartsBureau[[#Headers],[Sept]]),1),INDEX(PrévisionsBureau[],,1),0),MATCH(ÉcartsBureau[[#Headers],[Sept]],DépensesRéellesBureau[#Headers],0))","v":{"v":40,"d":"40.00 €"}},{"$f":"INDEX(PrévisionsBureau[],MATCH(INDEX(ÉcartsBureau[],ROW()-ROW(ÉcartsBureau[[#Headers],[Oct]]),1),INDEX(PrévisionsBureau[],,1),0),MATCH(ÉcartsBureau[[#Headers],[Oct]],PrévisionsBureau[#Headers],0))-INDEX(DépensesRéellesBureau[],MATCH(INDEX(ÉcartsBureau[],ROW()-ROW(ÉcartsBureau[[#Headers],[Oct]]),1),INDEX(PrévisionsBureau[],,1),0),MATCH(ÉcartsBureau[[#Headers],[Oct]],DépensesRéellesBureau[#Headers],0))","v":{"v":40,"d":"40.00 €"}},{"$f":"INDEX(PrévisionsBureau[],MATCH(INDEX(ÉcartsBureau[],ROW()-ROW(ÉcartsBureau[[#Headers],[Nov]]),1),INDEX(PrévisionsBureau[],,1),0),MATCH(ÉcartsBureau[[#Headers],[Nov]],PrévisionsBureau[#Headers],0))-INDEX(DépensesRéellesBureau[],MATCH(INDEX(ÉcartsBureau[],ROW()-ROW(ÉcartsBureau[[#Headers],[Nov]]),1),INDEX(PrévisionsBureau[],,1),0),MATCH(ÉcartsBureau[[#Headers],[Nov]],DépensesRéellesBureau[#Headers],0))","v":{"v":40,"d":"40.00 €"}},{"$f":"INDEX(PrévisionsBureau[],MATCH(INDEX(ÉcartsBureau[],ROW()-ROW(ÉcartsBureau[[#Headers],[Déc]]),1),INDEX(PrévisionsBureau[],,1),0),MATCH(ÉcartsBureau[[#Headers],[Déc]],PrévisionsBureau[#Headers],0))-INDEX(DépensesRéellesBureau[],MATCH(INDEX(ÉcartsBureau[],ROW()-ROW(ÉcartsBureau[[#Headers],[Déc]]),1),INDEX(PrévisionsBureau[],,1),0),MATCH(ÉcartsBureau[[#Headers],[Déc]],DépensesRéellesBureau[#Headers],0))","v":{"v":40,"d":"40.00 €"}},{"$f":"SUM(ÉcartsBureau[[#This Row],[Jan]:[Déc]])","v":{"v":272,"d":"272.00 €"}}]
[null,"Téléphone",{"$f":"INDEX(PrévisionsBureau[],MATCH(INDEX(ÉcartsBureau[],ROW()-ROW(ÉcartsBureau[[#Headers],[Jan]]),1),INDEX(PrévisionsBureau[],,1),0),MATCH(ÉcartsBureau[[#Headers],[Jan]],PrévisionsBureau[#Headers],0))-INDEX(DépensesRéellesBureau[],MATCH(INDEX(ÉcartsBureau[],ROW()-ROW(ÉcartsBureau[[#Headers],[Jan]]),1),INDEX(PrévisionsBureau[],,1),0),MATCH(ÉcartsBureau[[#Headers],[Jan]],DépensesRéellesBureau[#Headers],0))","v":{"v":26,"d":"26.00 €"}},{"$f":"INDEX(PrévisionsBureau[],MATCH(INDEX(ÉcartsBureau[],ROW()-ROW(ÉcartsBureau[[#Headers],[Fév]]),1),INDEX(PrévisionsBureau[],,1),0),MATCH(ÉcartsBureau[[#Headers],[Fév]],PrévisionsBureau[#Headers],0))-INDEX(DépensesRéellesBureau[],MATCH(INDEX(ÉcartsBureau[],ROW()-ROW(ÉcartsBureau[[#Headers],[Fév]]),1),INDEX(PrévisionsBureau[],,1),0),MATCH(ÉcartsBureau[[#Headers],[Fév]],DépensesRéellesBureau[#Headers],0))","v":{"v":15,"d":"15.00 €"}},{"$f":"INDEX(PrévisionsBureau[],MATCH(INDEX(ÉcartsBureau[],ROW()-ROW(ÉcartsBureau[[#Headers],[Mar]]),1),INDEX(PrévisionsBureau[],,1),0),MATCH(ÉcartsBureau[[#Headers],[Mar]],PrévisionsBureau[#Headers],0))-INDEX(DépensesRéellesBureau[],MATCH(INDEX(ÉcartsBureau[],ROW()-ROW(ÉcartsBureau[[#Headers],[Mar]]),1),INDEX(PrévisionsBureau[],,1),0),MATCH(ÉcartsBureau[[#Headers],[Mar]],DépensesRéellesBureau[#Headers],0))","v":{"v":-15,"d":"-15.00 €"}},{"$f":"INDEX(PrévisionsBureau[],MATCH(INDEX(ÉcartsBureau[],ROW()-ROW(ÉcartsBureau[[#Headers],[Avr]]),1),INDEX(PrévisionsBureau[],,1),0),MATCH(ÉcartsBureau[[#Headers],[Avr]],PrévisionsBureau[#Headers],0))-INDEX(DépensesRéellesBureau[],MATCH(INDEX(ÉcartsBureau[],ROW()-ROW(ÉcartsBureau[[#Headers],[Avr]]),1),INDEX(PrévisionsBureau[],,1),0),MATCH(ÉcartsBureau[[#Headers],[Avr]],DépensesRéellesBureau[#Headers],0))","v":{"v":5,"d":"5.00 €"}},{"$f":"INDEX(PrévisionsBureau[],MATCH(INDEX(ÉcartsBureau[],ROW()-ROW(ÉcartsBureau[[#Headers],[Mai]]),1),INDEX(PrévisionsBureau[],,1),0),MATCH(ÉcartsBureau[[#Headers],[Mai]],PrévisionsBureau[#Headers],0))-INDEX(DépensesRéellesBureau[],MATCH(INDEX(ÉcartsBureau[],ROW()-ROW(ÉcartsBureau[[#Headers],[Mai]]),1),INDEX(PrévisionsBureau[],,1),0),MATCH(ÉcartsBureau[[#Headers],[Mai]],DépensesRéellesBureau[#Headers],0))","v":{"v":5,"d":"5.00 €"}},{"$f":"INDEX(PrévisionsBureau[],MATCH(INDEX(ÉcartsBureau[],ROW()-ROW(ÉcartsBureau[[#Headers],[Juin]]),1),INDEX(PrévisionsBureau[],,1),0),MATCH(ÉcartsBureau[[#Headers],[Juin]],PrévisionsBureau[#Headers],0))-INDEX(DépensesRéellesBureau[],MATCH(INDEX(ÉcartsBureau[],ROW()-ROW(ÉcartsBureau[[#Headers],[Juin]]),1),INDEX(PrévisionsBureau[],,1),0),MATCH(ÉcartsBureau[[#Headers],[Juin]],DépensesRéellesBureau[#Headers],0))","v":{"v":30,"d":"30.00 €"}},{"$f":"INDEX(PrévisionsBureau[],MATCH(INDEX(ÉcartsBureau[],ROW()-ROW(ÉcartsBureau[[#Headers],[Juil]]),1),INDEX(PrévisionsBureau[],,1),0),MATCH(ÉcartsBureau[[#Headers],[Juil]],PrévisionsBureau[#Headers],0))-INDEX(DépensesRéellesBureau[],MATCH(INDEX(ÉcartsBureau[],ROW()-ROW(ÉcartsBureau[[#Headers],[Juil]]),1),INDEX(PrévisionsBureau[],,1),0),MATCH(ÉcartsBureau[[#Headers],[Juil]],DépensesRéellesBureau[#Headers],0))","v":{"v":250,"d":"250.00 €"}},{"$f":"INDEX(PrévisionsBureau[],MATCH(INDEX(ÉcartsBureau[],ROW()-ROW(ÉcartsBureau[[#Headers],[Août]]),1),INDEX(PrévisionsBureau[],,1),0),MATCH(ÉcartsBureau[[#Headers],[Août]],PrévisionsBureau[#Headers],0))-INDEX(DépensesRéellesBureau[],MATCH(INDEX(ÉcartsBureau[],ROW()-ROW(ÉcartsBureau[[#Headers],[Août]]),1),INDEX(PrévisionsBureau[],,1),0),MATCH(ÉcartsBureau[[#Headers],[Août]],DépensesRéellesBureau[#Headers],0))","v":{"v":250,"d":"250.00 €"}},{"$f":"INDEX(PrévisionsBureau[],MATCH(INDEX(ÉcartsBureau[],ROW()-ROW(ÉcartsBureau[[#Headers],[Sept]]),1),INDEX(PrévisionsBureau[],,1),0),MATCH(ÉcartsBureau[[#Headers],[Sept]],PrévisionsBureau[#Headers],0))-INDEX(DépensesRéellesBureau[],MATCH(INDEX(ÉcartsBureau[],ROW()-ROW(ÉcartsBureau[[#Headers],[Sept]]),1),INDEX(PrévisionsBureau[],,1),0),MATCH(ÉcartsBureau[[#Headers],[Sept]],DépensesRéellesBureau[#Headers],0))","v":{"v":250,"d":"250.00 €"}},{"$f":"INDEX(PrévisionsBureau[],MATCH(INDEX(ÉcartsBureau[],ROW()-ROW(ÉcartsBureau[[#Headers],[Oct]]),1),INDEX(PrévisionsBureau[],,1),0),MATCH(ÉcartsBureau[[#Headers],[Oct]],PrévisionsBureau[#Headers],0))-INDEX(DépensesRéellesBureau[],MATCH(INDEX(ÉcartsBureau[],ROW()-ROW(ÉcartsBureau[[#Headers],[Oct]]),1),INDEX(PrévisionsBureau[],,1),0),MATCH(ÉcartsBureau[[#Headers],[Oct]],DépensesRéellesBureau[#Headers],0))","v":{"v":250,"d":"250.00 €"}},{"$f":"INDEX(PrévisionsBureau[],MATCH(INDEX(ÉcartsBureau[],ROW()-ROW(ÉcartsBureau[[#Headers],[Nov]]),1),INDEX(PrévisionsBureau[],,1),0),MATCH(ÉcartsBureau[[#Headers],[Nov]],PrévisionsBureau[#Headers],0))-INDEX(DépensesRéellesBureau[],MATCH(INDEX(ÉcartsBureau[],ROW()-ROW(ÉcartsBureau[[#Headers],[Nov]]),1),INDEX(PrévisionsBureau[],,1),0),MATCH(ÉcartsBureau[[#Headers],[Nov]],DépensesRéellesBureau[#Headers],0))","v":{"v":250,"d":"250.00 €"}},{"$f":"INDEX(PrévisionsBureau[],MATCH(INDEX(ÉcartsBureau[],ROW()-ROW(ÉcartsBureau[[#Headers],[Déc]]),1),INDEX(PrévisionsBureau[],,1),0),MATCH(ÉcartsBureau[[#Headers],[Déc]],PrévisionsBureau[#Headers],0))-INDEX(DépensesRéellesBureau[],MATCH(INDEX(ÉcartsBureau[],ROW()-ROW(ÉcartsBureau[[#Headers],[Déc]]),1),INDEX(PrévisionsBureau[],,1),0),MATCH(ÉcartsBureau[[#Headers],[Déc]],DépensesRéellesBureau[#Headers],0))","v":{"v":250,"d":"250.00 €"}},{"$f":"SUM(ÉcartsBureau[[#This Row],[Jan]:[Déc]])","v":{"v":1566,"d":"1,566.00 €"}}]
[null,"Accès à Internet",{"$f":"INDEX(PrévisionsBureau[],MATCH(INDEX(ÉcartsBureau[],ROW()-ROW(ÉcartsBureau[[#Headers],[Jan]]),1),INDEX(PrévisionsBureau[],,1),0),MATCH(ÉcartsBureau[[#Headers],[Jan]],PrévisionsBureau[#Headers],0))-INDEX(DépensesRéellesBureau[],MATCH(INDEX(ÉcartsBureau[],ROW()-ROW(ÉcartsBureau[[#Headers],[Jan]]),1),INDEX(PrévisionsBureau[],,1),0),MATCH(ÉcartsBureau[[#Headers],[Jan]],DépensesRéellesBureau[#Headers],0))","v":{"v":0,"d":"0.00 €"}},{"$f":"INDEX(PrévisionsBureau[],MATCH(INDEX(ÉcartsBureau[],ROW()-ROW(ÉcartsBureau[[#Headers],[Fév]]),1),INDEX(PrévisionsBureau[],,1),0),MATCH(ÉcartsBureau[[#Headers],[Fév]],PrévisionsBureau[#Headers],0))-INDEX(DépensesRéellesBureau[],MATCH(INDEX(ÉcartsBureau[],ROW()-ROW(ÉcartsBureau[[#Headers],[Fév]]),1),INDEX(PrévisionsBureau[],,1),0),MATCH(ÉcartsBureau[[#Headers],[Fév]],DépensesRéellesBureau[#Headers],0))","v":{"v":0,"d":"0.00 €"}},{"$f":"INDEX(PrévisionsBureau[],MATCH(INDEX(ÉcartsBureau[],ROW()-ROW(ÉcartsBureau[[#Headers],[Mar]]),1),INDEX(PrévisionsBureau[],,1),0),MATCH(ÉcartsBureau[[#Headers],[Mar]],PrévisionsBureau[#Headers],0))-INDEX(DépensesRéellesBureau[],MATCH(INDEX(ÉcartsBureau[],ROW()-ROW(ÉcartsBureau[[#Headers],[Mar]]),1),INDEX(PrévisionsBureau[],,1),0),MATCH(ÉcartsBureau[[#Headers],[Mar]],DépensesRéellesBureau[#Headers],0))","v":{"v":0,"d":"0.00 €"}},{"$f":"INDEX(PrévisionsBureau[],MATCH(INDEX(ÉcartsBureau[],ROW()-ROW(ÉcartsBureau[[#Headers],[Avr]]),1),INDEX(PrévisionsBureau[],,1),0),MATCH(ÉcartsBureau[[#Headers],[Avr]],PrévisionsBureau[#Headers],0))-INDEX(DépensesRéellesBureau[],MATCH(INDEX(ÉcartsBureau[],ROW()-ROW(ÉcartsBureau[[#Headers],[Avr]]),1),INDEX(PrévisionsBureau[],,1),0),MATCH(ÉcartsBureau[[#Headers],[Avr]],DépensesRéellesBureau[#Headers],0))","v":{"v":0,"d":"0.00 €"}},{"$f":"INDEX(PrévisionsBureau[],MATCH(INDEX(ÉcartsBureau[],ROW()-ROW(ÉcartsBureau[[#Headers],[Mai]]),1),INDEX(PrévisionsBureau[],,1),0),MATCH(ÉcartsBureau[[#Headers],[Mai]],PrévisionsBureau[#Headers],0))-INDEX(DépensesRéellesBureau[],MATCH(INDEX(ÉcartsBureau[],ROW()-ROW(ÉcartsBureau[[#Headers],[Mai]]),1),INDEX(PrévisionsBureau[],,1),0),MATCH(ÉcartsBureau[[#Headers],[Mai]],DépensesRéellesBureau[#Headers],0))","v":{"v":0,"d":"0.00 €"}},{"$f":"INDEX(PrévisionsBureau[],MATCH(INDEX(ÉcartsBureau[],ROW()-ROW(ÉcartsBureau[[#Headers],[Juin]]),1),INDEX(PrévisionsBureau[],,1),0),MATCH(ÉcartsBureau[[#Headers],[Juin]],PrévisionsBureau[#Headers],0))-INDEX(DépensesRéellesBureau[],MATCH(INDEX(ÉcartsBureau[],ROW()-ROW(ÉcartsBureau[[#Headers],[Juin]]),1),INDEX(PrévisionsBureau[],,1),0),MATCH(ÉcartsBureau[[#Headers],[Juin]],DépensesRéellesBureau[#Headers],0))","v":{"v":0,"d":"0.00 €"}},{"$f":"INDEX(PrévisionsBureau[],MATCH(INDEX(ÉcartsBureau[],ROW()-ROW(ÉcartsBureau[[#Headers],[Juil]]),1),INDEX(PrévisionsBureau[],,1),0),MATCH(ÉcartsBureau[[#Headers],[Juil]],PrévisionsBureau[#Headers],0))-INDEX(DépensesRéellesBureau[],MATCH(INDEX(ÉcartsBureau[],ROW()-ROW(ÉcartsBureau[[#Headers],[Juil]]),1),INDEX(PrévisionsBureau[],,1),0),MATCH(ÉcartsBureau[[#Headers],[Juil]],DépensesRéellesBureau[#Headers],0))","v":{"v":180,"d":"180.00 €"}},{"$f":"INDEX(PrévisionsBureau[],MATCH(INDEX(ÉcartsBureau[],ROW()-ROW(ÉcartsBureau[[#Headers],[Août]]),1),INDEX(PrévisionsBureau[],,1),0),MATCH(ÉcartsBureau[[#Headers],[Août]],PrévisionsBureau[#Headers],0))-INDEX(DépensesRéellesBureau[],MATCH(INDEX(ÉcartsBureau[],ROW()-ROW(ÉcartsBureau[[#Headers],[Août]]),1),INDEX(PrévisionsBureau[],,1),0),MATCH(ÉcartsBureau[[#Headers],[Août]],DépensesRéellesBureau[#Headers],0))","v":{"v":180,"d":"180.00 €"}},{"$f":"INDEX(PrévisionsBureau[],MATCH(INDEX(ÉcartsBureau[],ROW()-ROW(ÉcartsBureau[[#Headers],[Sept]]),1),INDEX(PrévisionsBureau[],,1),0),MATCH(ÉcartsBureau[[#Headers],[Sept]],PrévisionsBureau[#Headers],0))-INDEX(DépensesRéellesBureau[],MATCH(INDEX(ÉcartsBureau[],ROW()-ROW(ÉcartsBureau[[#Headers],[Sept]]),1),INDEX(PrévisionsBureau[],,1),0),MATCH(ÉcartsBureau[[#Headers],[Sept]],DépensesRéellesBureau[#Headers],0))","v":{"v":180,"d":"180.00 €"}},{"$f":"INDEX(PrévisionsBureau[],MATCH(INDEX(ÉcartsBureau[],ROW()-ROW(ÉcartsBureau[[#Headers],[Oct]]),1),INDEX(PrévisionsBureau[],,1),0),MATCH(ÉcartsBureau[[#Headers],[Oct]],PrévisionsBureau[#Headers],0))-INDEX(DépensesRéellesBureau[],MATCH(INDEX(ÉcartsBureau[],ROW()-ROW(ÉcartsBureau[[#Headers],[Oct]]),1),INDEX(PrévisionsBureau[],,1),0),MATCH(ÉcartsBureau[[#Headers],[Oct]],DépensesRéellesBureau[#Headers],0))","v":{"v":180,"d":"180.00 €"}},{"$f":"INDEX(PrévisionsBureau[],MATCH(INDEX(ÉcartsBureau[],ROW()-ROW(ÉcartsBureau[[#Headers],[Nov]]),1),INDEX(PrévisionsBureau[],,1),0),MATCH(ÉcartsBureau[[#Headers],[Nov]],PrévisionsBureau[#Headers],0))-INDEX(DépensesRéellesBureau[],MATCH(INDEX(ÉcartsBureau[],ROW()-ROW(ÉcartsBureau[[#Headers],[Nov]]),1),INDEX(PrévisionsBureau[],,1),0),MATCH(ÉcartsBureau[[#Headers],[Nov]],DépensesRéellesBureau[#Headers],0))","v":{"v":180,"d":"180.00 €"}},{"$f":"INDEX(PrévisionsBureau[],MATCH(INDEX(ÉcartsBureau[],ROW()-ROW(ÉcartsBureau[[#Headers],[Déc]]),1),INDEX(PrévisionsBureau[],,1),0),MATCH(ÉcartsBureau[[#Headers],[Déc]],PrévisionsBureau[#Headers],0))-INDEX(DépensesRéellesBureau[],MATCH(INDEX(ÉcartsBureau[],ROW()-ROW(ÉcartsBureau[[#Headers],[Déc]]),1),INDEX(PrévisionsBureau[],,1),0),MATCH(ÉcartsBureau[[#Headers],[Déc]],DépensesRéellesBureau[#Headers],0))","v":{"v":180,"d":"180.00 €"}},{"$f":"SUM(ÉcartsBureau[[#This Row],[Jan]:[Déc]])","v":{"v":1080,"d":"1,080.00 €"}}]
[null,"Fournitures de bureau",{"$f":"INDEX(PrévisionsBureau[],MATCH(INDEX(ÉcartsBureau[],ROW()-ROW(ÉcartsBureau[[#Headers],[Jan]]),1),INDEX(PrévisionsBureau[],,1),0),MATCH(ÉcartsBureau[[#Headers],[Jan]],PrévisionsBureau[#Headers],0))-INDEX(DépensesRéellesBureau[],MATCH(INDEX(ÉcartsBureau[],ROW()-ROW(ÉcartsBureau[[#Headers],[Jan]]),1),INDEX(PrévisionsBureau[],,1),0),MATCH(ÉcartsBureau[[#Headers],[Jan]],DépensesRéellesBureau[#Headers],0))","v":{"v":-56,"d":"-56.00 €"}},{"$f":"INDEX(PrévisionsBureau[],MATCH(INDEX(ÉcartsBureau[],ROW()-ROW(ÉcartsBureau[[#Headers],[Fév]]),1),INDEX(PrévisionsBureau[],,1),0),MATCH(ÉcartsBureau[[#Headers],[Fév]],PrévisionsBureau[#Headers],0))-INDEX(DépensesRéellesBureau[],MATCH(INDEX(ÉcartsBureau[],ROW()-ROW(ÉcartsBureau[[#Headers],[Fév]]),1),INDEX(PrévisionsBureau[],,1),0),MATCH(ÉcartsBureau[[#Headers],[Fév]],DépensesRéellesBureau[#Headers],0))","v":{"v":58,"d":"58.00 €"}},{"$f":"INDEX(PrévisionsBureau[],MATCH(INDEX(ÉcartsBureau[],ROW()-ROW(ÉcartsBureau[[#Headers],[Mar]]),1),INDEX(PrévisionsBureau[],,1),0),MATCH(ÉcartsBureau[[#Headers],[Mar]],PrévisionsBureau[#Headers],0))-INDEX(DépensesRéellesBureau[],MATCH(INDEX(ÉcartsBureau[],ROW()-ROW(ÉcartsBureau[[#Headers],[Mar]]),1),INDEX(PrévisionsBureau[],,1),0),MATCH(ÉcartsBureau[[#Headers],[Mar]],DépensesRéellesBureau[#Headers],0))","v":{"v":40,"d":"40.00 €"}},{"$f":"INDEX(PrévisionsBureau[],MATCH(INDEX(ÉcartsBureau[],ROW()-ROW(ÉcartsBureau[[#Headers],[Avr]]),1),INDEX(PrévisionsBureau[],,1),0),MATCH(ÉcartsBureau[[#Headers],[Avr]],PrévisionsBureau[#Headers],0))-INDEX(DépensesRéellesBureau[],MATCH(INDEX(ÉcartsBureau[],ROW()-ROW(ÉcartsBureau[[#Headers],[Avr]]),1),INDEX(PrévisionsBureau[],,1),0),MATCH(ÉcartsBureau[[#Headers],[Avr]],DépensesRéellesBureau[#Headers],0))","v":{"v":-21,"d":"-21.00 €"}},{"$f":"INDEX(PrévisionsBureau[],MATCH(INDEX(ÉcartsBureau[],ROW()-ROW(ÉcartsBureau[[#Headers],[Mai]]),1),INDEX(PrévisionsBureau[],,1),0),MATCH(ÉcartsBureau[[#Headers],[Mai]],PrévisionsBureau[#Headers],0))-INDEX(DépensesRéellesBureau[],MATCH(INDEX(ÉcartsBureau[],ROW()-ROW(ÉcartsBureau[[#Headers],[Mai]]),1),INDEX(PrévisionsBureau[],,1),0),MATCH(ÉcartsBureau[[#Headers],[Mai]],DépensesRéellesBureau[#Headers],0))","v":{"v":-56,"d":"-56.00 €"}},{"$f":"INDEX(PrévisionsBureau[],MATCH(INDEX(ÉcartsBureau[],ROW()-ROW(ÉcartsBureau[[#Headers],[Juin]]),1),INDEX(PrévisionsBureau[],,1),0),MATCH(ÉcartsBureau[[#Headers],[Juin]],PrévisionsBureau[#Headers],0))-INDEX(DépensesRéellesBureau[],MATCH(INDEX(ÉcartsBureau[],ROW()-ROW(ÉcartsBureau[[#Headers],[Juin]]),1),INDEX(PrévisionsBureau[],,1),0),MATCH(ÉcartsBureau[[#Headers],[Juin]],DépensesRéellesBureau[#Headers],0))","v":{"v":-40,"d":"-40.00 €"}},{"$f":"INDEX(PrévisionsBureau[],MATCH(INDEX(ÉcartsBureau[],ROW()-ROW(ÉcartsBureau[[#Headers],[Juil]]),1),INDEX(PrévisionsBureau[],,1),0),MATCH(ÉcartsBureau[[#Headers],[Juil]],PrévisionsBureau[#Headers],0))-INDEX(DépensesRéellesBureau[],MATCH(INDEX(ÉcartsBureau[],ROW()-ROW(ÉcartsBureau[[#Headers],[Juil]]),1),INDEX(PrévisionsBureau[],,1),0),MATCH(ÉcartsBureau[[#Headers],[Juil]],DépensesRéellesBureau[#Headers],0))","v":{"v":200,"d":"200.00 €"}},{"$f":"INDEX(PrévisionsBureau[],MATCH(INDEX(ÉcartsBureau[],ROW()-ROW(ÉcartsBureau[[#Headers],[Août]]),1),INDEX(PrévisionsBureau[],,1),0),MATCH(ÉcartsBureau[[#Headers],[Août]],PrévisionsBureau[#Headers],0))-INDEX(DépensesRéellesBureau[],MATCH(INDEX(ÉcartsBureau[],ROW()-ROW(ÉcartsBureau[[#Headers],[Août]]),1),INDEX(PrévisionsBureau[],,1),0),MATCH(ÉcartsBureau[[#Headers],[Août]],DépensesRéellesBureau[#Headers],0))","v":{"v":200,"d":"200.00 €"}},{"$f":"INDEX(PrévisionsBureau[],MATCH(INDEX(ÉcartsBureau[],ROW()-ROW(ÉcartsBureau[[#Headers],[Sept]]),1),INDEX(PrévisionsBureau[],,1),0),MATCH(ÉcartsBureau[[#Headers],[Sept]],PrévisionsBureau[#Headers],0))-INDEX(DépensesRéellesBureau[],MATCH(INDEX(ÉcartsBureau[],ROW()-ROW(ÉcartsBureau[[#Headers],[Sept]]),1),INDEX(PrévisionsBureau[],,1),0),MATCH(ÉcartsBureau[[#Headers],[Sept]],DépensesRéellesBureau[#Headers],0))","v":{"v":200,"d":"200.00 €"}},{"$f":"INDEX(PrévisionsBureau[],MATCH(INDEX(ÉcartsBureau[],ROW()-ROW(ÉcartsBureau[[#Headers],[Oct]]),1),INDEX(PrévisionsBureau[],,1),0),MATCH(ÉcartsBureau[[#Headers],[Oct]],PrévisionsBureau[#Headers],0))-INDEX(DépensesRéellesBureau[],MATCH(INDEX(ÉcartsBureau[],ROW()-ROW(ÉcartsBureau[[#Headers],[Oct]]),1),INDEX(PrévisionsBureau[],,1),0),MATCH(ÉcartsBureau[[#Headers],[Oct]],DépensesRéellesBureau[#Headers],0))","v":{"v":200,"d":"200.00 €"}},{"$f":"INDEX(PrévisionsBureau[],MATCH(INDEX(ÉcartsBureau[],ROW()-ROW(ÉcartsBureau[[#Headers],[Nov]]),1),INDEX(PrévisionsBureau[],,1),0),MATCH(ÉcartsBureau[[#Headers],[Nov]],PrévisionsBureau[#Headers],0))-INDEX(DépensesRéellesBureau[],MATCH(INDEX(ÉcartsBureau[],ROW()-ROW(ÉcartsBureau[[#Headers],[Nov]]),1),INDEX(PrévisionsBureau[],,1),0),MATCH(ÉcartsBureau[[#Headers],[Nov]],DépensesRéellesBureau[#Headers],0))","v":{"v":200,"d":"200.00 €"}},{"$f":"INDEX(PrévisionsBureau[],MATCH(INDEX(ÉcartsBureau[],ROW()-ROW(ÉcartsBureau[[#Headers],[Déc]]),1),INDEX(PrévisionsBureau[],,1),0),MATCH(ÉcartsBureau[[#Headers],[Déc]],PrévisionsBureau[#Headers],0))-INDEX(DépensesRéellesBureau[],MATCH(INDEX(ÉcartsBureau[],ROW()-ROW(ÉcartsBureau[[#Headers],[Déc]]),1),INDEX(PrévisionsBureau[],,1),0),MATCH(ÉcartsBureau[[#Headers],[Déc]],DépensesRéellesBureau[#Headers],0))","v":{"v":200,"d":"200.00 €"}},{"$f":"SUM(ÉcartsBureau[[#This Row],[Jan]:[Déc]])","v":{"v":1125,"d":"1,125.00 €"}}]
[null,"Sécurité",{"$f":"INDEX(PrévisionsBureau[],MATCH(INDEX(ÉcartsBureau[],ROW()-ROW(ÉcartsBureau[[#Headers],[Jan]]),1),INDEX(PrévisionsBureau[],,1),0),MATCH(ÉcartsBureau[[#Headers],[Jan]],PrévisionsBureau[#Headers],0))-INDEX(DépensesRéellesBureau[],MATCH(INDEX(ÉcartsBureau[],ROW()-ROW(ÉcartsBureau[[#Headers],[Jan]]),1),INDEX(PrévisionsBureau[],,1),0),MATCH(ÉcartsBureau[[#Headers],[Jan]],DépensesRéellesBureau[#Headers],0))","v":{"v":0,"d":"0.00 €"}},{"$f":"INDEX(PrévisionsBureau[],MATCH(INDEX(ÉcartsBureau[],ROW()-ROW(ÉcartsBureau[[#Headers],[Fév]]),1),INDEX(PrévisionsBureau[],,1),0),MATCH(ÉcartsBureau[[#Headers],[Fév]],PrévisionsBureau[#Headers],0))-INDEX(DépensesRéellesBureau[],MATCH(INDEX(ÉcartsBureau[],ROW()-ROW(ÉcartsBureau[[#Headers],[Fév]]),1),INDEX(PrévisionsBureau[],,1),0),MATCH(ÉcartsBureau[[#Headers],[Fév]],DépensesRéellesBureau[#Headers],0))","v":{"v":0,"d":"0.00 €"}},{"$f":"INDEX(PrévisionsBureau[],MATCH(INDEX(ÉcartsBureau[],ROW()-ROW(ÉcartsBureau[[#Headers],[Mar]]),1),INDEX(PrévisionsBureau[],,1),0),MATCH(ÉcartsBureau[[#Headers],[Mar]],PrévisionsBureau[#Headers],0))-INDEX(DépensesRéellesBureau[],MATCH(INDEX(ÉcartsBureau[],ROW()-ROW(ÉcartsBureau[[#Headers],[Mar]]),1),INDEX(PrévisionsBureau[],,1),0),MATCH(ÉcartsBureau[[#Headers],[Mar]],DépensesRéellesBureau[#Headers],0))","v":{"v":0,"d":"0.00 €"}},{"$f":"INDEX(PrévisionsBureau[],MATCH(INDEX(ÉcartsBureau[],ROW()-ROW(ÉcartsBureau[[#Headers],[Avr]]),1),INDEX(PrévisionsBureau[],,1),0),MATCH(ÉcartsBureau[[#Headers],[Avr]],PrévisionsBureau[#Headers],0))-INDEX(DépensesRéellesBureau[],MATCH(INDEX(ÉcartsBureau[],ROW()-ROW(ÉcartsBureau[[#Headers],[Avr]]),1),INDEX(PrévisionsBureau[],,1),0),MATCH(ÉcartsBureau[[#Headers],[Avr]],DépensesRéellesBureau[#Headers],0))","v":{"v":0,"d":"0.00 €"}},{"$f":"INDEX(PrévisionsBureau[],MATCH(INDEX(ÉcartsBureau[],ROW()-ROW(ÉcartsBureau[[#Headers],[Mai]]),1),INDEX(PrévisionsBureau[],,1),0),MATCH(ÉcartsBureau[[#Headers],[Mai]],PrévisionsBureau[#Headers],0))-INDEX(DépensesRéellesBureau[],MATCH(INDEX(ÉcartsBureau[],ROW()-ROW(ÉcartsBureau[[#Headers],[Mai]]),1),INDEX(PrévisionsBureau[],,1),0),MATCH(ÉcartsBureau[[#Headers],[Mai]],DépensesRéellesBureau[#Headers],0))","v":{"v":0,"d":"0.00 €"}},{"$f":"INDEX(PrévisionsBureau[],MATCH(INDEX(ÉcartsBureau[],ROW()-ROW(ÉcartsBureau[[#Headers],[Juin]]),1),INDEX(PrévisionsBureau[],,1),0),MATCH(ÉcartsBureau[[#Headers],[Juin]],PrévisionsBureau[#Headers],0))-INDEX(DépensesRéellesBureau[],MATCH(INDEX(ÉcartsBureau[],ROW()-ROW(ÉcartsBureau[[#Headers],[Juin]]),1),INDEX(PrévisionsBureau[],,1),0),MATCH(ÉcartsBureau[[#Headers],[Juin]],DépensesRéellesBureau[#Headers],0))","v":{"v":0,"d":"0.00 €"}},{"$f":"INDEX(PrévisionsBureau[],MATCH(INDEX(ÉcartsBureau[],ROW()-ROW(ÉcartsBureau[[#Headers],[Juil]]),1),INDEX(PrévisionsBureau[],,1),0),MATCH(ÉcartsBureau[[#Headers],[Juil]],PrévisionsBureau[#Headers],0))-INDEX(DépensesRéellesBureau[],MATCH(INDEX(ÉcartsBureau[],ROW()-ROW(ÉcartsBureau[[#Headers],[Juil]]),1),INDEX(PrévisionsBureau[],,1),0),MATCH(ÉcartsBureau[[#Headers],[Juil]],DépensesRéellesBureau[#Headers],0))","v":{"v":600,"d":"600.00 €"}},{"$f":"INDEX(PrévisionsBureau[],MATCH(INDEX(ÉcartsBureau[],ROW()-ROW(ÉcartsBureau[[#Headers],[Août]]),1),INDEX(PrévisionsBureau[],,1),0),MATCH(ÉcartsBureau[[#Headers],[Août]],PrévisionsBureau[#Headers],0))-INDEX(DépensesRéellesBureau[],MATCH(INDEX(ÉcartsBureau[],ROW()-ROW(ÉcartsBureau[[#Headers],[Août]]),1),INDEX(PrévisionsBureau[],,1),0),MATCH(ÉcartsBureau[[#Headers],[Août]],DépensesRéellesBureau[#Headers],0))","v":{"v":600,"d":"600.00 €"}},{"$f":"INDEX(PrévisionsBureau[],MATCH(INDEX(ÉcartsBureau[],ROW()-ROW(ÉcartsBureau[[#Headers],[Sept]]),1),INDEX(PrévisionsBureau[],,1),0),MATCH(ÉcartsBureau[[#Headers],[Sept]],PrévisionsBureau[#Headers],0))-INDEX(DépensesRéellesBureau[],MATCH(INDEX(ÉcartsBureau[],ROW()-ROW(ÉcartsBureau[[#Headers],[Sept]]),1),INDEX(PrévisionsBureau[],,1),0),MATCH(ÉcartsBureau[[#Headers],[Sept]],DépensesRéellesBureau[#Headers],0))","v":{"v":600,"d":"600.00 €"}},{"$f":"INDEX(PrévisionsBureau[],MATCH(INDEX(ÉcartsBureau[],ROW()-ROW(ÉcartsBureau[[#Headers],[Oct]]),1),INDEX(PrévisionsBureau[],,1),0),MATCH(ÉcartsBureau[[#Headers],[Oct]],PrévisionsBureau[#Headers],0))-INDEX(DépensesRéellesBureau[],MATCH(INDEX(ÉcartsBureau[],ROW()-ROW(ÉcartsBureau[[#Headers],[Oct]]),1),INDEX(PrévisionsBureau[],,1),0),MATCH(ÉcartsBureau[[#Headers],[Oct]],DépensesRéellesBureau[#Headers],0))","v":{"v":600,"d":"600.00 €"}},{"$f":"INDEX(PrévisionsBureau[],MATCH(INDEX(ÉcartsBureau[],ROW()-ROW(ÉcartsBureau[[#Headers],[Nov]]),1),INDEX(PrévisionsBureau[],,1),0),MATCH(ÉcartsBureau[[#Headers],[Nov]],PrévisionsBureau[#Headers],0))-INDEX(DépensesRéellesBureau[],MATCH(INDEX(ÉcartsBureau[],ROW()-ROW(ÉcartsBureau[[#Headers],[Nov]]),1),INDEX(PrévisionsBureau[],,1),0),MATCH(ÉcartsBureau[[#Headers],[Nov]],DépensesRéellesBureau[#Headers],0))","v":{"v":600,"d":"600.00 €"}},{"$f":"INDEX(PrévisionsBureau[],MATCH(INDEX(ÉcartsBureau[],ROW()-ROW(ÉcartsBureau[[#Headers],[Déc]]),1),INDEX(PrévisionsBureau[],,1),0),MATCH(ÉcartsBureau[[#Headers],[Déc]],PrévisionsBureau[#Headers],0))-INDEX(DépensesRéellesBureau[],MATCH(INDEX(ÉcartsBureau[],ROW()-ROW(ÉcartsBureau[[#Headers],[Déc]]),1),INDEX(PrévisionsBureau[],,1),0),MATCH(ÉcartsBureau[[#Headers],[Déc]],DépensesRéellesBureau[#Headers],0))","v":{"v":600,"d":"600.00 €"}},{"$f":"SUM(ÉcartsBureau[[#This Row],[Jan]:[Déc]])","v":{"v":3600,"d":"3,600.00 €"}}]
[null,"Sous-total",{"$f":"SUBTOTAL(109,ÉcartsBureau[Jan])","v":{"v":-17,"d":"-17.00 €"}},{"$f":"SUBTOTAL(109,ÉcartsBureau[Fév])","v":{"v":72,"d":"72.00 €"}},{"$f":"SUBTOTAL(109,ÉcartsBureau[Mar])","v":{"v":78,"d":"78.00 €"}},{"$f":"SUBTOTAL(109,ÉcartsBureau[Avr])","v":{"v":-141,"d":"-141.00 €"}},{"$f":"SUBTOTAL(109,ÉcartsBureau[Mai])","v":{"v":-38,"d":"-38.00 €"}},{"$f":"SUBTOTAL(109,ÉcartsBureau[Juin])","v":{"v":16,"d":"16.00 €"}},{"$f":"SUBTOTAL(109,ÉcartsBureau[Juil])","v":{"v":11470,"d":"11,470.00 €"}},{"$f":"SUBTOTAL(109,ÉcartsBureau[Août])","v":{"v":11470,"d":"11,470.00 €"}},{"$f":"SUBTOTAL(109,ÉcartsBureau[Sept])","v":{"v":11470,"d":"11,470.00 €"}},{"$f":"SUBTOTAL(109,ÉcartsBureau[Oct])","v":{"v":11470,"d":"11,470.00 €"}},{"$f":"SUBTOTAL(109,ÉcartsBureau[Nov])","v":{"v":11770,"d":"11,770.00 €"}},{"$f":"SUBTOTAL(109,ÉcartsBureau[Déc])","v":{"v":11770,"d":"11,770.00 €"}},{"$f":"SUBTOTAL(109,ÉcartsBureau[ANNÉE])","v":{"v":69390,"d":"69,390.00 €"}}]
[]
["L’écart relatif aux coûts marketing est automatiquement calculé dans la table Écarts marketing en commençant par la cellule de droite. L’instruction suivante figure dans la cellule A30.","Coûts marketing","Jan","Fév","Mar","Avr","Mai","Juin","Juil","Août","Sept","Oct","Nov","Déc","ANNÉE"]
[null,"Hébergement du site web",{"$f":"INDEX(PrévisionsMarketing[],MATCH(INDEX(ÉcartsMarketing[],ROW()-ROW(ÉcartsMarketing[[#Headers],[Jan]]),1),INDEX(PrévisionsMarketing[],,1),0),MATCH(ÉcartsMarketing[[#Headers],[Jan]],PrévisionsMarketing[#Headers],0))-INDEX(DépensesRéellesMarketing[],MATCH(INDEX(ÉcartsMarketing[],ROW()-ROW(ÉcartsMarketing[[#Headers],[Jan]]),1),INDEX(PrévisionsMarketing[],,1),0),MATCH(ÉcartsMarketing[[#Headers],[Jan]],DépensesRéellesMarketing[#Headers],0))","v":{"v":0,"d":"0.00 €"}},{"$f":"INDEX(PrévisionsMarketing[],MATCH(INDEX(ÉcartsMarketing[],ROW()-ROW(ÉcartsMarketing[[#Headers],[Fév]]),1),INDEX(PrévisionsMarketing[],,1),0),MATCH(ÉcartsMarketing[[#Headers],[Fév]],PrévisionsMarketing[#Headers],0))-INDEX(DépensesRéellesMarketing[],MATCH(INDEX(ÉcartsMarketing[],ROW()-ROW(ÉcartsMarketing[[#Headers],[Fév]]),1),INDEX(PrévisionsMarketing[],,1),0),MATCH(ÉcartsMarketing[[#Headers],[Fév]],DépensesRéellesMarketing[#Headers],0))","v":{"v":0,"d":"0.00 €"}},{"$f":"INDEX(PrévisionsMarketing[],MATCH(INDEX(ÉcartsMarketing[],ROW()-ROW(ÉcartsMarketing[[#Headers],[Mar]]),1),INDEX(PrévisionsMarketing[],,1),0),MATCH(ÉcartsMarketing[[#Headers],[Mar]],PrévisionsMarketing[#Headers],0))-INDEX(DépensesRéellesMarketing[],MATCH(INDEX(ÉcartsMarketing[],ROW()-ROW(ÉcartsMarketing[[#Headers],[Mar]]),1),INDEX(PrévisionsMarketing[],,1),0),MATCH(ÉcartsMarketing[[#Headers],[Mar]],DépensesRéellesMarketing[#Headers],0))","v":{"v":0,"d":"0.00 €"}},{"$f":"INDEX(PrévisionsMarketing[],MATCH(INDEX(ÉcartsMarketing[],ROW()-ROW(ÉcartsMarketing[[#Headers],[Avr]]),1),INDEX(PrévisionsMarketing[],,1),0),MATCH(ÉcartsMarketing[[#Headers],[Avr]],PrévisionsMarketing[#Headers],0))-INDEX(DépensesRéellesMarketing[],MATCH(INDEX(ÉcartsMarketing[],ROW()-ROW(ÉcartsMarketing[[#Headers],[Avr]]),1),INDEX(PrévisionsMarketing[],,1),0),MATCH(ÉcartsMarketing[[#Headers],[Avr]],DépensesRéellesMarketing[#Headers],0))","v":{"v":0,"d":"0.00 €"}},{"$f":"INDEX(PrévisionsMarketing[],MATCH(INDEX(ÉcartsMarketing[],ROW()-ROW(ÉcartsMarketing[[#Headers],[Mai]]),1),INDEX(PrévisionsMarketing[],,1),0),MATCH(ÉcartsMarketing[[#Headers],[Mai]],PrévisionsMarketing[#Headers],0))-INDEX(DépensesRéellesMarketing[],MATCH(INDEX(ÉcartsMarketing[],ROW()-ROW(ÉcartsMarketing[[#Headers],[Mai]]),1),INDEX(PrévisionsMarketing[],,1),0),MATCH(ÉcartsMarketing[[#Headers],[Mai]],DépensesRéellesMarketing[#Headers],0))","v":{"v":0,"d":"0.00 €"}},{"$f":"INDEX(PrévisionsMarketing[],MATCH(INDEX(ÉcartsMarketing[],ROW()-ROW(ÉcartsMarketing[[#Headers],[Juin]]),1),INDEX(PrévisionsMarketing[],,1),0),MATCH(ÉcartsMarketing[[#Headers],[Juin]],PrévisionsMarketing[#Headers],0))-INDEX(DépensesRéellesMarketing[],MATCH(INDEX(ÉcartsMarketing[],ROW()-ROW(ÉcartsMarketing[[#Headers],[Juin]]),1),INDEX(PrévisionsMarketing[],,1),0),MATCH(ÉcartsMarketing[[#Headers],[Juin]],DépensesRéellesMarketing[#Headers],0))","v":{"v":0,"d":"0.00 €"}},{"$f":"INDEX(PrévisionsMarketing[],MATCH(INDEX(ÉcartsMarketing[],ROW()-ROW(ÉcartsMarketing[[#Headers],[Juil]]),1),INDEX(PrévisionsMarketing[],,1),0),MATCH(ÉcartsMarketing[[#Headers],[Juil]],PrévisionsMarketing[#Headers],0))-INDEX(DépensesRéellesMarketing[],MATCH(INDEX(ÉcartsMarketing[],ROW()-ROW(ÉcartsMarketing[[#Headers],[Juil]]),1),INDEX(PrévisionsMarketing[],,1),0),MATCH(ÉcartsMarketing[[#Headers],[Juil]],DépensesRéellesMarketing[#Headers],0))","v":{"v":500,"d":"500.00 €"}},{"$f":"INDEX(PrévisionsMarketing[],MATCH(INDEX(ÉcartsMarketing[],ROW()-ROW(ÉcartsMarketing[[#Headers],[Août]]),1),INDEX(PrévisionsMarketing[],,1),0),MATCH(ÉcartsMarketing[[#Headers],[Août]],PrévisionsMarketing[#Headers],0))-INDEX(DépensesRéellesMarketing[],MATCH(INDEX(ÉcartsMarketing[],ROW()-ROW(ÉcartsMarketing[[#Headers],[Août]]),1),INDEX(PrévisionsMarketing[],,1),0),MATCH(ÉcartsMarketing[[#Headers],[Août]],DépensesRéellesMarketing[#Headers],0))","v":{"v":500,"d":"500.00 €"}},{"$f":"INDEX(PrévisionsMarketing[],MATCH(INDEX(ÉcartsMarketing[],ROW()-ROW(ÉcartsMarketing[[#Headers],[Sept]]),1),INDEX(PrévisionsMarketing[],,1),0),MATCH(ÉcartsMarketing[[#Headers],[Sept]],PrévisionsMarketing[#Headers],0))-INDEX(DépensesRéellesMarketing[],MATCH(INDEX(ÉcartsMarketing[],ROW()-ROW(ÉcartsMarketing[[#Headers],[Sept]]),1),INDEX(PrévisionsMarketing[],,1),0),MATCH(ÉcartsMarketing[[#Headers],[Sept]],DépensesRéellesMarketing[#Headers],0))","v":{"v":500,"d":"500.00 €"}},{"$f":"INDEX(PrévisionsMarketing[],MATCH(INDEX(ÉcartsMarketing[],ROW()-ROW(ÉcartsMarketing[[#Headers],[Oct]]),1),INDEX(PrévisionsMarketing[],,1),0),MATCH(ÉcartsMarketing[[#Headers],[Oct]],PrévisionsMarketing[#Headers],0))-INDEX(DépensesRéellesMarketing[],MATCH(INDEX(ÉcartsMarketing[],ROW()-ROW(ÉcartsMarketing[[#Headers],[Oct]]),1),INDEX(PrévisionsMarketing[],,1),0),MATCH(ÉcartsMarketing[[#Headers],[Oct]],DépensesRéellesMarketing[#Headers],0))","v":{"v":500,"d":"500.00 €"}},{"$f":"INDEX(PrévisionsMarketing[],MATCH(INDEX(ÉcartsMarketing[],ROW()-ROW(ÉcartsMarketing[[#Headers],[Nov]]),1),INDEX(PrévisionsMarketing[],,1),0),MATCH(ÉcartsMarketing[[#Headers],[Nov]],PrévisionsMarketing[#Headers],0))-INDEX(DépensesRéellesMarketing[],MATCH(INDEX(ÉcartsMarketing[],ROW()-ROW(ÉcartsMarketing[[#Headers],[Nov]]),1),INDEX(PrévisionsMarketing[],,1),0),MATCH(ÉcartsMarketing[[#Headers],[Nov]],DépensesRéellesMarketing[#Headers],0))","v":{"v":500,"d":"500.00 €"}},{"$f":"INDEX(PrévisionsMarketing[],MATCH(INDEX(ÉcartsMarketing[],ROW()-ROW(ÉcartsMarketing[[#Headers],[Déc]]),1),INDEX(PrévisionsMarketing[],,1),0),MATCH(ÉcartsMarketing[[#Headers],[Déc]],PrévisionsMarketing[#Headers],0))-INDEX(DépensesRéellesMarketing[],MATCH(INDEX(ÉcartsMarketing[],ROW()-ROW(ÉcartsMarketing[[#Headers],[Déc]]),1),INDEX(PrévisionsMarketing[],,1),0),MATCH(ÉcartsMarketing[[#Headers],[Déc]],DépensesRéellesMarketing[#Headers],0))","v":{"v":500,"d":"500.00 €"}},{"$f":"SUM(ÉcartsMarketing[[#This Row],[Jan]:[Déc]])","v":{"v":3000,"d":"3,000.00 €"}}]
[null,"Mises à jour du site web",{"$f":"INDEX(PrévisionsMarketing[],MATCH(INDEX(ÉcartsMarketing[],ROW()-ROW(ÉcartsMarketing[[#Headers],[Jan]]),1),INDEX(PrévisionsMarketing[],,1),0),MATCH(ÉcartsMarketing[[#Headers],[Jan]],PrévisionsMarketing[#Headers],0))-INDEX(DépensesRéellesMarketing[],MATCH(INDEX(ÉcartsMarketing[],ROW()-ROW(ÉcartsMarketing[[#Headers],[Jan]]),1),INDEX(PrévisionsMarketing[],,1),0),MATCH(ÉcartsMarketing[[#Headers],[Jan]],DépensesRéellesMarketing[#Headers],0))","v":{"v":0,"d":"0.00 €"}},{"$f":"INDEX(PrévisionsMarketing[],MATCH(INDEX(ÉcartsMarketing[],ROW()-ROW(ÉcartsMarketing[[#Headers],[Fév]]),1),INDEX(PrévisionsMarketing[],,1),0),MATCH(ÉcartsMarketing[[#Headers],[Fév]],PrévisionsMarketing[#Headers],0))-INDEX(DépensesRéellesMarketing[],MATCH(INDEX(ÉcartsMarketing[],ROW()-ROW(ÉcartsMarketing[[#Headers],[Fév]]),1),INDEX(PrévisionsMarketing[],,1),0),MATCH(ÉcartsMarketing[[#Headers],[Fév]],DépensesRéellesMarketing[#Headers],0))","v":{"v":0,"d":"0.00 €"}},{"$f":"INDEX(PrévisionsMarketing[],MATCH(INDEX(ÉcartsMarketing[],ROW()-ROW(ÉcartsMarketing[[#Headers],[Mar]]),1),INDEX(PrévisionsMarketing[],,1),0),MATCH(ÉcartsMarketing[[#Headers],[Mar]],PrévisionsMarketing[#Headers],0))-INDEX(DépensesRéellesMarketing[],MATCH(INDEX(ÉcartsMarketing[],ROW()-ROW(ÉcartsMarketing[[#Headers],[Mar]]),1),INDEX(PrévisionsMarketing[],,1),0),MATCH(ÉcartsMarketing[[#Headers],[Mar]],DépensesRéellesMarketing[#Headers],0))","v":{"v":0,"d":"0.00 €"}},{"$f":"INDEX(PrévisionsMarketing[],MATCH(INDEX(ÉcartsMarketing[],ROW()-ROW(ÉcartsMarketing[[#Headers],[Avr]]),1),INDEX(PrévisionsMarketing[],,1),0),MATCH(ÉcartsMarketing[[#Headers],[Avr]],PrévisionsMarketing[#Headers],0))-INDEX(DépensesRéellesMarketing[],MATCH(INDEX(ÉcartsMarketing[],ROW()-ROW(ÉcartsMarketing[[#Headers],[Avr]]),1),INDEX(PrévisionsMarketing[],,1),0),MATCH(ÉcartsMarketing[[#Headers],[Avr]],DépensesRéellesMarketing[#Headers],0))","v":{"v":0,"d":"0.00 €"}},{"$f":"INDEX(PrévisionsMarketing[],MATCH(INDEX(ÉcartsMarketing[],ROW()-ROW(ÉcartsMarketing[[#Headers],[Mai]]),1),INDEX(PrévisionsMarketing[],,1),0),MATCH(ÉcartsMarketing[[#Headers],[Mai]],PrévisionsMarketing[#Headers],0))-INDEX(DépensesRéellesMarketing[],MATCH(INDEX(ÉcartsMarketing[],ROW()-ROW(ÉcartsMarketing[[#Headers],[Mai]]),1),INDEX(PrévisionsMarketing[],,1),0),MATCH(ÉcartsMarketing[[#Headers],[Mai]],DépensesRéellesMarketing[#Headers],0))","v":{"v":0,"d":"0.00 €"}},{"$f":"INDEX(PrévisionsMarketing[],MATCH(INDEX(ÉcartsMarketing[],ROW()-ROW(ÉcartsMarketing[[#Headers],[Juin]]),1),INDEX(PrévisionsMarketing[],,1),0),MATCH(ÉcartsMarketing[[#Headers],[Juin]],PrévisionsMarketing[#Headers],0))-INDEX(DépensesRéellesMarketing[],MATCH(INDEX(ÉcartsMarketing[],ROW()-ROW(ÉcartsMarketing[[#Headers],[Juin]]),1),INDEX(PrévisionsMarketing[],,1),0),MATCH(ÉcartsMarketing[[#Headers],[Juin]],DépensesRéellesMarketing[#Headers],0))","v":{"v":-500,"d":"-500.00 €"}},{"$f":"INDEX(PrévisionsMarketing[],MATCH(INDEX(ÉcartsMarketing[],ROW()-ROW(ÉcartsMarketing[[#Headers],[Juil]]),1),INDEX(PrévisionsMarketing[],,1),0),MATCH(ÉcartsMarketing[[#Headers],[Juil]],PrévisionsMarketing[#Headers],0))-INDEX(DépensesRéellesMarketing[],MATCH(INDEX(ÉcartsMarketing[],ROW()-ROW(ÉcartsMarketing[[#Headers],[Juil]]),1),INDEX(PrévisionsMarketing[],,1),0),MATCH(ÉcartsMarketing[[#Headers],[Juil]],DépensesRéellesMarketing[#Headers],0))","v":{"v":200,"d":"200.00 €"}},{"$f":"INDEX(PrévisionsMarketing[],MATCH(INDEX(ÉcartsMarketing[],ROW()-ROW(ÉcartsMarketing[[#Headers],[Août]]),1),INDEX(PrévisionsMarketing[],,1),0),MATCH(ÉcartsMarketing[[#Headers],[Août]],PrévisionsMarketing[#Headers],0))-INDEX(DépensesRéellesMarketing[],MATCH(INDEX(ÉcartsMarketing[],ROW()-ROW(ÉcartsMarketing[[#Headers],[Août]]),1),INDEX(PrévisionsMarketing[],,1),0),MATCH(ÉcartsMarketing[[#Headers],[Août]],DépensesRéellesMarketing[#Headers],0))","v":{"v":200,"d":"200.00 €"}},{"$f":"INDEX(PrévisionsMarketing[],MATCH(INDEX(ÉcartsMarketing[],ROW()-ROW(ÉcartsMarketing[[#Headers],[Sept]]),1),INDEX(PrévisionsMarketing[],,1),0),MATCH(ÉcartsMarketing[[#Headers],[Sept]],PrévisionsMarketing[#Headers],0))-INDEX(DépensesRéellesMarketing[],MATCH(INDEX(ÉcartsMarketing[],ROW()-ROW(ÉcartsMarketing[[#Headers],[Sept]]),1),INDEX(PrévisionsMarketing[],,1),0),MATCH(ÉcartsMarketing[[#Headers],[Sept]],DépensesRéellesMarketing[#Headers],0))","v":{"v":200,"d":"200.00 €"}},{"$f":"INDEX(PrévisionsMarketing[],MATCH(INDEX(ÉcartsMarketing[],ROW()-ROW(ÉcartsMarketing[[#Headers],[Oct]]),1),INDEX(PrévisionsMarketing[],,1),0),MATCH(ÉcartsMarketing[[#Headers],[Oct]],PrévisionsMarketing[#Headers],0))-INDEX(DépensesRéellesMarketing[],MATCH(INDEX(ÉcartsMarketing[],ROW()-ROW(ÉcartsMarketing[[#Headers],[Oct]]),1),INDEX(PrévisionsMarketing[],,1),0),MATCH(ÉcartsMarketing[[#Headers],[Oct]],DépensesRéellesMarketing[#Headers],0))","v":{"v":200,"d":"200.00 €"}},{"$f":"INDEX(PrévisionsMarketing[],MATCH(INDEX(ÉcartsMarketing[],ROW()-ROW(ÉcartsMarketing[[#Headers],[Nov]]),1),INDEX(PrévisionsMarketing[],,1),0),MATCH(ÉcartsMarketing[[#Headers],[Nov]],PrévisionsMarketing[#Headers],0))-INDEX(DépensesRéellesMarketing[],MATCH(INDEX(ÉcartsMarketing[],ROW()-ROW(ÉcartsMarketing[[#Headers],[Nov]]),1),INDEX(PrévisionsMarketing[],,1),0),MATCH(ÉcartsMarketing[[#Headers],[Nov]],DépensesRéellesMarketing[#Headers],0))","v":{"v":200,"d":"200.00 €"}},{"$f":"INDEX(PrévisionsMarketing[],MATCH(INDEX(ÉcartsMarketing[],ROW()-ROW(ÉcartsMarketing[[#Headers],[Déc]]),1),INDEX(PrévisionsMarketing[],,1),0),MATCH(ÉcartsMarketing[[#Headers],[Déc]],PrévisionsMarketing[#Headers],0))-INDEX(DépensesRéellesMarketing[],MATCH(INDEX(ÉcartsMarketing[],ROW()-ROW(ÉcartsMarketing[[#Headers],[Déc]]),1),INDEX(PrévisionsMarketing[],,1),0),MATCH(ÉcartsMarketing[[#Headers],[Déc]],DépensesRéellesMarketing[#Headers],0))","v":{"v":1000,"d":"1,000.00 €"}},{"$f":"SUM(ÉcartsMarketing[[#This Row],[Jan]:[Déc]])","v":{"v":1500,"d":"1,500.00 €"}}]
[null,"Préparation contrat de garantie",{"$f":"INDEX(PrévisionsMarketing[],MATCH(INDEX(ÉcartsMarketing[],ROW()-ROW(ÉcartsMarketing[[#Headers],[Jan]]),1),INDEX(PrévisionsMarketing[],,1),0),MATCH(ÉcartsMarketing[[#Headers],[Jan]],PrévisionsMarketing[#Headers],0))-INDEX(DépensesRéellesMarketing[],MATCH(INDEX(ÉcartsMarketing[],ROW()-ROW(ÉcartsMarketing[[#Headers],[Jan]]),1),INDEX(PrévisionsMarketing[],,1),0),MATCH(ÉcartsMarketing[[#Headers],[Jan]],DépensesRéellesMarketing[#Headers],0))","v":{"v":200,"d":"200.00 €"}},{"$f":"INDEX(PrévisionsMarketing[],MATCH(INDEX(ÉcartsMarketing[],ROW()-ROW(ÉcartsMarketing[[#Headers],[Fév]]),1),INDEX(PrévisionsMarketing[],,1),0),MATCH(ÉcartsMarketing[[#Headers],[Fév]],PrévisionsMarketing[#Headers],0))-INDEX(DépensesRéellesMarketing[],MATCH(INDEX(ÉcartsMarketing[],ROW()-ROW(ÉcartsMarketing[[#Headers],[Fév]]),1),INDEX(PrévisionsMarketing[],,1),0),MATCH(ÉcartsMarketing[[#Headers],[Fév]],DépensesRéellesMarketing[#Headers],0))","v":{"v":0,"d":"0.00 €"}},{"$f":"INDEX(PrévisionsMarketing[],MATCH(INDEX(ÉcartsMarketing[],ROW()-ROW(ÉcartsMarketing[[#Headers],[Mar]]),1),INDEX(PrévisionsMarketing[],,1),0),MATCH(ÉcartsMarketing[[#Headers],[Mar]],PrévisionsMarketing[#Headers],0))-INDEX(DépensesRéellesMarketing[],MATCH(INDEX(ÉcartsMarketing[],ROW()-ROW(ÉcartsMarketing[[#Headers],[Mar]]),1),INDEX(PrévisionsMarketing[],,1),0),MATCH(ÉcartsMarketing[[#Headers],[Mar]],DépensesRéellesMarketing[#Headers],0))","v":{"v":0,"d":"0.00 €"}},{"$f":"INDEX(PrévisionsMarketing[],MATCH(INDEX(ÉcartsMarketing[],ROW()-ROW(ÉcartsMarketing[[#Headers],[Avr]]),1),INDEX(PrévisionsMarketing[],,1),0),MATCH(ÉcartsMarketing[[#Headers],[Avr]],PrévisionsMarketing[#Headers],0))-INDEX(DépensesRéellesMarketing[],MATCH(INDEX(ÉcartsMarketing[],ROW()-ROW(ÉcartsMarketing[[#Headers],[Avr]]),1),INDEX(PrévisionsMarketing[],,1),0),MATCH(ÉcartsMarketing[[#Headers],[Avr]],DépensesRéellesMarketing[#Headers],0))","v":{"v":-500,"d":"-500.00 €"}},{"$f":"INDEX(PrévisionsMarketing[],MATCH(INDEX(ÉcartsMarketing[],ROW()-ROW(ÉcartsMarketing[[#Headers],[Mai]]),1),INDEX(PrévisionsMarketing[],,1),0),MATCH(ÉcartsMarketing[[#Headers],[Mai]],PrévisionsMarketing[#Headers],0))-INDEX(DépensesRéellesMarketing[],MATCH(INDEX(ÉcartsMarketing[],ROW()-ROW(ÉcartsMarketing[[#Headers],[Mai]]),1),INDEX(PrévisionsMarketing[],,1),0),MATCH(ÉcartsMarketing[[#Headers],[Mai]],DépensesRéellesMarketing[#Headers],0))","v":{"v":0,"d":"0.00 €"}},{"$f":"INDEX(PrévisionsMarketing[],MATCH(INDEX(ÉcartsMarketing[],ROW()-ROW(ÉcartsMarketing[[#Headers],[Juin]]),1),INDEX(PrévisionsMarketing[],,1),0),MATCH(ÉcartsMarketing[[#Headers],[Juin]],PrévisionsMarketing[#Headers],0))-INDEX(DépensesRéellesMarketing[],MATCH(INDEX(ÉcartsMarketing[],ROW()-ROW(ÉcartsMarketing[[#Headers],[Juin]]),1),INDEX(PrévisionsMarketing[],,1),0),MATCH(ÉcartsMarketing[[#Headers],[Juin]],DépensesRéellesMarketing[#Headers],0))","v":{"v":0,"d":"0.00 €"}},{"$f":"INDEX(PrévisionsMarketing[],MATCH(INDEX(ÉcartsMarketing[],ROW()-ROW(ÉcartsMarketing[[#Headers],[Juil]]),1),INDEX(PrévisionsMarketing[],,1),0),MATCH(ÉcartsMarketing[[#Headers],[Juil]],PrévisionsMarketing[#Headers],0))-INDEX(DépensesRéellesMarketing[],MATCH(INDEX(ÉcartsMarketing[],ROW()-ROW(ÉcartsMarketing[[#Headers],[Juil]]),1),INDEX(PrévisionsMarketing[],,1),0),MATCH(ÉcartsMarketing[[#Headers],[Juil]],DépensesRéellesMarketing[#Headers],0))","v":{"v":5000,"d":"5,000.00 €"}},{"$f":"INDEX(PrévisionsMarketing[],MATCH(INDEX(ÉcartsMarketing[],ROW()-ROW(ÉcartsMarketing[[#Headers],[Août]]),1),INDEX(PrévisionsMarketing[],,1),0),MATCH(ÉcartsMarketing[[#Headers],[Août]],PrévisionsMarketing[#Headers],0))-INDEX(DépensesRéellesMarketing[],MATCH(INDEX(ÉcartsMarketing[],ROW()-ROW(ÉcartsMarketing[[#Headers],[Août]]),1),INDEX(PrévisionsMarketing[],,1),0),MATCH(ÉcartsMarketing[[#Headers],[Août]],DépensesRéellesMarketing[#Headers],0))","v":{"v":0,"d":"0.00 €"}},{"$f":"INDEX(PrévisionsMarketing[],MATCH(INDEX(ÉcartsMarketing[],ROW()-ROW(ÉcartsMarketing[[#Headers],[Sept]]),1),INDEX(PrévisionsMarketing[],,1),0),MATCH(ÉcartsMarketing[[#Headers],[Sept]],PrévisionsMarketing[#Headers],0))-INDEX(DépensesRéellesMarketing[],MATCH(INDEX(ÉcartsMarketing[],ROW()-ROW(ÉcartsMarketing[[#Headers],[Sept]]),1),INDEX(PrévisionsMarketing[],,1),0),MATCH(ÉcartsMarketing[[#Headers],[Sept]],DépensesRéellesMarketing[#Headers],0))","v":{"v":0,"d":"0.00 €"}},{"$f":"INDEX(PrévisionsMarketing[],MATCH(INDEX(ÉcartsMarketing[],ROW()-ROW(ÉcartsMarketing[[#Headers],[Oct]]),1),INDEX(PrévisionsMarketing[],,1),0),MATCH(ÉcartsMarketing[[#Headers],[Oct]],PrévisionsMarketing[#Headers],0))-INDEX(DépensesRéellesMarketing[],MATCH(INDEX(ÉcartsMarketing[],ROW()-ROW(ÉcartsMarketing[[#Headers],[Oct]]),1),INDEX(PrévisionsMarketing[],,1),0),MATCH(ÉcartsMarketing[[#Headers],[Oct]],DépensesRéellesMarketing[#Headers],0))","v":{"v":5000,"d":"5,000.00 €"}},{"$f":"INDEX(PrévisionsMarketing[],MATCH(INDEX(ÉcartsMarketing[],ROW()-ROW(ÉcartsMarketing[[#Headers],[Nov]]),1),INDEX(PrévisionsMarketing[],,1),0),MATCH(ÉcartsMarketing[[#Headers],[Nov]],PrévisionsMarketing[#Headers],0))-INDEX(DépensesRéellesMarketing[],MATCH(INDEX(ÉcartsMarketing[],ROW()-ROW(ÉcartsMarketing[[#Headers],[Nov]]),1),INDEX(PrévisionsMarketing[],,1),0),MATCH(ÉcartsMarketing[[#Headers],[Nov]],DépensesRéellesMarketing[#Headers],0))","v":{"v":0,"d":"0.00 €"}},{"$f":"INDEX(PrévisionsMarketing[],MATCH(INDEX(ÉcartsMarketing[],ROW()-ROW(ÉcartsMarketing[[#Headers],[Déc]]),1),INDEX(PrévisionsMarketing[],,1),0),MATCH(ÉcartsMarketing[[#Headers],[Déc]],PrévisionsMarketing[#Headers],0))-INDEX(DépensesRéellesMarketing[],MATCH(INDEX(ÉcartsMarketing[],ROW()-ROW(ÉcartsMarketing[[#Headers],[Déc]]),1),INDEX(PrévisionsMarketing[],,1),0),MATCH(ÉcartsMarketing[[#Headers],[Déc]],DépensesRéellesMarketing[#Headers],0))","v":{"v":0,"d":"0.00 €"}},{"$f":"SUM(ÉcartsMarketing[[#This Row],[Jan]:[Déc]])","v":{"v":9700,"d":"9,700.00 €"}}]
[null,"Impression contrat de garantie",{"$f":"INDEX(PrévisionsMarketing[],MATCH(INDEX(ÉcartsMarketing[],ROW()-ROW(ÉcartsMarketing[[#Headers],[Jan]]),1),INDEX(PrévisionsMarketing[],,1),0),MATCH(ÉcartsMarketing[[#Headers],[Jan]],PrévisionsMarketing[#Headers],0))-INDEX(DépensesRéellesMarketing[],MATCH(INDEX(ÉcartsMarketing[],ROW()-ROW(ÉcartsMarketing[[#Headers],[Jan]]),1),INDEX(PrévisionsMarketing[],,1),0),MATCH(ÉcartsMarketing[[#Headers],[Jan]],DépensesRéellesMarketing[#Headers],0))","v":{"v":100,"d":"100.00 €"}},{"$f":"INDEX(PrévisionsMarketing[],MATCH(INDEX(ÉcartsMarketing[],ROW()-ROW(ÉcartsMarketing[[#Headers],[Fév]]),1),INDEX(PrévisionsMarketing[],,1),0),MATCH(ÉcartsMarketing[[#Headers],[Fév]],PrévisionsMarketing[#Headers],0))-INDEX(DépensesRéellesMarketing[],MATCH(INDEX(ÉcartsMarketing[],ROW()-ROW(ÉcartsMarketing[[#Headers],[Fév]]),1),INDEX(PrévisionsMarketing[],,1),0),MATCH(ÉcartsMarketing[[#Headers],[Fév]],DépensesRéellesMarketing[#Headers],0))","v":{"v":-300,"d":"-300.00 €"}},{"$f":"INDEX(PrévisionsMarketing[],MATCH(INDEX(ÉcartsMarketing[],ROW()-ROW(ÉcartsMarketing[[#Headers],[Mar]]),1),INDEX(PrévisionsMarketing[],,1),0),MATCH(ÉcartsMarketing[[#Headers],[Mar]],PrévisionsMarketing[#Headers],0))-INDEX(DépensesRéellesMarketing[],MATCH(INDEX(ÉcartsMarketing[],ROW()-ROW(ÉcartsMarketing[[#Headers],[Mar]]),1),INDEX(PrévisionsMarketing[],,1),0),MATCH(ÉcartsMarketing[[#Headers],[Mar]],DépensesRéellesMarketing[#Headers],0))","v":{"v":100,"d":"100.00 €"}},{"$f":"INDEX(PrévisionsMarketing[],MATCH(INDEX(ÉcartsMarketing[],ROW()-ROW(ÉcartsMarketing[[#Headers],[Avr]]),1),INDEX(PrévisionsMarketing[],,1),0),MATCH(ÉcartsMarketing[[#Headers],[Avr]],PrévisionsMarketing[#Headers],0))-INDEX(DépensesRéellesMarketing[],MATCH(INDEX(ÉcartsMarketing[],ROW()-ROW(ÉcartsMarketing[[#Headers],[Avr]]),1),INDEX(PrévisionsMarketing[],,1),0),MATCH(ÉcartsMarketing[[#Headers],[Avr]],DépensesRéellesMarketing[#Headers],0))","v":{"v":100,"d":"100.00 €"}},{"$f":"INDEX(PrévisionsMarketing[],MATCH(INDEX(ÉcartsMarketing[],ROW()-ROW(ÉcartsMarketing[[#Headers],[Mai]]),1),INDEX(PrévisionsMarketing[],,1),0),MATCH(ÉcartsMarketing[[#Headers],[Mai]],PrévisionsMarketing[#Headers],0))-INDEX(DépensesRéellesMarketing[],MATCH(INDEX(ÉcartsMarketing[],ROW()-ROW(ÉcartsMarketing[[#Headers],[Mai]]),1),INDEX(PrévisionsMarketing[],,1),0),MATCH(ÉcartsMarketing[[#Headers],[Mai]],DépensesRéellesMarketing[#Headers],0))","v":{"v":-400,"d":"-400.00 €"}},{"$f":"INDEX(PrévisionsMarketing[],MATCH(INDEX(ÉcartsMarketing[],ROW()-ROW(ÉcartsMarketing[[#Headers],[Juin]]),1),INDEX(PrévisionsMarketing[],,1),0),MATCH(ÉcartsMarketing[[#Headers],[Juin]],PrévisionsMarketing[#Headers],0))-INDEX(DépensesRéellesMarketing[],MATCH(INDEX(ÉcartsMarketing[],ROW()-ROW(ÉcartsMarketing[[#Headers],[Juin]]),1),INDEX(PrévisionsMarketing[],,1),0),MATCH(ÉcartsMarketing[[#Headers],[Juin]],DépensesRéellesMarketing[#Headers],0))","v":{"v":20,"d":"20.00 €"}},{"$f":"INDEX(PrévisionsMarketing[],MATCH(INDEX(ÉcartsMarketing[],ROW()-ROW(ÉcartsMarketing[[#Headers],[Juil]]),1),INDEX(PrévisionsMarketing[],,1),0),MATCH(ÉcartsMarketing[[#Headers],[Juil]],PrévisionsMarketing[#Headers],0))-INDEX(DépensesRéellesMarketing[],MATCH(INDEX(ÉcartsMarketing[],ROW()-ROW(ÉcartsMarketing[[#Headers],[Juil]]),1),INDEX(PrévisionsMarketing[],,1),0),MATCH(ÉcartsMarketing[[#Headers],[Juil]],DépensesRéellesMarketing[#Headers],0))","v":{"v":200,"d":"200.00 €"}},{"$f":"INDEX(PrévisionsMarketing[],MATCH(INDEX(ÉcartsMarketing[],ROW()-ROW(ÉcartsMarketing[[#Headers],[Août]]),1),INDEX(PrévisionsMarketing[],,1),0),MATCH(ÉcartsMarketing[[#Headers],[Août]],PrévisionsMarketing[#Headers],0))-INDEX(DépensesRéellesMarketing[],MATCH(INDEX(ÉcartsMarketing[],ROW()-ROW(ÉcartsMarketing[[#Headers],[Août]]),1),INDEX(PrévisionsMarketing[],,1),0),MATCH(ÉcartsMarketing[[#Headers],[Août]],DépensesRéellesMarketing[#Headers],0))","v":{"v":200,"d":"200.00 €"}},{"$f":"INDEX(PrévisionsMarketing[],MATCH(INDEX(ÉcartsMarketing[],ROW()-ROW(ÉcartsMarketing[[#Headers],[Sept]]),1),INDEX(PrévisionsMarketing[],,1),0),MATCH(ÉcartsMarketing[[#Headers],[Sept]],PrévisionsMarketing[#Headers],0))-INDEX(DépensesRéellesMarketing[],MATCH(INDEX(ÉcartsMarketing[],ROW()-ROW(ÉcartsMarketing[[#Headers],[Sept]]),1),INDEX(PrévisionsMarketing[],,1),0),MATCH(ÉcartsMarketing[[#Headers],[Sept]],DépensesRéellesMarketing[#Headers],0))","v":{"v":200,"d":"200.00 €"}},{"$f":"INDEX(PrévisionsMarketing[],MATCH(INDEX(ÉcartsMarketing[],ROW()-ROW(ÉcartsMarketing[[#Headers],[Oct]]),1),INDEX(PrévisionsMarketing[],,1),0),MATCH(ÉcartsMarketing[[#Headers],[Oct]],PrévisionsMarketing[#Headers],0))-INDEX(DépensesRéellesMarketing[],MATCH(INDEX(ÉcartsMarketing[],ROW()-ROW(ÉcartsMarketing[[#Headers],[Oct]]),1),INDEX(PrévisionsMarketing[],,1),0),MATCH(ÉcartsMarketing[[#Headers],[Oct]],DépensesRéellesMarketing[#Headers],0))","v":{"v":200,"d":"200.00 €"}},{"$f":"INDEX(PrévisionsMarketing[],MATCH(INDEX(ÉcartsMarketing[],ROW()-ROW(ÉcartsMarketing[[#Headers],[Nov]]),1),INDEX(PrévisionsMarketing[],,1),0),MATCH(ÉcartsMarketing[[#Headers],[Nov]],PrévisionsMarketing[#Headers],0))-INDEX(DépensesRéellesMarketing[],MATCH(INDEX(ÉcartsMarketing[],ROW()-ROW(ÉcartsMarketing[[#Headers],[Nov]]),1),INDEX(PrévisionsMarketing[],,1),0),MATCH(ÉcartsMarketing[[#Headers],[Nov]],DépensesRéellesMarketing[#Headers],0))","v":{"v":200,"d":"200.00 €"}},{"$f":"INDEX(PrévisionsMarketing[],MATCH(INDEX(ÉcartsMarketing[],ROW()-ROW(ÉcartsMarketing[[#Headers],[Déc]]),1),INDEX(PrévisionsMarketing[],,1),0),MATCH(ÉcartsMarketing[[#Headers],[Déc]],PrévisionsMarketing[#Headers],0))-INDEX(DépensesRéellesMarketing[],MATCH(INDEX(ÉcartsMarketing[],ROW()-ROW(ÉcartsMarketing[[#Headers],[Déc]]),1),INDEX(PrévisionsMarketing[],,1),0),MATCH(ÉcartsMarketing[[#Headers],[Déc]],DépensesRéellesMarketing[#Headers],0))","v":{"v":200,"d":"200.00 €"}},{"$f":"SUM(ÉcartsMarketing[[#This Row],[Jan]:[Déc]])","v":{"v":820,"d":"820.00 €"}}]
[null,"Événements marketing",{"$f":"INDEX(PrévisionsMarketing[],MATCH(INDEX(ÉcartsMarketing[],ROW()-ROW(ÉcartsMarketing[[#Headers],[Jan]]),1),INDEX(PrévisionsMarketing[],,1),0),MATCH(ÉcartsMarketing[[#Headers],[Jan]],PrévisionsMarketing[#Headers],0))-INDEX(DépensesRéellesMarketing[],MATCH(INDEX(ÉcartsMarketing[],ROW()-ROW(ÉcartsMarketing[[#Headers],[Jan]]),1),INDEX(PrévisionsMarketing[],,1),0),MATCH(ÉcartsMarketing[[#Headers],[Jan]],DépensesRéellesMarketing[#Headers],0))","v":{"v":200,"d":"200.00 €"}},{"$f":"INDEX(PrévisionsMarketing[],MATCH(INDEX(ÉcartsMarketing[],ROW()-ROW(ÉcartsMarketing[[#Headers],[Fév]]),1),INDEX(PrévisionsMarketing[],,1),0),MATCH(ÉcartsMarketing[[#Headers],[Fév]],PrévisionsMarketing[#Headers],0))-INDEX(DépensesRéellesMarketing[],MATCH(INDEX(ÉcartsMarketing[],ROW()-ROW(ÉcartsMarketing[[#Headers],[Fév]]),1),INDEX(PrévisionsMarketing[],,1),0),MATCH(ÉcartsMarketing[[#Headers],[Fév]],DépensesRéellesMarketing[#Headers],0))","v":{"v":-200,"d":"-200.00 €"}},{"$f":"INDEX(PrévisionsMarketing[],MATCH(INDEX(ÉcartsMarketing[],ROW()-ROW(ÉcartsMarketing[[#Headers],[Mar]]),1),INDEX(PrévisionsMarketing[],,1),0),MATCH(ÉcartsMarketing[[#Headers],[Mar]],PrévisionsMarketing[#Headers],0))-INDEX(DépensesRéellesMarketing[],MATCH(INDEX(ÉcartsMarketing[],ROW()-ROW(ÉcartsMarketing[[#Headers],[Mar]]),1),INDEX(PrévisionsMarketing[],,1),0),MATCH(ÉcartsMarketing[[#Headers],[Mar]],DépensesRéellesMarketing[#Headers],0))","v":{"v":-200,"d":"-200.00 €"}},{"$f":"INDEX(PrévisionsMarketing[],MATCH(INDEX(ÉcartsMarketing[],ROW()-ROW(ÉcartsMarketing[[#Headers],[Avr]]),1),INDEX(PrévisionsMarketing[],,1),0),MATCH(ÉcartsMarketing[[#Headers],[Avr]],PrévisionsMarketing[#Headers],0))-INDEX(DépensesRéellesMarketing[],MATCH(INDEX(ÉcartsMarketing[],ROW()-ROW(ÉcartsMarketing[[#Headers],[Avr]]),1),INDEX(PrévisionsMarketing[],,1),0),MATCH(ÉcartsMarketing[[#Headers],[Avr]],DépensesRéellesMarketing[#Headers],0))","v":{"v":300,"d":"300.00 €"}},{"$f":"INDEX(PrévisionsMarketing[],MATCH(INDEX(ÉcartsMarketing[],ROW()-ROW(ÉcartsMarketing[[#Headers],[Mai]]),1),INDEX(PrévisionsMarketing[],,1),0),MATCH(ÉcartsMarketing[[#Headers],[Mai]],PrévisionsMarketing[#Headers],0))-INDEX(DépensesRéellesMarketing[],MATCH(INDEX(ÉcartsMarketing[],ROW()-ROW(ÉcartsMarketing[[#Headers],[Mai]]),1),INDEX(PrévisionsMarketing[],,1),0),MATCH(ÉcartsMarketing[[#Headers],[Mai]],DépensesRéellesMarketing[#Headers],0))","v":{"v":500,"d":"500.00 €"}},{"$f":"INDEX(PrévisionsMarketing[],MATCH(INDEX(ÉcartsMarketing[],ROW()-ROW(ÉcartsMarketing[[#Headers],[Juin]]),1),INDEX(PrévisionsMarketing[],,1),0),MATCH(ÉcartsMarketing[[#Headers],[Juin]],PrévisionsMarketing[#Headers],0))-INDEX(DépensesRéellesMarketing[],MATCH(INDEX(ÉcartsMarketing[],ROW()-ROW(ÉcartsMarketing[[#Headers],[Juin]]),1),INDEX(PrévisionsMarketing[],,1),0),MATCH(ÉcartsMarketing[[#Headers],[Juin]],DépensesRéellesMarketing[#Headers],0))","v":{"v":-300,"d":"-300.00 €"}},{"$f":"INDEX(PrévisionsMarketing[],MATCH(INDEX(ÉcartsMarketing[],ROW()-ROW(ÉcartsMarketing[[#Headers],[Juil]]),1),INDEX(PrévisionsMarketing[],,1),0),MATCH(ÉcartsMarketing[[#Headers],[Juil]],PrévisionsMarketing[#Headers],0))-INDEX(DépensesRéellesMarketing[],MATCH(INDEX(ÉcartsMarketing[],ROW()-ROW(ÉcartsMarketing[[#Headers],[Juil]]),1),INDEX(PrévisionsMarketing[],,1),0),MATCH(ÉcartsMarketing[[#Headers],[Juil]],DépensesRéellesMarketing[#Headers],0))","v":{"v":2000,"d":"2,000.00 €"}},{"$f":"INDEX(PrévisionsMarketing[],MATCH(INDEX(ÉcartsMarketing[],ROW()-ROW(ÉcartsMarketing[[#Headers],[Août]]),1),INDEX(PrévisionsMarketing[],,1),0),MATCH(ÉcartsMarketing[[#Headers],[Août]],PrévisionsMarketing[#Headers],0))-INDEX(DépensesRéellesMarketing[],MATCH(INDEX(ÉcartsMarketing[],ROW()-ROW(ÉcartsMarketing[[#Headers],[Août]]),1),INDEX(PrévisionsMarketing[],,1),0),MATCH(ÉcartsMarketing[[#Headers],[Août]],DépensesRéellesMarketing[#Headers],0))","v":{"v":5000,"d":"5,000.00 €"}},{"$f":"INDEX(PrévisionsMarketing[],MATCH(INDEX(ÉcartsMarketing[],ROW()-ROW(ÉcartsMarketing[[#Headers],[Sept]]),1),INDEX(PrévisionsMarketing[],,1),0),MATCH(ÉcartsMarketing[[#Headers],[Sept]],PrévisionsMarketing[#Headers],0))-INDEX(DépensesRéellesMarketing[],MATCH(INDEX(ÉcartsMarketing[],ROW()-ROW(ÉcartsMarketing[[#Headers],[Sept]]),1),INDEX(PrévisionsMarketing[],,1),0),MATCH(ÉcartsMarketing[[#Headers],[Sept]],DépensesRéellesMarketing[#Headers],0))","v":{"v":2000,"d":"2,000.00 €"}},{"$f":"INDEX(PrévisionsMarketing[],MATCH(INDEX(ÉcartsMarketing[],ROW()-ROW(ÉcartsMarketing[[#Headers],[Oct]]),1),INDEX(PrévisionsMarketing[],,1),0),MATCH(ÉcartsMarketing[[#Headers],[Oct]],PrévisionsMarketing[#Headers],0))-INDEX(DépensesRéellesMarketing[],MATCH(INDEX(ÉcartsMarketing[],ROW()-ROW(ÉcartsMarketing[[#Headers],[Oct]]),1),INDEX(PrévisionsMarketing[],,1),0),MATCH(ÉcartsMarketing[[#Headers],[Oct]],DépensesRéellesMarketing[#Headers],0))","v":{"v":2000,"d":"2,000.00 €"}},{"$f":"INDEX(PrévisionsMarketing[],MATCH(INDEX(ÉcartsMarketing[],ROW()-ROW(ÉcartsMarketing[[#Headers],[Nov]]),1),INDEX(PrévisionsMarketing[],,1),0),MATCH(ÉcartsMarketing[[#Headers],[Nov]],PrévisionsMarketing[#Headers],0))-INDEX(DépensesRéellesMarketing[],MATCH(INDEX(ÉcartsMarketing[],ROW()-ROW(ÉcartsMarketing[[#Headers],[Nov]]),1),INDEX(PrévisionsMarketing[],,1),0),MATCH(ÉcartsMarketing[[#Headers],[Nov]],DépensesRéellesMarketing[#Headers],0))","v":{"v":2000,"d":"2,000.00 €"}},{"$f":"INDEX(PrévisionsMarketing[],MATCH(INDEX(ÉcartsMarketing[],ROW()-ROW(ÉcartsMarketing[[#Headers],[Déc]]),1),INDEX(PrévisionsMarketing[],,1),0),MATCH(ÉcartsMarketing[[#Headers],[Déc]],PrévisionsMarketing[#Headers],0))-INDEX(DépensesRéellesMarketing[],MATCH(INDEX(ÉcartsMarketing[],ROW()-ROW(ÉcartsMarketing[[#Headers],[Déc]]),1),INDEX(PrévisionsMarketing[],,1),0),MATCH(ÉcartsMarketing[[#Headers],[Déc]],DépensesRéellesMarketing[#Headers],0))","v":{"v":5000,"d":"5,000.00 €"}},{"$f":"SUM(ÉcartsMarketing[[#This Row],[Jan]:[Déc]])","v":{"v":18300,"d":"18,300.00 €"}}]
[null,"Dépenses diverses",{"$f":"INDEX(PrévisionsMarketing[],MATCH(INDEX(ÉcartsMarketing[],ROW()-ROW(ÉcartsMarketing[[#Headers],[Jan]]),1),INDEX(PrévisionsMarketing[],,1),0),MATCH(ÉcartsMarketing[[#Headers],[Jan]],PrévisionsMarketing[#Headers],0))-INDEX(DépensesRéellesMarketing[],MATCH(INDEX(ÉcartsMarketing[],ROW()-ROW(ÉcartsMarketing[[#Headers],[Jan]]),1),INDEX(PrévisionsMarketing[],,1),0),MATCH(ÉcartsMarketing[[#Headers],[Jan]],DépensesRéellesMarketing[#Headers],0))","v":{"v":55,"d":"55.00 €"}},{"$f":"INDEX(PrévisionsMarketing[],MATCH(INDEX(ÉcartsMarketing[],ROW()-ROW(ÉcartsMarketing[[#Headers],[Fév]]),1),INDEX(PrévisionsMarketing[],,1),0),MATCH(ÉcartsMarketing[[#Headers],[Fév]],PrévisionsMarketing[#Headers],0))-INDEX(DépensesRéellesMarketing[],MATCH(INDEX(ÉcartsMarketing[],ROW()-ROW(ÉcartsMarketing[[#Headers],[Fév]]),1),INDEX(PrévisionsMarketing[],,1),0),MATCH(ÉcartsMarketing[[#Headers],[Fév]],DépensesRéellesMarketing[#Headers],0))","v":{"v":44,"d":"44.00 €"}},{"$f":"INDEX(PrévisionsMarketing[],MATCH(INDEX(ÉcartsMarketing[],ROW()-ROW(ÉcartsMarketing[[#Headers],[Mar]]),1),INDEX(PrévisionsMarketing[],,1),0),MATCH(ÉcartsMarketing[[#Headers],[Mar]],PrévisionsMarketing[#Headers],0))-INDEX(DépensesRéellesMarketing[],MATCH(INDEX(ÉcartsMarketing[],ROW()-ROW(ÉcartsMarketing[[#Headers],[Mar]]),1),INDEX(PrévisionsMarketing[],,1),0),MATCH(ÉcartsMarketing[[#Headers],[Mar]],DépensesRéellesMarketing[#Headers],0))","v":{"v":77,"d":"77.00 €"}},{"$f":"INDEX(PrévisionsMarketing[],MATCH(INDEX(ÉcartsMarketing[],ROW()-ROW(ÉcartsMarketing[[#Headers],[Avr]]),1),INDEX(PrévisionsMarketing[],,1),0),MATCH(ÉcartsMarketing[[#Headers],[Avr]],PrévisionsMarketing[#Headers],0))-INDEX(DépensesRéellesMarketing[],MATCH(INDEX(ÉcartsMarketing[],ROW()-ROW(ÉcartsMarketing[[#Headers],[Avr]]),1),INDEX(PrévisionsMarketing[],,1),0),MATCH(ÉcartsMarketing[[#Headers],[Avr]],DépensesRéellesMarketing[#Headers],0))","v":{"v":-23,"d":"-23.00 €"}},{"$f":"INDEX(PrévisionsMarketing[],MATCH(INDEX(ÉcartsMarketing[],ROW()-ROW(ÉcartsMarketing[[#Headers],[Mai]]),1),INDEX(PrévisionsMarketing[],,1),0),MATCH(ÉcartsMarketing[[#Headers],[Mai]],PrévisionsMarketing[#Headers],0))-INDEX(DépensesRéellesMarketing[],MATCH(INDEX(ÉcartsMarketing[],ROW()-ROW(ÉcartsMarketing[[#Headers],[Mai]]),1),INDEX(PrévisionsMarketing[],,1),0),MATCH(ÉcartsMarketing[[#Headers],[Mai]],DépensesRéellesMarketing[#Headers],0))","v":{"v":13,"d":"13.00 €"}},{"$f":"INDEX(PrévisionsMarketing[],MATCH(INDEX(ÉcartsMarketing[],ROW()-ROW(ÉcartsMarketing[[#Headers],[Juin]]),1),INDEX(PrévisionsMarketing[],,1),0),MATCH(ÉcartsMarketing[[#Headers],[Juin]],PrévisionsMarketing[#Headers],0))-INDEX(DépensesRéellesMarketing[],MATCH(INDEX(ÉcartsMarketing[],ROW()-ROW(ÉcartsMarketing[[#Headers],[Juin]]),1),INDEX(PrévisionsMarketing[],,1),0),MATCH(ÉcartsMarketing[[#Headers],[Juin]],DépensesRéellesMarketing[#Headers],0))","v":{"v":-45,"d":"-45.00 €"}},{"$f":"INDEX(PrévisionsMarketing[],MATCH(INDEX(ÉcartsMarketing[],ROW()-ROW(ÉcartsMarketing[[#Headers],[Juil]]),1),INDEX(PrévisionsMarketing[],,1),0),MATCH(ÉcartsMarketing[[#Headers],[Juil]],PrévisionsMarketing[#Headers],0))-INDEX(DépensesRéellesMarketing[],MATCH(INDEX(ÉcartsMarketing[],ROW()-ROW(ÉcartsMarketing[[#Headers],[Juil]]),1),INDEX(PrévisionsMarketing[],,1),0),MATCH(ÉcartsMarketing[[#Headers],[Juil]],DépensesRéellesMarketing[#Headers],0))","v":{"v":200,"d":"200.00 €"}},{"$f":"INDEX(PrévisionsMarketing[],MATCH(INDEX(ÉcartsMarketing[],ROW()-ROW(ÉcartsMarketing[[#Headers],[Août]]),1),INDEX(PrévisionsMarketing[],,1),0),MATCH(ÉcartsMarketing[[#Headers],[Août]],PrévisionsMarketing[#Headers],0))-INDEX(DépensesRéellesMarketing[],MATCH(INDEX(ÉcartsMarketing[],ROW()-ROW(ÉcartsMarketing[[#Headers],[Août]]),1),INDEX(PrévisionsMarketing[],,1),0),MATCH(ÉcartsMarketing[[#Headers],[Août]],DépensesRéellesMarketing[#Headers],0))","v":{"v":200,"d":"200.00 €"}},{"$f":"INDEX(PrévisionsMarketing[],MATCH(INDEX(ÉcartsMarketing[],ROW()-ROW(ÉcartsMarketing[[#Headers],[Sept]]),1),INDEX(PrévisionsMarketing[],,1),0),MATCH(ÉcartsMarketing[[#Headers],[Sept]],PrévisionsMarketing[#Headers],0))-INDEX(DépensesRéellesMarketing[],MATCH(INDEX(ÉcartsMarketing[],ROW()-ROW(ÉcartsMarketing[[#Headers],[Sept]]),1),INDEX(PrévisionsMarketing[],,1),0),MATCH(ÉcartsMarketing[[#Headers],[Sept]],DépensesRéellesMarketing[#Headers],0))","v":{"v":200,"d":"200.00 €"}},{"$f":"INDEX(PrévisionsMarketing[],MATCH(INDEX(ÉcartsMarketing[],ROW()-ROW(ÉcartsMarketing[[#Headers],[Oct]]),1),INDEX(PrévisionsMarketing[],,1),0),MATCH(ÉcartsMarketing[[#Headers],[Oct]],PrévisionsMarketing[#Headers],0))-INDEX(DépensesRéellesMarketing[],MATCH(INDEX(ÉcartsMarketing[],ROW()-ROW(ÉcartsMarketing[[#Headers],[Oct]]),1),INDEX(PrévisionsMarketing[],,1),0),MATCH(ÉcartsMarketing[[#Headers],[Oct]],DépensesRéellesMarketing[#Headers],0))","v":{"v":200,"d":"200.00 €"}},{"$f":"INDEX(PrévisionsMarketing[],MATCH(INDEX(ÉcartsMarketing[],ROW()-ROW(ÉcartsMarketing[[#Headers],[Nov]]),1),INDEX(PrévisionsMarketing[],,1),0),MATCH(ÉcartsMarketing[[#Headers],[Nov]],PrévisionsMarketing[#Headers],0))-INDEX(DépensesRéellesMarketing[],MATCH(INDEX(ÉcartsMarketing[],ROW()-ROW(ÉcartsMarketing[[#Headers],[Nov]]),1),INDEX(PrévisionsMarketing[],,1),0),MATCH(ÉcartsMarketing[[#Headers],[Nov]],DépensesRéellesMarketing[#Headers],0))","v":{"v":200,"d":"200.00 €"}},{"$f":"INDEX(PrévisionsMarketing[],MATCH(INDEX(ÉcartsMarketing[],ROW()-ROW(ÉcartsMarketing[[#Headers],[Déc]]),1),INDEX(PrévisionsMarketing[],,1),0),MATCH(ÉcartsMarketing[[#Headers],[Déc]],PrévisionsMarketing[#Headers],0))-INDEX(DépensesRéellesMarketing[],MATCH(INDEX(ÉcartsMarketing[],ROW()-ROW(ÉcartsMarketing[[#Headers],[Déc]]),1),INDEX(PrévisionsMarketing[],,1),0),MATCH(ÉcartsMarketing[[#Headers],[Déc]],DépensesRéellesMarketing[#Headers],0))","v":{"v":200,"d":"200.00 €"}},{"$f":"SUM(ÉcartsMarketing[[#This Row],[Jan]:[Déc]])","v":{"v":1321,"d":"1,321.00 €"}}]
[null,"Sous-total",{"$f":"SUBTOTAL(109,ÉcartsMarketing[Jan])","v":{"v":555,"d":"555.00 €"}},{"$f":"SUBTOTAL(109,ÉcartsMarketing[Fév])","v":{"v":-456,"d":"-456.00 €"}},{"$f":"SUBTOTAL(109,ÉcartsMarketing[Mar])","v":{"v":-23,"d":"-23.00 €"}},{"$f":"SUBTOTAL(109,ÉcartsMarketing[Avr])","v":{"v":-123,"d":"-123.00 €"}},{"$f":"SUBTOTAL(109,ÉcartsMarketing[Mai])","v":{"v":113,"d":"113.00 €"}},{"$f":"SUBTOTAL(109,ÉcartsMarketing[Juin])","v":{"v":-825,"d":"-825.00 €"}},{"$f":"SUBTOTAL(109,ÉcartsMarketing[Juil])","v":{"v":8100,"d":"8,100.00 €"}},{"$f":"SUBTOTAL(109,ÉcartsMarketing[Août])","v":{"v":6100,"d":"6,100.00 €"}},{"$f":"SUBTOTAL(109,ÉcartsMarketing[Sept])","v":{"v":3100,"d":"3,100.00 €"}},{"$f":"SUBTOTAL(109,ÉcartsMarketing[Oct])","v":{"v":8100,"d":"8,100.00 €"}},{"$f":"SUBTOTAL(109,ÉcartsMarketing[Nov])","v":{"v":3100,"d":"3,100.00 €"}},{"$f":"SUBTOTAL(109,ÉcartsMarketing[Déc])","v":{"v":6900,"d":"6,900.00 €"}},{"$f":"SUBTOTAL(109,ÉcartsMarketing[ANNÉE])","v":{"v":34641,"d":"34,641.00 €"}}]
[]
["L’écart relatif aux coûts de formation/déplacements est automatiquement calculé dans la table Écarts formation et déplacements en commençant par la cellule de droite. L’instruction suivante figure dans la cellule A35.","Formation/Déplacements","Jan","Fév","Mar","Avr","Mai","Juin","Juil","Août","Sept","Oct","Nov","Déc","ANNÉE"]
[null,"Sessions de formation",{"$f":"INDEX(PrévisionsFormationEtDéplacements[],MATCH(INDEX(ÉcartsFormationEtDéplacements[],ROW()-ROW(ÉcartsFormationEtDéplacements[[#Headers],[Jan]]),1),INDEX(PrévisionsFormationEtDéplacements[],,1),0),MATCH(ÉcartsFormationEtDéplacements[[#Headers],[Jan]],PrévisionsFormationEtDéplacements[#Headers],0))-INDEX(DépensesRéellesFormationEtDéplacements[],MATCH(INDEX(ÉcartsFormationEtDéplacements[],ROW()-ROW(ÉcartsFormationEtDéplacements[[#Headers],[Jan]]),1),INDEX(PrévisionsFormationEtDéplacements[],,1),0),MATCH(ÉcartsFormationEtDéplacements[[#Headers],[Jan]],DépensesRéellesFormationEtDéplacements[#Headers],0))","v":{"v":400,"d":"400.00 €"}},{"$f":"INDEX(PrévisionsFormationEtDéplacements[],MATCH(INDEX(ÉcartsFormationEtDéplacements[],ROW()-ROW(ÉcartsFormationEtDéplacements[[#Headers],[Fév]]),1),INDEX(PrévisionsFormationEtDéplacements[],,1),0),MATCH(ÉcartsFormationEtDéplacements[[#Headers],[Fév]],PrévisionsFormationEtDéplacements[#Headers],0))-INDEX(DépensesRéellesFormationEtDéplacements[],MATCH(INDEX(ÉcartsFormationEtDéplacements[],ROW()-ROW(ÉcartsFormationEtDéplacements[[#Headers],[Fév]]),1),INDEX(PrévisionsFormationEtDéplacements[],,1),0),MATCH(ÉcartsFormationEtDéplacements[[#Headers],[Fév]],DépensesRéellesFormationEtDéplacements[#Headers],0))","v":{"v":-400,"d":"-400.00 €"}},{"$f":"INDEX(PrévisionsFormationEtDéplacements[],MATCH(INDEX(ÉcartsFormationEtDéplacements[],ROW()-ROW(ÉcartsFormationEtDéplacements[[#Headers],[Mar]]),1),INDEX(PrévisionsFormationEtDéplacements[],,1),0),MATCH(ÉcartsFormationEtDéplacements[[#Headers],[Mar]],PrévisionsFormationEtDéplacements[#Headers],0))-INDEX(DépensesRéellesFormationEtDéplacements[],MATCH(INDEX(ÉcartsFormationEtDéplacements[],ROW()-ROW(ÉcartsFormationEtDéplacements[[#Headers],[Mar]]),1),INDEX(PrévisionsFormationEtDéplacements[],,1),0),MATCH(ÉcartsFormationEtDéplacements[[#Headers],[Mar]],DépensesRéellesFormationEtDéplacements[#Headers],0))","v":{"v":600,"d":"600.00 €"}},{"$f":"INDEX(PrévisionsFormationEtDéplacements[],MATCH(INDEX(ÉcartsFormationEtDéplacements[],ROW()-ROW(ÉcartsFormationEtDéplacements[[#Headers],[Avr]]),1),INDEX(PrévisionsFormationEtDéplacements[],,1),0),MATCH(ÉcartsFormationEtDéplacements[[#Headers],[Avr]],PrévisionsFormationEtDéplacements[#Headers],0))-INDEX(DépensesRéellesFormationEtDéplacements[],MATCH(INDEX(ÉcartsFormationEtDéplacements[],ROW()-ROW(ÉcartsFormationEtDéplacements[[#Headers],[Avr]]),1),INDEX(PrévisionsFormationEtDéplacements[],,1),0),MATCH(ÉcartsFormationEtDéplacements[[#Headers],[Avr]],DépensesRéellesFormationEtDéplacements[#Headers],0))","v":{"v":400,"d":"400.00 €"}},{"$f":"INDEX(PrévisionsFormationEtDéplacements[],MATCH(INDEX(ÉcartsFormationEtDéplacements[],ROW()-ROW(ÉcartsFormationEtDéplacements[[#Headers],[Mai]]),1),INDEX(PrévisionsFormationEtDéplacements[],,1),0),MATCH(ÉcartsFormationEtDéplacements[[#Headers],[Mai]],PrévisionsFormationEtDéplacements[#Headers],0))-INDEX(DépensesRéellesFormationEtDéplacements[],MATCH(INDEX(ÉcartsFormationEtDéplacements[],ROW()-ROW(ÉcartsFormationEtDéplacements[[#Headers],[Mai]]),1),INDEX(PrévisionsFormationEtDéplacements[],,1),0),MATCH(ÉcartsFormationEtDéplacements[[#Headers],[Mai]],DépensesRéellesFormationEtDéplacements[#Headers],0))","v":{"v":800,"d":"800.00 €"}},{"$f":"INDEX(PrévisionsFormationEtDéplacements[],MATCH(INDEX(ÉcartsFormationEtDéplacements[],ROW()-ROW(ÉcartsFormationEtDéplacements[[#Headers],[Juin]]),1),INDEX(PrévisionsFormationEtDéplacements[],,1),0),MATCH(ÉcartsFormationEtDéplacements[[#Headers],[Juin]],PrévisionsFormationEtDéplacements[#Headers],0))-INDEX(DépensesRéellesFormationEtDéplacements[],MATCH(INDEX(ÉcartsFormationEtDéplacements[],ROW()-ROW(ÉcartsFormationEtDéplacements[[#Headers],[Juin]]),1),INDEX(PrévisionsFormationEtDéplacements[],,1),0),MATCH(ÉcartsFormationEtDéplacements[[#Headers],[Juin]],DépensesRéellesFormationEtDéplacements[#Headers],0))","v":{"v":-800,"d":"-800.00 €"}},{"$f":"INDEX(PrévisionsFormationEtDéplacements[],MATCH(INDEX(ÉcartsFormationEtDéplacements[],ROW()-ROW(ÉcartsFormationEtDéplacements[[#Headers],[Juil]]),1),INDEX(PrévisionsFormationEtDéplacements[],,1),0),MATCH(ÉcartsFormationEtDéplacements[[#Headers],[Juil]],PrévisionsFormationEtDéplacements[#Headers],0))-INDEX(DépensesRéellesFormationEtDéplacements[],MATCH(INDEX(ÉcartsFormationEtDéplacements[],ROW()-ROW(ÉcartsFormationEtDéplacements[[#Headers],[Juil]]),1),INDEX(PrévisionsFormationEtDéplacements[],,1),0),MATCH(ÉcartsFormationEtDéplacements[[#Headers],[Juil]],DépensesRéellesFormationEtDéplacements[#Headers],0))","v":{"v":2000,"d":"2,000.00 €"}},{"$f":"INDEX(PrévisionsFormationEtDéplacements[],MATCH(INDEX(ÉcartsFormationEtDéplacements[],ROW()-ROW(ÉcartsFormationEtDéplacements[[#Headers],[Août]]),1),INDEX(PrévisionsFormationEtDéplacements[],,1),0),MATCH(ÉcartsFormationEtDéplacements[[#Headers],[Août]],PrévisionsFormationEtDéplacements[#Headers],0))-INDEX(DépensesRéellesFormationEtDéplacements[],MATCH(INDEX(ÉcartsFormationEtDéplacements[],ROW()-ROW(ÉcartsFormationEtDéplacements[[#Headers],[Août]]),1),INDEX(PrévisionsFormationEtDéplacements[],,1),0),MATCH(ÉcartsFormationEtDéplacements[[#Headers],[Août]],DépensesRéellesFormationEtDéplacements[#Headers],0))","v":{"v":2000,"d":"2,000.00 €"}},{"$f":"INDEX(PrévisionsFormationEtDéplacements[],MATCH(INDEX(ÉcartsFormationEtDéplacements[],ROW()-ROW(ÉcartsFormationEtDéplacements[[#Headers],[Sept]]),1),INDEX(PrévisionsFormationEtDéplacements[],,1),0),MATCH(ÉcartsFormationEtDéplacements[[#Headers],[Sept]],PrévisionsFormationEtDéplacements[#Headers],0))-INDEX(DépensesRéellesFormationEtDéplacements[],MATCH(INDEX(ÉcartsFormationEtDéplacements[],ROW()-ROW(ÉcartsFormationEtDéplacements[[#Headers],[Sept]]),1),INDEX(PrévisionsFormationEtDéplacements[],,1),0),MATCH(ÉcartsFormationEtDéplacements[[#Headers],[Sept]],DépensesRéellesFormationEtDéplacements[#Headers],0))","v":{"v":2000,"d":"2,000.00 €"}},{"$f":"INDEX(PrévisionsFormationEtDéplacements[],MATCH(INDEX(ÉcartsFormationEtDéplacements[],ROW()-ROW(ÉcartsFormationEtDéplacements[[#Headers],[Oct]]),1),INDEX(PrévisionsFormationEtDéplacements[],,1),0),MATCH(ÉcartsFormationEtDéplacements[[#Headers],[Oct]],PrévisionsFormationEtDéplacements[#Headers],0))-INDEX(DépensesRéellesFormationEtDéplacements[],MATCH(INDEX(ÉcartsFormationEtDéplacements[],ROW()-ROW(ÉcartsFormationEtDéplacements[[#Headers],[Oct]]),1),INDEX(PrévisionsFormationEtDéplacements[],,1),0),MATCH(ÉcartsFormationEtDéplacements[[#Headers],[Oct]],DépensesRéellesFormationEtDéplacements[#Headers],0))","v":{"v":2000,"d":"2,000.00 €"}},{"$f":"INDEX(PrévisionsFormationEtDéplacements[],MATCH(INDEX(ÉcartsFormationEtDéplacements[],ROW()-ROW(ÉcartsFormationEtDéplacements[[#Headers],[Nov]]),1),INDEX(PrévisionsFormationEtDéplacements[],,1),0),MATCH(ÉcartsFormationEtDéplacements[[#Headers],[Nov]],PrévisionsFormationEtDéplacements[#Headers],0))-INDEX(DépensesRéellesFormationEtDéplacements[],MATCH(INDEX(ÉcartsFormationEtDéplacements[],ROW()-ROW(ÉcartsFormationEtDéplacements[[#Headers],[Nov]]),1),INDEX(PrévisionsFormationEtDéplacements[],,1),0),MATCH(ÉcartsFormationEtDéplacements[[#Headers],[Nov]],DépensesRéellesFormationEtDéplacements[#Headers],0))","v":{"v":2000,"d":"2,000.00 €"}},{"$f":"INDEX(PrévisionsFormationEtDéplacements[],MATCH(INDEX(ÉcartsFormationEtDéplacements[],ROW()-ROW(ÉcartsFormationEtDéplacements[[#Headers],[Déc]]),1),INDEX(PrévisionsFormationEtDéplacements[],,1),0),MATCH(ÉcartsFormationEtDéplacements[[#Headers],[Déc]],PrévisionsFormationEtDéplacements[#Headers],0))-INDEX(DépensesRéellesFormationEtDéplacements[],MATCH(INDEX(ÉcartsFormationEtDéplacements[],ROW()-ROW(ÉcartsFormationEtDéplacements[[#Headers],[Déc]]),1),INDEX(PrévisionsFormationEtDéplacements[],,1),0),MATCH(ÉcartsFormationEtDéplacements[[#Headers],[Déc]],DépensesRéellesFormationEtDéplacements[#Headers],0))","v":{"v":2000,"d":"2,000.00 €"}},{"$f":"SUM(ÉcartsFormationEtDéplacements[[#This Row],[Jan]:[Déc]])","v":{"v":13000,"d":"13,000.00 €"}}]
[null,"Frais de déplacement liés aux formations",{"$f":"INDEX(PrévisionsFormationEtDéplacements[],MATCH(INDEX(ÉcartsFormationEtDéplacements[],ROW()-ROW(ÉcartsFormationEtDéplacements[[#Headers],[Jan]]),1),INDEX(PrévisionsFormationEtDéplacements[],,1),0),MATCH(ÉcartsFormationEtDéplacements[[#Headers],[Jan]],PrévisionsFormationEtDéplacements[#Headers],0))-INDEX(DépensesRéellesFormationEtDéplacements[],MATCH(INDEX(ÉcartsFormationEtDéplacements[],ROW()-ROW(ÉcartsFormationEtDéplacements[[#Headers],[Jan]]),1),INDEX(PrévisionsFormationEtDéplacements[],,1),0),MATCH(ÉcartsFormationEtDéplacements[[#Headers],[Jan]],DépensesRéellesFormationEtDéplacements[#Headers],0))","v":{"v":800,"d":"800.00 €"}},{"$f":"INDEX(PrévisionsFormationEtDéplacements[],MATCH(INDEX(ÉcartsFormationEtDéplacements[],ROW()-ROW(ÉcartsFormationEtDéplacements[[#Headers],[Fév]]),1),INDEX(PrévisionsFormationEtDéplacements[],,1),0),MATCH(ÉcartsFormationEtDéplacements[[#Headers],[Fév]],PrévisionsFormationEtDéplacements[#Headers],0))-INDEX(DépensesRéellesFormationEtDéplacements[],MATCH(INDEX(ÉcartsFormationEtDéplacements[],ROW()-ROW(ÉcartsFormationEtDéplacements[[#Headers],[Fév]]),1),INDEX(PrévisionsFormationEtDéplacements[],,1),0),MATCH(ÉcartsFormationEtDéplacements[[#Headers],[Fév]],DépensesRéellesFormationEtDéplacements[#Headers],0))","v":{"v":-200,"d":"-200.00 €"}},{"$f":"INDEX(PrévisionsFormationEtDéplacements[],MATCH(INDEX(ÉcartsFormationEtDéplacements[],ROW()-ROW(ÉcartsFormationEtDéplacements[[#Headers],[Mar]]),1),INDEX(PrévisionsFormationEtDéplacements[],,1),0),MATCH(ÉcartsFormationEtDéplacements[[#Headers],[Mar]],PrévisionsFormationEtDéplacements[#Headers],0))-INDEX(DépensesRéellesFormationEtDéplacements[],MATCH(INDEX(ÉcartsFormationEtDéplacements[],ROW()-ROW(ÉcartsFormationEtDéplacements[[#Headers],[Mar]]),1),INDEX(PrévisionsFormationEtDéplacements[],,1),0),MATCH(ÉcartsFormationEtDéplacements[[#Headers],[Mar]],DépensesRéellesFormationEtDéplacements[#Headers],0))","v":{"v":600,"d":"600.00 €"}},{"$f":"INDEX(PrévisionsFormationEtDéplacements[],MATCH(INDEX(ÉcartsFormationEtDéplacements[],ROW()-ROW(ÉcartsFormationEtDéplacements[[#Headers],[Avr]]),1),INDEX(PrévisionsFormationEtDéplacements[],,1),0),MATCH(ÉcartsFormationEtDéplacements[[#Headers],[Avr]],PrévisionsFormationEtDéplacements[#Headers],0))-INDEX(DépensesRéellesFormationEtDéplacements[],MATCH(INDEX(ÉcartsFormationEtDéplacements[],ROW()-ROW(ÉcartsFormationEtDéplacements[[#Headers],[Avr]]),1),INDEX(PrévisionsFormationEtDéplacements[],,1),0),MATCH(ÉcartsFormationEtDéplacements[[#Headers],[Avr]],DépensesRéellesFormationEtDéplacements[#Headers],0))","v":{"v":800,"d":"800.00 €"}},{"$f":"INDEX(PrévisionsFormationEtDéplacements[],MATCH(INDEX(ÉcartsFormationEtDéplacements[],ROW()-ROW(ÉcartsFormationEtDéplacements[[#Headers],[Mai]]),1),INDEX(PrévisionsFormationEtDéplacements[],,1),0),MATCH(ÉcartsFormationEtDéplacements[[#Headers],[Mai]],PrévisionsFormationEtDéplacements[#Headers],0))-INDEX(DépensesRéellesFormationEtDéplacements[],MATCH(INDEX(ÉcartsFormationEtDéplacements[],ROW()-ROW(ÉcartsFormationEtDéplacements[[#Headers],[Mai]]),1),INDEX(PrévisionsFormationEtDéplacements[],,1),0),MATCH(ÉcartsFormationEtDéplacements[[#Headers],[Mai]],DépensesRéellesFormationEtDéplacements[#Headers],0))","v":{"v":1200,"d":"1,200.00 €"}},{"$f":"INDEX(PrévisionsFormationEtDéplacements[],MATCH(INDEX(ÉcartsFormationEtDéplacements[],ROW()-ROW(ÉcartsFormationEtDéplacements[[#Headers],[Juin]]),1),INDEX(PrévisionsFormationEtDéplacements[],,1),0),MATCH(ÉcartsFormationEtDéplacements[[#Headers],[Juin]],PrévisionsFormationEtDéplacements[#Headers],0))-INDEX(DépensesRéellesFormationEtDéplacements[],MATCH(INDEX(ÉcartsFormationEtDéplacements[],ROW()-ROW(ÉcartsFormationEtDéplacements[[#Headers],[Juin]]),1),INDEX(PrévisionsFormationEtDéplacements[],,1),0),MATCH(ÉcartsFormationEtDéplacements[[#Headers],[Juin]],DépensesRéellesFormationEtDéplacements[#Headers],0))","v":{"v":-1500,"d":"-1,500.00 €"}},{"$f":"INDEX(PrévisionsFormationEtDéplacements[],MATCH(INDEX(ÉcartsFormationEtDéplacements[],ROW()-ROW(ÉcartsFormationEtDéplacements[[#Headers],[Juil]]),1),INDEX(PrévisionsFormationEtDéplacements[],,1),0),MATCH(ÉcartsFormationEtDéplacements[[#Headers],[Juil]],PrévisionsFormationEtDéplacements[#Headers],0))-INDEX(DépensesRéellesFormationEtDéplacements[],MATCH(INDEX(ÉcartsFormationEtDéplacements[],ROW()-ROW(ÉcartsFormationEtDéplacements[[#Headers],[Juil]]),1),INDEX(PrévisionsFormationEtDéplacements[],,1),0),MATCH(ÉcartsFormationEtDéplacements[[#Headers],[Juil]],DépensesRéellesFormationEtDéplacements[#Headers],0))","v":{"v":2000,"d":"2,000.00 €"}},{"$f":"INDEX(PrévisionsFormationEtDéplacements[],MATCH(INDEX(ÉcartsFormationEtDéplacements[],ROW()-ROW(ÉcartsFormationEtDéplacements[[#Headers],[Août]]),1),INDEX(PrévisionsFormationEtDéplacements[],,1),0),MATCH(ÉcartsFormationEtDéplacements[[#Headers],[Août]],PrévisionsFormationEtDéplacements[#Headers],0))-INDEX(DépensesRéellesFormationEtDéplacements[],MATCH(INDEX(ÉcartsFormationEtDéplacements[],ROW()-ROW(ÉcartsFormationEtDéplacements[[#Headers],[Août]]),1),INDEX(PrévisionsFormationEtDéplacements[],,1),0),MATCH(ÉcartsFormationEtDéplacements[[#Headers],[Août]],DépensesRéellesFormationEtDéplacements[#Headers],0))","v":{"v":2000,"d":"2,000.00 €"}},{"$f":"INDEX(PrévisionsFormationEtDéplacements[],MATCH(INDEX(ÉcartsFormationEtDéplacements[],ROW()-ROW(ÉcartsFormationEtDéplacements[[#Headers],[Sept]]),1),INDEX(PrévisionsFormationEtDéplacements[],,1),0),MATCH(ÉcartsFormationEtDéplacements[[#Headers],[Sept]],PrévisionsFormationEtDéplacements[#Headers],0))-INDEX(DépensesRéellesFormationEtDéplacements[],MATCH(INDEX(ÉcartsFormationEtDéplacements[],ROW()-ROW(ÉcartsFormationEtDéplacements[[#Headers],[Sept]]),1),INDEX(PrévisionsFormationEtDéplacements[],,1),0),MATCH(ÉcartsFormationEtDéplacements[[#Headers],[Sept]],DépensesRéellesFormationEtDéplacements[#Headers],0))","v":{"v":2000,"d":"2,000.00 €"}},{"$f":"INDEX(PrévisionsFormationEtDéplacements[],MATCH(INDEX(ÉcartsFormationEtDéplacements[],ROW()-ROW(ÉcartsFormationEtDéplacements[[#Headers],[Oct]]),1),INDEX(PrévisionsFormationEtDéplacements[],,1),0),MATCH(ÉcartsFormationEtDéplacements[[#Headers],[Oct]],PrévisionsFormationEtDéplacements[#Headers],0))-INDEX(DépensesRéellesFormationEtDéplacements[],MATCH(INDEX(ÉcartsFormationEtDéplacements[],ROW()-ROW(ÉcartsFormationEtDéplacements[[#Headers],[Oct]]),1),INDEX(PrévisionsFormationEtDéplacements[],,1),0),MATCH(ÉcartsFormationEtDéplacements[[#Headers],[Oct]],DépensesRéellesFormationEtDéplacements[#Headers],0))","v":{"v":2000,"d":"2,000.00 €"}},{"$f":"INDEX(PrévisionsFormationEtDéplacements[],MATCH(INDEX(ÉcartsFormationEtDéplacements[],ROW()-ROW(ÉcartsFormationEtDéplacements[[#Headers],[Nov]]),1),INDEX(PrévisionsFormationEtDéplacements[],,1),0),MATCH(ÉcartsFormationEtDéplacements[[#Headers],[Nov]],PrévisionsFormationEtDéplacements[#Headers],0))-INDEX(DépensesRéellesFormationEtDéplacements[],MATCH(INDEX(ÉcartsFormationEtDéplacements[],ROW()-ROW(ÉcartsFormationEtDéplacements[[#Headers],[Nov]]),1),INDEX(PrévisionsFormationEtDéplacements[],,1),0),MATCH(ÉcartsFormationEtDéplacements[[#Headers],[Nov]],DépensesRéellesFormationEtDéplacements[#Headers],0))","v":{"v":2000,"d":"2,000.00 €"}},{"$f":"INDEX(PrévisionsFormationEtDéplacements[],MATCH(INDEX(ÉcartsFormationEtDéplacements[],ROW()-ROW(ÉcartsFormationEtDéplacements[[#Headers],[Déc]]),1),INDEX(PrévisionsFormationEtDéplacements[],,1),0),MATCH(ÉcartsFormationEtDéplacements[[#Headers],[Déc]],PrévisionsFormationEtDéplacements[#Headers],0))-INDEX(DépensesRéellesFormationEtDéplacements[],MATCH(INDEX(ÉcartsFormationEtDéplacements[],ROW()-ROW(ÉcartsFormationEtDéplacements[[#Headers],[Déc]]),1),INDEX(PrévisionsFormationEtDéplacements[],,1),0),MATCH(ÉcartsFormationEtDéplacements[[#Headers],[Déc]],DépensesRéellesFormationEtDéplacements[#Headers],0))","v":{"v":2000,"d":"2,000.00 €"}},{"$f":"SUM(ÉcartsFormationEtDéplacements[[#This Row],[Jan]:[Déc]])","v":{"v":13700,"d":"13,700.00 €"}}]
[null,"Sous-total",{"$f":"SUBTOTAL(109,ÉcartsFormationEtDéplacements[Jan])","v":{"v":1200,"d":"1,200.00 €"}},{"$f":"SUBTOTAL(109,ÉcartsFormationEtDéplacements[Fév])","v":{"v":-600,"d":"-600.00 €"}},{"$f":"SUBTOTAL(109,ÉcartsFormationEtDéplacements[Mar])","v":{"v":1200,"d":"1,200.00 €"}},{"$f":"SUBTOTAL(109,ÉcartsFormationEtDéplacements[Avr])","v":{"v":1200,"d":"1,200.00 €"}},{"$f":"SUBTOTAL(109,ÉcartsFormationEtDéplacements[Mai])","v":{"v":2000,"d":"2,000.00 €"}},{"$f":"SUBTOTAL(109,ÉcartsFormationEtDéplacements[Juin])","v":{"v":-2300,"d":"-2,300.00 €"}},{"$f":"SUBTOTAL(109,ÉcartsFormationEtDéplacements[Juil])","v":{"v":4000,"d":"4,000.00 €"}},{"$f":"SUBTOTAL(109,ÉcartsFormationEtDéplacements[Août])","v":{"v":4000,"d":"4,000.00 €"}},{"$f":"SUBTOTAL(109,ÉcartsFormationEtDéplacements[Sept])","v":{"v":4000,"d":"4,000.00 €"}},{"$f":"SUBTOTAL(109,ÉcartsFormationEtDéplacements[Oct])","v":{"v":4000,"d":"4,000.00 €"}},{"$f":"SUBTOTAL(109,ÉcartsFormationEtDéplacements[Nov])","v":{"v":4000,"d":"4,000.00 €"}},{"$f":"SUBTOTAL(109,ÉcartsFormationEtDéplacements[Déc])","v":{"v":4000,"d":"4,000.00 €"}},{"$f":"SUBTOTAL(109,ÉcartsFormationEtDéplacements[ANNÉE])","v":{"v":26700,"d":"26,700.00 €"}}]
[]
["Les écarts de dépenses sont automatiquement calculés dans la table Total écarts en commençant par la cellule de droite.","TOTAUX","Jan","Fév","Mar","Avr","Mai","Juin","Juil","Août","Sept","Oct","Nov","Déc","Année"]
[null,"Dépenses réelles mensuelles",{"$f":"ÉcartsFormationEtDéplacements[[#Totals],[Jan]]+ÉcartsMarketing[[#Totals],[Jan]]+ÉcartsBureau[[#Totals],[Jan]]+ÉcartsEmployés[[#Totals],[Jan]]","v":{"v":1738,"d":"1,738.00 €"}},{"$f":"ÉcartsFormationEtDéplacements[[#Totals],[Fév]]+ÉcartsMarketing[[#Totals],[Fév]]+ÉcartsBureau[[#Totals],[Fév]]+ÉcartsEmployés[[#Totals],[Fév]]","v":{"v":-984,"d":"-984.00 €"}},{"$f":"ÉcartsFormationEtDéplacements[[#Totals],[Mar]]+ÉcartsMarketing[[#Totals],[Mar]]+ÉcartsBureau[[#Totals],[Mar]]+ÉcartsEmployés[[#Totals],[Mar]]","v":{"v":1255,"d":"1,255.00 €"}},{"$f":"ÉcartsFormationEtDéplacements[[#Totals],[Avr]]+ÉcartsMarketing[[#Totals],[Avr]]+ÉcartsBureau[[#Totals],[Avr]]+ÉcartsEmployés[[#Totals],[Avr]]","v":{"v":301,"d":"301.00 €"}},{"$f":"ÉcartsFormationEtDéplacements[[#Totals],[Mai]]+ÉcartsMarketing[[#Totals],[Mai]]+ÉcartsBureau[[#Totals],[Mai]]+ÉcartsEmployés[[#Totals],[Mai]]","v":{"v":1440,"d":"1,440.00 €"}},{"$f":"ÉcartsFormationEtDéplacements[[#Totals],[Juin]]+ÉcartsMarketing[[#Totals],[Juin]]+ÉcartsBureau[[#Totals],[Juin]]+ÉcartsEmployés[[#Totals],[Juin]]","v":{"v":-3744,"d":"-3,744.00 €"}},{"$f":"ÉcartsFormationEtDéplacements[[#Totals],[Juil]]+ÉcartsMarketing[[#Totals],[Juil]]+ÉcartsBureau[[#Totals],[Juil]]+ÉcartsEmployés[[#Totals],[Juil]]","v":{"v":134695,"d":"134,695.00 €"}},{"$f":"ÉcartsFormationEtDéplacements[[#Totals],[Août]]+ÉcartsMarketing[[#Totals],[Août]]+ÉcartsBureau[[#Totals],[Août]]+ÉcartsEmployés[[#Totals],[Août]]","v":{"v":138918,"d":"138,918.00 €"}},{"$f":"ÉcartsFormationEtDéplacements[[#Totals],[Sept]]+ÉcartsMarketing[[#Totals],[Sept]]+ÉcartsBureau[[#Totals],[Sept]]+ÉcartsEmployés[[#Totals],[Sept]]","v":{"v":135918,"d":"135,918.00 €"}},{"$f":"ÉcartsFormationEtDéplacements[[#Totals],[Oct]]+ÉcartsMarketing[[#Totals],[Oct]]+ÉcartsBureau[[#Totals],[Oct]]+ÉcartsEmployés[[#Totals],[Oct]]","v":{"v":140918,"d":"140,918.00 €"}},{"$f":"ÉcartsFormationEtDéplacements[[#Totals],[Nov]]+ÉcartsMarketing[[#Totals],[Nov]]+ÉcartsBureau[[#Totals],[Nov]]+ÉcartsEmployés[[#Totals],[Nov]]","v":{"v":136218,"d":"136,218.00 €"}},{"$f":"ÉcartsFormationEtDéplacements[[#Totals],[Déc]]+ÉcartsMarketing[[#Totals],[Déc]]+ÉcartsBureau[[#Totals],[Déc]]+ÉcartsEmployés[[#Totals],[Déc]]","v":{"v":140018,"d":"140,018.00 €"}},{"$f":"ÉcartsFormationEtDéplacements[[#Totals],[ANNÉE]]+ÉcartsMarketing[[#Totals],[ANNÉE]]+ÉcartsBureau[[#Totals],[ANNÉE]]+ÉcartsEmployés[[#Totals],[ANNÉE]]","v":{"v":826691,"d":"826,691.00 €"}}]
[null,"TOTAL des dépenses réelles",{"$f":"SUM($C$36:C36)","v":{"v":1738,"d":"1,738.00 €"}},{"$f":"SUM($C$36:D36)","v":{"v":754,"d":"754.00 €"}},{"$f":"SUM($C$36:E36)","v":{"v":2009,"d":"2,009.00 €"}},{"$f":"SUM($C$36:F36)","v":{"v":2310,"d":"2,310.00 €"}},{"$f":"SUM($C$36:G36)","v":{"v":3750,"d":"3,750.00 €"}},{"$f":"SUM($C$36:H36)","v":{"v":6,"d":"6.00 €"}},{"$f":"SUM($C$36:I36)","v":{"v":134701,"d":"134,701.00 €"}},{"$f":"SUM($C$36:J36)","v":{"v":273619,"d":"273,619.00 €"}},{"$f":"SUM($C$36:K36)","v":{"v":409537,"d":"409,537.00 €"}},{"$f":"SUM($C$36:L36)","v":{"v":550455,"d":"550,455.00 €"}},{"$f":"SUM($C$36:M36)","v":{"v":686673,"d":"686,673.00 €"}},{"$f":"SUM($C$36:N36)","v":{"v":826691,"d":"826,691.00 €"}}]

{"sheet":"ANALYSE DES DÉPENSES","index":4,"n_rows":14,"n_cols":16,"rows_kept":14,"merged":[[1,1,2,3],[1,5,1,6],[2,4,2,6],[11,1,11,2],[11,3,11,5],[13,1,36,5]]}
["Les dépenses prévues et réelles annuelles, les écarts de dépenses et le pourcentage d’écart sont automatiquement mis à jour pour chaque catégorie de dépenses dans cette feuille de calcul. Des instructions utiles sur l’utilisation de cette feuille de calcul sont disponibles dans les cellules dans cette colonne. Appuyez sur la flèche Bas pour commencer. ",{"$nulls":5}," ",{"$nulls":8}," "]
["Le nom de la société est automatiquement mis à jour dans la cellule de droite. Entrez le logo dans la cellule F2.",{"$f":"'DÉPENSES PRÉVUES'!B2:D3","v":"Nom de la société"},{"$nulls":3},"L’espace réservé au logo figure dans cette cellule."]
["Le titre de cette feuille de calcul figure dans la cellule E3. L’instruction suivante figure dans la cellule A5.",{"$nulls":3},{"$f":"titre_feuille_de_calcul","v":"Détail des dépenses prévues"}]
[]
["Les dépenses prévues, les dépenses réelles, l’écart de dépenses et le pourcentage d’écart sont automatiquement calculés dans la table Analyse en commençant par la cellule de droite. L’instruction suivante figure dans la cellule A12.","Catégorie de dépenses","Dépenses prévues","Dépenses réelles","Écarts de dépenses","Pourcentage d’écart"]
[null,"Coûts employés",{"$f":"PrévisionsEmployés[[#Totals],[ANNÉE]]","v":{"v":1355090,"d":"1,355,090.00 €"}},{"$f":"DépensesRéellesEmployés[[#Totals],[ANNÉE]]","v":{"v":659130,"d":"659,130.00 €"}},{"$f":"C6-D6","v":{"v":695960,"d":"695,960.00 €"}},{"$f":"E6/C6","v":{"v":0.5135895032802249,"d":"51%"}}]
[null,{"$f":"'DÉPENSES PRÉVUES'!B10","v":"Coûts bureau"},{"$f":"PrévisionsBureau[[#Totals],[ANNÉE]]","v":{"v":138740,"d":"138,740.00 €"}},{"$f":"DépensesRéellesBureau[[#Totals],[ANNÉE]]","v":{"v":69350,"d":"69,350.00 €"}},{"$f":"C7-D7","v":{"v":69390,"d":"69,390.00 €"}},{"$f":"E7/C7","v":{"v":0.5001441545336601,"d":"50%"}}]
[null,{"$f":"'DÉPENSES PRÉVUES'!B21","v":"Coûts marketing"},{"$f":"PrévisionsMarketing[[#Totals],[ANNÉE]]","v":{"v":67800,"d":"67,800.00 €"}},{"$f":"DépensesRéellesMarketing[[#Totals],[ANNÉE]]","v":{"v":33159,"d":"33,159.00 €"}},{"$f":"C8-D8","v":{"v":34641,"d":"34,641.00 €"}},{"$f":"E8/C8","v":{"v":0.510929203539823,"d":"51%"}}]
[null,{"$f":"'DÉPENSES PRÉVUES'!B30","v":"Formation/Déplacements"},{"$f":"PrévisionsFormationEtDéplacements[[#Totals],[ANNÉE]]","v":{"v":48000,"d":"48,000.00 €"}},{"$f":"DépensesRéellesFormationEtDéplacements[[#Totals],[ANNÉE]]","v":{"v":21300,"d":"21,300.00 €"}},{"$f":"C9-D9","v":{"v":26700,"d":"26,700.00 €"}},{"$f":"E9/C9","v":{"v":0.55625,"d":"56%"}}]
[null,{"$f":"'DÉPENSES PRÉVUES'!B35","v":"TOTAUX"},{"$f":"'DÉPENSES PRÉVUES'!O36","v":{"v":1609630,"d":"1,609,630.00 €"}},{"$f":"'DÉPENSES RÉELLES'!O36","v":{"v":782939,"d":"782,939.00 €"}},{"$f":"C10-D10","v":{"v":826691,"d":"826,691.00 €"}},{"$f":"E10/C10","v":{"v":0.5135907009685455,"d":"51%"}}]
[]
["Le graphique en secteurs Dépenses prévues se trouve dans la cellule de droite et le graphique en secteurs Dépenses réelles dans la cellule D12. L’instruction suivante figure dans la cellule A14.","Le graphique en secteurs présentant les dépenses prévues par catégories se trouve dans cette cellule.",null,"Le graphique en secteurs présentant les dépenses réelles par catégories se trouve dans cette cellule."]
[]
["Le graphique présentant les dépenses prévues, les dépenses réelles et l’écart en termes de dépenses mensuelles se trouve dans la cellule de droite."]